Service Area,Service Division,Expense Type,Expense Code,Detailed Expense Type,Payment Date,Transaction Number,Amount Exc VAT,Supplier Name
Adult and Health Services,Head of Adults,Third Party Payments,470101,Purchase of Care,01/09/2022,4040609-I-22-5490830,"2,331.12",REDACTED - PAYMENT TO INDIVIDUAL
Adult and Health Services,Head of Adults,Third Party Payments,473101,Purchase of Care,01/09/2022,4041248-I-22-5490251,"24,978.64",REDACTED - PAYMENT TO INDIVIDUAL
Adult and Health Services,Head of Adults,Third Party Payments,470101,Purchase of Care,01/09/2022,4041248-I-22-5490595,"26,219.00",REDACTED - PAYMENT TO INDIVIDUAL
Adult and Health Services,Head of Adults,Third Party Payments,478101,Purchase of Care,01/09/2022,4041283-I-22-5490455,"3,997.56",REDACTED - PAYMENT TO INDIVIDUAL
Adult and Health Services,Head of Adults,Third Party Payments,478101,Purchase of Care,01/09/2022,4041284-I-22-5490481,"2,771.44",REDACTED - PAYMENT TO INDIVIDUAL
Adult and Health Services,Head of Adults,Third Party Payments,470101,Purchase of Care,01/09/2022,4041293-I-22-5490770,"2,040.00",REDACTED - PAYMENT TO INDIVIDUAL
Adult and Health Services,Head of Adults,Third Party Payments,470101,Purchase of Care,01/09/2022,4041419-I-22-5490761,"78,233.51",REDACTED - PAYMENT TO INDIVIDUAL
Adult and Health Services,Head of Adults,Third Party Payments,470101,Purchase of Care,01/09/2022,4041420-I-22-5490634,"4,692.00",REDACTED - PAYMENT TO INDIVIDUAL
Regeneration Economy and Growth,Culture Sport and Tourism,Supplies and Services,384199,Miscellaneous Expenses,01/09/2022,4041722-DGT12782022,510.00,REDACTED - PAYMENT TO INDIVIDUAL
Regeneration Economy and Growth,Culture Sport and Tourism,Third Party Payments,430131,Rendered by Private Contractors,01/09/2022,4041736-2022031,"1,047.00",REDACTED - PAYMENT TO INDIVIDUAL
Children and Young Peoples Services,Head of Early Help Inclusion & Vulnerable Children.,Supplies and Services,384199,Miscellaneous Expenses,01/09/2022,4041739-3697,700.00,REDACTED - PAYMENT TO INDIVIDUAL
Adult and Health Services,Head of Adults,Supplies and Services,338042,Services,01/09/2022,4041740-3472,887.50,REDACTED - PAYMENT TO INDIVIDUAL
Adult and Health Services,Head of Adults,Supplies and Services,338042,Services,01/09/2022,4041740-3544/JO,"2,425.00",REDACTED - PAYMENT TO INDIVIDUAL
Adult and Health Services,Head of Adults,Supplies and Services,338042,Services,01/09/2022,4041740-3559/JO,500.00,REDACTED - PAYMENT TO INDIVIDUAL
Neighbourhoods and Climate Change,Community Protection,Supplies and Services,338045,Services,01/09/2022,4041741-116567A,500.00,REDACTED - PAYMENT TO INDIVIDUAL
Adult and Health Services,Head of Adults,Third Party Payments,470101,Purchase of Care,01/09/2022,4040342-I-22-5490568,"70,505.25",A CHARLES THOMAS (CARE) LTD.
Children and Young Peoples Services,Head of Childrens Social Care,Third Party Payments,425021,Rendered by Voluntary Organisations,01/09/2022,4040343-PIG_138255,"43,244.00",A WILDERNESS WAY LTD.
Children and Young Peoples Services,Head of Childrens Social Care,Third Party Payments,425040,Rendered by Voluntary Organisations,01/09/2022,4040344-PIG_138232,"23,256.00",A1 FOSTER CARE.
Adult and Health Services,Head of Adults,Third Party Payments,478101,Purchase of Care,01/09/2022,4040349-I-22-5490252,"23,068.30",ACCEPT CARE LTD.
Adult and Health Services,Head of Adults,Third Party Payments,478101,Purchase of Care,01/09/2022,4040349-I-22-5490256,"38,069.83",ACCEPT CARE LTD.
Adult and Health Services,Head of Adults,Third Party Payments,478101,Purchase of Care,01/09/2022,4040349-I-22-5490257,"11,827.56",ACCEPT CARE LTD.
Adult and Health Services,Head of Adults,Third Party Payments,478101,Purchase of Care,01/09/2022,4040349-I-22-5490274,"16,458.75",ACCEPT CARE LTD.
Adult and Health Services,Head of Adults,Third Party Payments,478101,Purchase of Care,01/09/2022,4040349-I-22-5490303,"35,479.50",ACCEPT CARE LTD.
Adult and Health Services,Head of Adults,Third Party Payments,478101,Purchase of Care,01/09/2022,4040349-I-22-5490341,"36,183.30",ACCEPT CARE LTD.
Adult and Health Services,Head of Adults,Third Party Payments,478101,Purchase of Care,01/09/2022,4040349-I-22-5490342,"21,330.24",ACCEPT CARE LTD.
Adult and Health Services,Head of Adults,Third Party Payments,478101,Purchase of Care,01/09/2022,4040349-I-22-5490399,"8,006.40",ACCEPT CARE LTD.
Adult and Health Services,Head of Adults,Third Party Payments,473101,Purchase of Care,01/09/2022,4040349-I-22-5490504,"4,736.04",ACCEPT CARE LTD.
Dedicated Schools Grant BG0015,DSG High Needs Block,Third Party Payments,425005,Rendered by Voluntary Organisations,01/09/2022,4040556-PIG_138300,"11,482.00",ACORN CARE & EDUCATION LTD.
Children and Young Peoples Services,Head of Childrens Social Care,Third Party Payments,425040,Rendered by Voluntary Organisations,01/09/2022,4040557-PIG_138915,"15,908.90",ACORN CARE (NE) LTD.
Children and Young Peoples Services,Head of Childrens Social Care,Third Party Payments,425040,Rendered by Voluntary Organisations,01/09/2022,4040558-PIG_138902,"12,078.48",ACORN HOUSE (FOSTERING SERVICES) LTD.
Adult and Health Services,Head of Adults,Third Party Payments,470101,Purchase of Care,01/09/2022,4040559-I-22-5490580,"47,736.16",ACTION FOR CARE LTD.
Adult and Health Services,Head of Adults,Third Party Payments,470101,Purchase of Care,01/09/2022,4040568-I-22-5490623,"2,610.44",AKARI CARE LTD.
Adult and Health Services,Head of Adults,Third Party Payments,474101,Purchase of Care,01/09/2022,4040569-I-22-5490853,"5,803.92",AKARI CARE LTD.
Adult and Health Services,Head of Adults,Third Party Payments,474101,Purchase of Care,01/09/2022,4040570-I-22-5490606,"81,863.94",AKARI CARE LTD.
Adult and Health Services,Head of Adults,Third Party Payments,474101,Purchase of Care,01/09/2022,4040571-I-22-5490739,"2,559.24",AKARI CARE LTD.
Adult and Health Services,Head of Adults,Third Party Payments,470101,Purchase of Care,01/09/2022,4040572-I-22-5490809,"106,702.16",AKARI CARE LTD.
Children and Young Peoples Services,Head of Childrens Social Care,Third Party Payments,425021,Rendered by Voluntary Organisations,01/09/2022,4040585-PIG_138258,"32,640.00",ALEXANDERS HOUSE.
Adult and Health Services,Head of Adults,Third Party Payments,470101,Purchase of Care,01/09/2022,4040592-I-22-5490610,"112,821.25",ALLIANCE CARE (TRENDLEWOOD) LTD.
Adult and Health Services,Head of Adults,Third Party Payments,472101,Purchase of Care,01/09/2022,4040593-I-22-5490479,"5,876.64",ALLIED HEALTH-SERVICES LTD T/A ALLIED HEALTHCARE.
Children and Young Peoples Services,Head of Childrens Social Care,Third Party Payments,425021,Rendered by Voluntary Organisations,01/09/2022,4040595-PIG_138257,"22,708.00",AMBERLEIGH CARE LTD.
Adult and Health Services,Head of Adults,Third Party Payments,470101,Purchase of Care,01/09/2022,4040600-I-22-5490734,"15,784.00",ANCHOR CAREHOMES LTD.
Adult and Health Services,Head of Adults,Third Party Payments,470101,Purchase of Care,01/09/2022,4040601-I-22-5490694,"61,743.54",ANCHOR HANOVER GROUP.
Adult and Health Services,Commissioning inc Supporting People,Third Party Payments,441001,Supporting People E441,01/09/2022,4040602-2298118,"3,306.52",ANCHOR HANOVER GROUP.
Adult and Health Services,Head of Adults,Third Party Payments,470101,Purchase of Care,01/09/2022,4040603-I-22-5490844,"20,813.16",ANCHOR TRUST.
Adult and Health Services,Head of Adults,Third Party Payments,472101,Purchase of Care,01/09/2022,4040619-I-22-5490250,"1,201.20",APM CLEANING LTD.
Children and Young Peoples Services,Head of Childrens Social Care,Third Party Payments,486020,Service level agreements E486,01/09/2022,4040620-PIG_138325,549.00,APOLLO HOME HEALTHCARE LTD.
Children and Young Peoples Services,Head of Childrens Social Care,Third Party Payments,425023,Rendered by Voluntary Organisations,01/09/2022,4040621-PIG_138898,"9,884.00",APPLETREE TREATMENT CENTRE LTD.
Children and Young Peoples Services,Head of Childrens Social Care,Third Party Payments,425021,Rendered by Voluntary Organisations,01/09/2022,4040622-PIG_138887,"119,047.50",ARTEMIS SUPPORT LTD.
Adult and Health Services,Head of Adults,Third Party Payments,470101,Purchase of Care,01/09/2022,4040624-I-22-5490784,"38,622.04",ASCOT CARE NORTH EAST LTD..
Adult and Health Services,Head of Adults,Third Party Payments,470101,Purchase of Care,01/09/2022,4040625-I-22-5490827,"5,403.80",ASHBOURNE LODGE CARE HOME.
Adult and Health Services,Head of Adults,Third Party Payments,470101,Purchase of Care,01/09/2022,4040629-I-22-5490786,"1,324.72",ASPIRE CARE GROUP T/A GRASMERE LODGE.
Adult and Health Services,Head of Adults,Third Party Payments,470101,Purchase of Care,01/09/2022,4040630-I-22-5490661,"7,868.40",ASPIRE CARE GROUP.
Adult and Health Services,Head of Adults,Third Party Payments,470101,Purchase of Care,01/09/2022,4040631-I-22-5490255,691.20,ASPIRE CARE GROUP.
Adult and Health Services,Head of Adults,Third Party Payments,470101,Purchase of Care,01/09/2022,4040631-I-22-5490586,"16,354.92",ASPIRE CARE GROUP.
Adult and Health Services,Head of Adults,Third Party Payments,470101,Purchase of Care,01/09/2022,4040632-I-22-5490736,"74,586.88",ASPIRE CARE GROUP.
Adult and Health Services,Head of Adults,Third Party Payments,478101,Purchase of Care,01/09/2022,4040633-I-22-5490332,"3,808.84",ASPIRE HEALTHCARE LTD.
Adult and Health Services,Head of Adults,Third Party Payments,474101,Purchase of Care,01/09/2022,4040635-I-22-5490754,"4,645.72",ATLAS CARE HOMES LTD.
Adult and Health Services,Head of Adults,Third Party Payments,478101,Purchase of Care,01/09/2022,4040640-I-22-5490268,"11,312.96",AUTISM CARE UK (4) LTD.
Adult and Health Services,Head of Adults,Third Party Payments,478101,Purchase of Care,01/09/2022,4040640-I-22-5490438,"21,732.64",AUTISM CARE UK (4) LTD.
Adult and Health Services,Head of Adults,Third Party Payments,478101,Purchase of Care,01/09/2022,4040640-I-22-5490521,"13,798.32",AUTISM CARE UK (4) LTD.
Adult and Health Services,Head of Adults,Third Party Payments,478101,Purchase of Care,01/09/2022,4040640-I-22-5490528,"14,536.52",AUTISM CARE UK (4) LTD.
Adult and Health Services,Head of Adults,Third Party Payments,470101,Purchase of Care,01/09/2022,4040640-I-22-5490652,"28,340.96",AUTISM CARE UK (4) LTD.
Adult and Health Services,Head of Adults,Third Party Payments,470101,Purchase of Care,01/09/2022,4040641-I-22-5490735,"2,747.16",AVERY HEALTH CARE LTD T/A HIGHCLIFFE CARE HOME.
Children and Young Peoples Services,Head of Childrens Social Care,Third Party Payments,425040,Rendered by Voluntary Organisations,01/09/2022,4040642-PIG_138234,"3,226.48",BANYA FAMILY PLACEMENT AGENCY LTD.
Adult and Health Services,Head of Adults,Third Party Payments,470101,Purchase of Care,01/09/2022,4040644-I-22-5490699,"4,400.00",BARCHESTER HEALTHCARE HOMES LTD.
Adult and Health Services,Head of Adults,Third Party Payments,474101,Purchase of Care,01/09/2022,4040645-I-22-5490756,"1,900.00",BARCHESTER HEALTHCARE HOMES LTD.
Adult and Health Services,Head of Adults,Third Party Payments,470101,Purchase of Care,01/09/2022,4040646-I-22-5490688,"1,233.12",BARCHESTER HEALTHCARE HOMES LTD.
Adult and Health Services,Head of Adults,Third Party Payments,474101,Purchase of Care,01/09/2022,4040647-I-22-5490692,"3,281.62",BARCHESTER HEALTHCARE HOMES LTD.
Adult and Health Services,Head of Adults,Third Party Payments,474101,Purchase of Care,01/09/2022,4040648-I-22-5490680,"3,393.08",BARCHESTER HEALTHCARE HOMES LTD.
Adult and Health Services,Head of Adults,Third Party Payments,474101,Purchase of Care,01/09/2022,4040649-I-22-5490712,"11,155.20",BARCHESTER HEALTHCARE HOMES LTD.
Adult and Health Services,Head of Adults,Third Party Payments,474101,Purchase of Care,01/09/2022,4040649-I-22-5490715,"52,571.35",BARCHESTER HEALTHCARE HOMES LTD.
Adult and Health Services,Head of Adults,Third Party Payments,470101,Purchase of Care,01/09/2022,4040650-I-22-5490658,"12,342.00",BARCHESTER HEALTHCARE HOMES LTD.
Adult and Health Services,Head of Adults,Third Party Payments,470101,Purchase of Care,01/09/2022,4040651-I-22-5490704,"31,676.16",BARCHESTER HEALTHCARE HOMES LTD.
Adult and Health Services,Head of Adults,Third Party Payments,470101,Purchase of Care,01/09/2022,4040653-I-22-5490727,"7,778.16",BARCHESTER HEALTHCARE HOMES LTD.
Children and Young Peoples Services,Head of Childrens Social Care,Third Party Payments,425040,Rendered by Voluntary Organisations,01/09/2022,4040654-PIG_138326,"15,594.42",BARNARDOS BELIEVE IN CHILDREN.
Children and Young Peoples Services,Head of Childrens Social Care,Third Party Payments,425021,Rendered by Voluntary Organisations,01/09/2022,4040657-PIG_138917,"52,264.64",BDT CARE SOLUTIONS LTD.
Children and Young Peoples Services,Head of Childrens Social Care,Third Party Payments,425021,Rendered by Voluntary Organisations,01/09/2022,4040657-PIG_138918,"60,677.45",BDT CARE SOLUTIONS LTD.
Adult and Health Services,Head of Adults,Third Party Payments,470101,Purchase of Care,01/09/2022,4040658-I-22-5490646,"16,469.13",BEAMISH RESIDENTIAL CARE HOME LTD.
Adult and Health Services,Head of Adults,Third Party Payments,478101,Purchase of Care,01/09/2022,4040660-I-22-5490307,"17,762.72",BEECHFIELD CARE & SUPPORT LTD.
Adult and Health Services,Head of Adults,Third Party Payments,470101,Purchase of Care,01/09/2022,4040663-I-22-5490796,"21,618.64",BENTON CARE SERVICES LTD.
Adult and Health Services,Commissioning inc Supporting People,Third Party Payments,442002,Supporting People E442,01/09/2022,4040667-2298559,"16,127.35",BID SERVICES.
Adult and Health Services,Head of Adults,Third Party Payments,472101,Purchase of Care,01/09/2022,4040671-I-22-5490292,"17,717.24",BLOSSOM HOME CARE.
Adult and Health Services,Head of Adults,Third Party Payments,470101,Purchase of Care,01/09/2022,4040672-I-22-5490546,"4,819.50",BONDCARE WILLINGTON LTD.
Adult and Health Services,Head of Adults,Third Party Payments,470101,Purchase of Care,01/09/2022,4040672-I-22-5490849,"121,789.34",BONDCARE WILLINGTON LTD.
Adult and Health Services,Head of Adults,Third Party Payments,470101,Purchase of Care,01/09/2022,4040673-I-22-5490339,"1,131.84",BONDCARE WILLINGTON LTD.
Adult and Health Services,Head of Adults,Third Party Payments,470101,Purchase of Care,01/09/2022,4040673-I-22-5490663,"65,334.88",BONDCARE WILLINGTON LTD.
Adult and Health Services,Head of Adults,Third Party Payments,478101,Purchase of Care,01/09/2022,4040674-I-22-5490374,"31,182.24",BONDCARE WILLINGTON LTD.
Adult and Health Services,Head of Adults,Third Party Payments,478101,Purchase of Care,01/09/2022,4040674-I-22-5490522,"79,824.44",BONDCARE WILLINGTON LTD.
Adult and Health Services,Head of Adults,Third Party Payments,470101,Purchase of Care,01/09/2022,4040675-I-22-5490421,"1,760.64",BONDCARE WILLINGTON LTD.
Adult and Health Services,Head of Adults,Third Party Payments,474101,Purchase of Care,01/09/2022,4040675-I-22-5490729,"104,634.82",BONDCARE WILLINGTON LTD.
Adult and Health Services,Head of Adults,Third Party Payments,470101,Purchase of Care,01/09/2022,4040676-I-22-5490604,"4,597.32",BOWDEN DERRA PARK LTD.
Adult and Health Services,Head of Adults,Third Party Payments,470101,Purchase of Care,01/09/2022,4040681-I-22-5490837,"59,345.58",BROOMHOUSE CARE LTD.
Adult and Health Services,Head of Adults,Third Party Payments,473101,Purchase of Care,01/09/2022,4040682-I-22-5490458,"1,903.38",BULLION COMMUNITY RESOURCE CENTRE.
Adult and Health Services,Head of Adults,Third Party Payments,470101,Purchase of Care,01/09/2022,4040683-I-22-5490821,"2,512.00",BURLINGTON CARE LTD.
Children and Young Peoples Services,Head of Childrens Social Care,Third Party Payments,425020,Rendered by Voluntary Organisations,01/09/2022,4040684-PIG_138914,"9,490.00",BUTTERWICK LTD..
Dedicated Schools Grant BG0015,DSG High Needs Block,Third Party Payments,425005,Rendered by Voluntary Organisations,01/09/2022,4040687-PIG_138302,"3,386.68",CAMBIAN CHILDCARE LTD T/A HARTLEPOOL SCHOOL.
Dedicated Schools Grant BG0015,DSG High Needs Block,Third Party Payments,440080,Other third party payments E440,01/09/2022,4040687-PIG_138304,"5,194.92",CAMBIAN CHILDCARE LTD T/A HARTLEPOOL SCHOOL.
Children and Young Peoples Services,Head of Childrens Social Care,Third Party Payments,425021,Rendered by Voluntary Organisations,01/09/2022,4040688-PIG_138264,"18,900.00",CAMBIAN CHILDCARE LTD.
Children and Young Peoples Services,Head of Childrens Social Care,Third Party Payments,425021,Rendered by Voluntary Organisations,01/09/2022,4040689-PIG_138262,"22,600.00",CAMBIAN CHILDCARE LTD.
Children and Young Peoples Services,Head of Childrens Social Care,Third Party Payments,425021,Rendered by Voluntary Organisations,01/09/2022,4040689-PIG_138263,"18,200.00",CAMBIAN CHILDCARE LTD.
Children and Young Peoples Services,Head of Childrens Social Care,Third Party Payments,425023,Rendered by Voluntary Organisations,01/09/2022,4040690-PIG_138303,"18,035.72",CAMBIAN WHINFELL SCHOOL LTD.
Children and Young Peoples Services,Head of Childrens Social Care,Third Party Payments,425021,Rendered by Voluntary Organisations,01/09/2022,4040693-PIG_138265,"18,200.00",CAPSTONE CARE PROVIDER LTD.
Adult and Health Services,Head of Adults,Third Party Payments,470101,Purchase of Care,01/09/2022,4040694-I-22-5490764,"64,383.41",CARE UK COMMUNITY PARTNERSHIPS LTD.
Adult and Health Services,Head of Adults,Third Party Payments,470101,Purchase of Care,01/09/2022,4040695-I-22-5490852,"5,792.64",CARE UK COMMUNITY PARTNERSHIPS LTD.
Adult and Health Services,Head of Adults,Third Party Payments,474101,Purchase of Care,01/09/2022,4040696-I-22-5490706,"96,245.65",CARE UK COMMUNITY PARTNERSHIPS LTD.
Adult and Health Services,Head of Adults,Third Party Payments,470101,Purchase of Care,01/09/2022,4040697-I-22-5490773,"2,643.48",CARE UK COMMUNITY PARTNERSHIPS LTD.
Adult and Health Services,Head of Adults,Third Party Payments,474101,Purchase of Care,01/09/2022,4040698-I-22-5490681,"2,428.00",CARE UK COMMUNITY PARTNERSHIPS LTD.
Adult and Health Services,Head of Adults,Third Party Payments,470101,Purchase of Care,01/09/2022,4040699-I-22-5490747,"45,834.58",CARE UK COMMUNITY PARTNERSHIPS LTD.
Adult and Health Services,Head of Adults,Third Party Payments,470101,Purchase of Care,01/09/2022,4040700-I-22-5490744,"2,966.92",CARE UK COMMUNITY PARTNERSHIPS LTD.
Adult and Health Services,Head of Adults,Third Party Payments,470101,Purchase of Care,01/09/2022,4040701-I-22-5490707,"2,692.00",CARE UK COMMUNITY PARTNERSHIPS LTD.
Adult and Health Services,Head of Adults,Third Party Payments,472101,Purchase of Care,01/09/2022,4040702-I-22-5490382,"24,683.26",CARE VANTAGE LTD.
Adult and Health Services,Head of Adults,Third Party Payments,474101,Purchase of Care,01/09/2022,4040703-I-22-5490640,"8,713.72",CARELINE LIFESTYLES (UK) LTD.
Adult and Health Services,Head of Adults,Third Party Payments,470101,Purchase of Care,01/09/2022,4040704-I-22-5490768,"2,936.36",CARELINE LIFESTYLES (UK) LTD.
Adult and Health Services,Head of Adults,Third Party Payments,470101,Purchase of Care,01/09/2022,4040705-I-22-5490662,"3,860.84",CARELINE LIFESTYLES (UK) LTD.
Adult and Health Services,Head of Adults,Third Party Payments,474101,Purchase of Care,01/09/2022,4040706-I-22-5490682,"13,257.48",CARELINE LIFESTYLES (UK) LTD.
Adult and Health Services,Head of Adults,Third Party Payments,474101,Purchase of Care,01/09/2022,4040707-I-22-5490716,"22,557.48",CARELINE LIFESTYLES.
Adult and Health Services,Head of Adults,Third Party Payments,470101,Purchase of Care,01/09/2022,4040708-I-22-5490850,"76,287.69",CAREWELL (HEALTH CARE) LTD.
Adult and Health Services,Head of Adults,Third Party Payments,472101,Purchase of Care,01/09/2022,4040714-I-22-5490299,"29,773.30",CASTLE CARE TEESDALE LTD.
Adult and Health Services,Head of Adults,Third Party Payments,478101,Purchase of Care,01/09/2022,4040715-I-22-5556752,"32,160.00",CASTLE VIEW GROUP TRAINING.
Adult and Health Services,Head of Adults,Third Party Payments,470101,Purchase of Care,01/09/2022,4040716-I-22-5490615,"20,920.16",CASTLEBANK CARE HOME LTD.
Children and Young Peoples Services,Head of Childrens Social Care,Third Party Payments,425021,Rendered by Voluntary Organisations,01/09/2022,4040719-PIG_138888,"6,000.00",CATHOLIC CARE (DIOCESE OF LEEDS).
Adult and Health Services,Head of Adults,Third Party Payments,472101,Purchase of Care,01/09/2022,4040721-I-22-5490242,"5,086.67",CEL HOMECARE LTD.
Children and Young Peoples Services,Head of Childrens Social Care,Third Party Payments,425040,Rendered by Voluntary Organisations,01/09/2022,4040722-PIG_138236,"9,506.21",CHANGING FUTURES FOSTERING.
Children and Young Peoples Services,Head of Childrens Social Care,Third Party Payments,425040,Rendered by Voluntary Organisations,01/09/2022,4040729-PIG_138268,"129,276.91",CHILDRENS FAMILY TRUST.
Adult and Health Services,Head of Adults,Third Party Payments,470101,Purchase of Care,01/09/2022,4040748-I-22-5490719,"2,540.00",CLEVEDEN CARE LTD T/A TEESDALE LODGE NURSING HOME.
Adult and Health Services,Head of Adults,Third Party Payments,470101,Purchase of Care,01/09/2022,4040749-I-22-5490834,"2,725.36",CLYDE CARE LIMITED T/A SPRINGHILL CAREHOME.
Adult and Health Services,Head of Adults,Third Party Payments,470101,Purchase of Care,01/09/2022,4040750-I-22-5346747,"9,428.64",COLEG ELIDYR CAMPHILL COMMUNITIES.
Adult and Health Services,Head of Adults,Third Party Payments,470101,Purchase of Care,01/09/2022,4040750-I-22-5490617,"9,428.64",COLEG ELIDYR CAMPHILL COMMUNITIES.
Adult and Health Services,Head of Adults,Third Party Payments,472101,Purchase of Care,01/09/2022,4040754-I-22-5490420,"86,206.42",COMFORT CALL LTD.
Dedicated Schools Grant BG0015,DSG High Needs Block,Third Party Payments,440080,Other third party payments E440,01/09/2022,4040755-PIG_138922,"11,500.00",COMMON THREAD LTD.
Adult and Health Services,Head of Adults,Third Party Payments,478101,Purchase of Care,01/09/2022,4040756-I-22-5490350,"24,572.68",COMMUNITY INTEGRATED CARE LTD.
Adult and Health Services,Head of Adults,Third Party Payments,478101,Purchase of Care,01/09/2022,4040756-I-22-5490351,"21,399.84",COMMUNITY INTEGRATED CARE LTD.
Adult and Health Services,Head of Adults,Third Party Payments,478101,Purchase of Care,01/09/2022,4040756-I-22-5490434,"14,334.44",COMMUNITY INTEGRATED CARE LTD.
Adult and Health Services,Head of Adults,Third Party Payments,478101,Purchase of Care,01/09/2022,4040756-I-22-5490445,"15,861.04",COMMUNITY INTEGRATED CARE LTD.
Adult and Health Services,Head of Adults,Third Party Payments,478101,Purchase of Care,01/09/2022,4040756-I-22-5490446,"15,385.33",COMMUNITY INTEGRATED CARE LTD.
Adult and Health Services,Head of Adults,Third Party Payments,478101,Purchase of Care,01/09/2022,4040756-I-22-5490447,"19,764.84",COMMUNITY INTEGRATED CARE LTD.
Adult and Health Services,Head of Adults,Third Party Payments,478101,Purchase of Care,01/09/2022,4040756-I-22-5490516,"26,226.24",COMMUNITY INTEGRATED CARE LTD.
Children and Young Peoples Services,Head of Childrens Social Care,Third Party Payments,425040,Rendered by Voluntary Organisations,01/09/2022,4040757-PIG_138320,"21,997.44",COMPASS FOSTERING NORTH LTD.
Children and Young Peoples Services,Head of Childrens Social Care,Third Party Payments,425040,Rendered by Voluntary Organisations,01/09/2022,4040758-PIG_138321,"5,100.06",COMPASS FOSTERING SOUTH.
Adult and Health Services,Head of Adults,Third Party Payments,470101,Purchase of Care,01/09/2022,4040759-I-22-5490790,"2,747.16",CONAGS CARE LTD.
Adult and Health Services,Head of Adults,Third Party Payments,472101,Purchase of Care,01/09/2022,4040760-I-22-5490243,702.00,CONFIDENCE CARE & SUPPORT LTD.
Adult and Health Services,Head of Adults,Third Party Payments,470101,Purchase of Care,01/09/2022,4040762-I-22-5490831,"8,330.52",CONSENSUS SUPPORT SERVICES LTD.
Adult and Health Services,Head of Adults,Third Party Payments,470101,Purchase of Care,01/09/2022,4040763-I-22-5490780,"2,762.16",COUNTRYWIDE CARE HOMES (2) LTD.
Adult and Health Services,Head of Adults,Third Party Payments,470101,Purchase of Care,01/09/2022,4040764-I-22-5490619,"112,338.39",COUNTRYWIDE CARE HOMES (2) LTD.
Adult and Health Services,Head of Adults,Third Party Payments,470101,Purchase of Care,01/09/2022,4040765-I-22-5490645,"8,647.00",COUNTRYWIDE CARE HOMES (2) LTD.
Adult and Health Services,Head of Adults,Third Party Payments,470101,Purchase of Care,01/09/2022,4040766-I-22-5490783,"59,572.99",COUNTRYWIDE CARE HOMES (2) LTD.
Adult and Health Services,Central/Other,Third Party Payments,474101,Purchase of Care,01/09/2022,4040767-I-22-5490845,"82,551.38",COUNTRYWIDE CARE HOMES (2) LTD.
Adult and Health Services,Head of Adults,Third Party Payments,470101,Purchase of Care,01/09/2022,4040770-I-22-5490843,"47,116.35",CRAIGARRAN LTD.
Adult and Health Services,Head of Adults,Third Party Payments,472101,Purchase of Care,01/09/2022,4040771-I-22-5490356,900.00,CREATIVE SUPPORT LTD.
Adult and Health Services,Head of Adults,Third Party Payments,478101,Purchase of Care,01/09/2022,4040771-I-22-5490443,"10,522.64",CREATIVE SUPPORT LTD.
Adult and Health Services,Head of Adults,Third Party Payments,478101,Purchase of Care,01/09/2022,4040771-I-22-5490524,"32,802.08",CREATIVE SUPPORT LTD.
Adult and Health Services,Head of Adults,Third Party Payments,478101,Purchase of Care,01/09/2022,4040771-I-22-5490527,"3,214.68",CREATIVE SUPPORT LTD.
Adult and Health Services,Head of Adults,Third Party Payments,478101,Purchase of Care,01/09/2022,4040771-I-22-5490532,"16,995.96",CREATIVE SUPPORT LTD.
Adult and Health Services,Head of Adults,Third Party Payments,472101,Purchase of Care,01/09/2022,4040772-I-22-5490424,"70,020.57",CRESCENT HOMECARE LTD.
Adult and Health Services,Head of Adults,Third Party Payments,474101,Purchase of Care,01/09/2022,4040773-I-22-5490629,"95,792.16",CROFT HOUSE (CARE) LTD.
Adult and Health Services,Head of Adults,Third Party Payments,474101,Purchase of Care,01/09/2022,4040774-I-22-5490565,"5,505.46",CROWN CARE IV LTD T/A BALMORAL COURT.
Adult and Health Services,Head of Adults,Third Party Payments,470101,Purchase of Care,01/09/2022,4040775-I-22-5490676,"189,137.80",CROWN CARE VI LTD.
Adult and Health Services,Head of Adults,Third Party Payments,470101,Purchase of Care,01/09/2022,4040776-I-22-5490737,"42,021.24",CYGNET OE LTD.
Adult and Health Services,Head of Adults,Third Party Payments,470101,Purchase of Care,01/09/2022,4040777-I-22-5490708,"18,836.36",CYGNET OE LTD.
Adult and Health Services,Central/Other,Third Party Payments,474101,Purchase of Care,01/09/2022,4040779-I-22-5490590,"52,335.87",D3 CARE LTD.
Adult and Health Services,Head of Adults,Third Party Payments,470101,Purchase of Care,01/09/2022,4040780-I-22-5490607,"15,095.60",D3 CARE LTD.
Adult and Health Services,Head of Adults,Third Party Payments,473101,Purchase of Care,01/09/2022,4040782-I-22-5490465,"4,200.00",DAISY CHAIN PROJECT TEESSIDE.
Adult and Health Services,Head of Adults,Third Party Payments,472101,Purchase of Care,01/09/2022,4040783-I-21-1308832E,588.32,DALE CARE LTD.
Adult and Health Services,Head of Adults,Third Party Payments,472101,Purchase of Care,01/09/2022,4040783-I-21-1476747D,588.32,DALE CARE LTD.
Adult and Health Services,Head of Adults,Third Party Payments,472101,Purchase of Care,01/09/2022,4040783-I-22-5490385,"490,917.85",DALE CARE LTD.
Adult and Health Services,Head of Adults,Third Party Payments,478101,Purchase of Care,01/09/2022,4040812-I-22-5490249,"13,841.33",DEACONSTAR LTD.
Adult and Health Services,Head of Adults,Third Party Payments,478101,Purchase of Care,01/09/2022,4040812-I-22-5490383,"7,673.42",DEACONSTAR LTD.
Adult and Health Services,Head of Adults,Third Party Payments,478101,Purchase of Care,01/09/2022,4040812-I-22-5490459,"14,912.83",DEACONSTAR LTD.
Adult and Health Services,Head of Adults,Third Party Payments,473101,Purchase of Care,01/09/2022,4040812-I-22-5490473,"19,316.36",DEACONSTAR LTD.
Adult and Health Services,Head of Adults,Third Party Payments,478101,Purchase of Care,01/09/2022,4040812-I-22-5490544,"11,409.60",DEACONSTAR LTD.
Adult and Health Services,Head of Adults,Third Party Payments,478101,Purchase of Care,01/09/2022,4040812-I-22-5490545,"6,088.54",DEACONSTAR LTD.
Adult and Health Services,Head of Adults,Third Party Payments,470101,Purchase of Care,01/09/2022,4040817-I-22-5490672,"47,300.64",DEVONSHIRE HOUSE CARE LTD.
Adult and Health Services,Head of Adults,Third Party Payments,470101,Purchase of Care,01/09/2022,4040819-I-22-5490745,"96,086.89",DIPTON CARE HOME LTD.
Adult and Health Services,Head of Adults,Third Party Payments,473101,Purchase of Care,01/09/2022,4040820-I-22-5490330,"6,733.00",DIRECT STEPS.
Children and Young Peoples Services,Head of Childrens Social Care,Third Party Payments,425040,Rendered by Voluntary Organisations,01/09/2022,4040821-PIG_138322,"4,498.20",DIVERSE CARE UK LTD.
Adult and Health Services,Head of Adults,Third Party Payments,470101,Purchase of Care,01/09/2022,4040827-I-22-5490732,"1,840.68",DOVE CARE LTD.
Adult and Health Services,Commissioning inc Supporting People,Third Party Payments,441001,Supporting People E441,01/09/2022,4040829-2298602,"25,312.48",DURHAM ACTION ON SINGLE HOUSING LTD.
Adult and Health Services,Head of Adults,Third Party Payments,473101,Purchase of Care,01/09/2022,4040830-I-22-5490231,"3,179.67",DURHAM ALLIANCE FOR COMMUNITY CARE.
Adult and Health Services,Head of Adults,Third Party Payments,473101,Purchase of Care,01/09/2022,4040830-I-22-5490475,"3,986.51",DURHAM ALLIANCE FOR COMMUNITY CARE.
Adult and Health Services,Head of Adults,Third Party Payments,473101,Purchase of Care,01/09/2022,4040830-I-22-5490476,"2,722.59",DURHAM ALLIANCE FOR COMMUNITY CARE.
Adult and Health Services,Head of Adults,Third Party Payments,473101,Purchase of Care,01/09/2022,4040830-I-22-5490477,"4,388.44",DURHAM ALLIANCE FOR COMMUNITY CARE.
Adult and Health Services,Head of Adults,Third Party Payments,473101,Purchase of Care,01/09/2022,4040830-I-22-5490537,"1,109.63",DURHAM ALLIANCE FOR COMMUNITY CARE.
Adult and Health Services,Head of Adults,Third Party Payments,470101,Purchase of Care,01/09/2022,4040831-I-22-5490846,"108,317.83",DURHAM CARELINE LTD.
Adult and Health Services,Head of Adults,Third Party Payments,470101,Purchase of Care,01/09/2022,4040832-I-22-5490690,"76,772.44",DURHAM CARELINE LTD.
Adult and Health Services,Head of Adults,Third Party Payments,474101,Purchase of Care,01/09/2022,4040833-I-22-5490787,"105,054.48",DURHAM CARELINE LTD.
Children and Young Peoples Services,Head of Childrens Social Care,Third Party Payments,425021,Rendered by Voluntary Organisations,01/09/2022,4040834-PIG_138266,"37,200.00",DUTY OF CARE LTD.
Children and Young Peoples Services,Head of Childrens Social Care,Third Party Payments,425021,Rendered by Voluntary Organisations,01/09/2022,4040834-PIG_138883,"34,400.00",DUTY OF CARE LTD.
Adult and Health Services,Head of Adults,Third Party Payments,474101,Purchase of Care,01/09/2022,4040836-I-22-5490788,"2,625.48",EAST CHESHIRE HOUSING CONSORTIUM LTD.
Adult and Health Services,Head of Adults,Third Party Payments,474101,Purchase of Care,01/09/2022,4040837-I-22-5490683,"20,461.91",EAST CLEVELAND M S HOME.
Adult and Health Services,Commissioning inc Supporting People,Third Party Payments,441001,Supporting People E441,01/09/2022,4040838-2299030,"5,498.48",EAST DURHAM COMMUNITY INITIATIVES LTD.
Adult and Health Services,Head of Adults,Third Party Payments,473101,Purchase of Care,01/09/2022,4040839-I-22-5490219,"22,373.38",EBONEY HOME CARE LTD.
Adult and Health Services,Head of Adults,Third Party Payments,472101,Purchase of Care,01/09/2022,4040839-I-22-5490422,"17,212.82",EBONEY HOME CARE LTD.
Adult and Health Services,Head of Adults,Third Party Payments,470101,Purchase of Care,01/09/2022,4040842-I-22-5490649,"6,489.84",EDUCATION & SERVICES FOR PEOPLE WITH AUTISM LTD (ESPA).
Adult and Health Services,Head of Adults,Third Party Payments,470101,Purchase of Care,01/09/2022,4040842-I-22-5490730,"5,374.92",EDUCATION & SERVICES FOR PEOPLE WITH AUTISM LTD (ESPA).
Adult and Health Services,Head of Adults,Third Party Payments,470101,Purchase of Care,01/09/2022,4040843-I-22-5490628,"145,887.36",EDUCATION & SERVICES FOR PEOPLE WITH AUTISM LTD (ESPA).
Adult and Health Services,Head of Adults,Third Party Payments,470101,Purchase of Care,01/09/2022,4040844-I-22-5490811,"11,554.80",EDUCATION & SERVICES FOR PEOPLE WITH AUTISM LTD (ESPA).
Adult and Health Services,Head of Adults,Third Party Payments,470101,Purchase of Care,01/09/2022,4040845-I-22-5490742,"10,200.24",EDUCATION & SERVICES FOR PEOPLE WITH AUTISM LTD (ESPA).
Adult and Health Services,Head of Adults,Third Party Payments,478101,Purchase of Care,01/09/2022,4040848-I-22-5490379,"24,567.84",ELAN CARE WHITETHORN LTD.
Adult and Health Services,Head of Adults,Third Party Payments,470101,Purchase of Care,01/09/2022,4040849-I-22-5490711,"52,518.14",ELBA CARE LTD.
Adult and Health Services,Head of Adults,Third Party Payments,470101,Purchase of Care,01/09/2022,4040857-I-22-5490841,"5,676.96",ELLERSHAW HOUSE LTD.
Adult and Health Services,Head of Adults,Third Party Payments,470101,Purchase of Care,01/09/2022,4040858-I-22-5490637,"3,264.68",ELPHA LODGE RESIDENTIAL CARE HOME  LTD.
Adult and Health Services,Head of Adults,Third Party Payments,472101,Purchase of Care,01/09/2022,4040859-I-22-5346516A,851.40,EMBRACING CARE.
Adult and Health Services,Head of Adults,Third Party Payments,472101,Purchase of Care,01/09/2022,4040859-I-22-5490386,"244,625.98",EMBRACING CARE.
Adult and Health Services,Head of Adults,Third Party Payments,478101,Purchase of Care,01/09/2022,4040859-I-22-5490471,"15,684.44",EMBRACING CARE.
Children and Young Peoples Services,Head of Childrens Social Care,Third Party Payments,440062,Other third party payments E440,01/09/2022,4040859-PIG_138238,"2,527.31",EMBRACING CARE.
Adult and Health Services,Head of Adults,Third Party Payments,478101,Purchase of Care,01/09/2022,4040860-I-22-5490226,"43,640.52",EMBRACING CARE.
Adult and Health Services,Head of Adults,Third Party Payments,473101,Purchase of Care,01/09/2022,4040866-I-22-5490211,"6,299.75",ENDEAVOUR WOODCRAFTS CIC.
Children and Young Peoples Services,Head of Childrens Social Care,Third Party Payments,425021,Rendered by Voluntary Organisations,01/09/2022,4040867-PIG_138267,"28,904.00",ENHANCED YOUNG PERSONS` CARE LTD.
Children and Young Peoples Services,Head of Childrens Social Care,Third Party Payments,425021,Rendered by Voluntary Organisations,01/09/2022,4040867-PIG_138270,"14,800.00",ENHANCED YOUNG PERSONS` CARE LTD.
Adult and Health Services,Head of Adults,Third Party Payments,470101,Purchase of Care,01/09/2022,4040869-I-22-5490631,"2,899.16",EOTHEN HOMES LTD.
Adult and Health Services,Head of Adults,Third Party Payments,470101,Purchase of Care,01/09/2022,4040870-I-22-5490733,"1,304.24",EOTHEN HOMES LTD.
Adult and Health Services,Head of Adults,Third Party Payments,470101,Purchase of Care,01/09/2022,4040874-I-22-5490795,"66,552.35",ESSENTIAL CARE & SUPPORT LTD.
Adult and Health Services,Head of Adults,Third Party Payments,478101,Purchase of Care,01/09/2022,4040875-I-22-5490246,"13,309.96",ESSENTIAL CARE & SUPPORT LTD.
Adult and Health Services,Head of Adults,Third Party Payments,478101,Purchase of Care,01/09/2022,4040875-I-22-5490267,"27,773.80",ESSENTIAL CARE & SUPPORT LTD.
Adult and Health Services,Head of Adults,Third Party Payments,478101,Purchase of Care,01/09/2022,4040875-I-22-5490314,"17,742.48",ESSENTIAL CARE & SUPPORT LTD.
Adult and Health Services,Head of Adults,Third Party Payments,478101,Purchase of Care,01/09/2022,4040875-I-22-5490316,"24,873.48",ESSENTIAL CARE & SUPPORT LTD.
Adult and Health Services,Head of Adults,Third Party Payments,478101,Purchase of Care,01/09/2022,4040875-I-22-5490364,"32,271.84",ESSENTIAL CARE & SUPPORT LTD.
Adult and Health Services,Head of Adults,Third Party Payments,478101,Purchase of Care,01/09/2022,4040875-I-22-5490418,"23,100.60",ESSENTIAL CARE & SUPPORT LTD.
Adult and Health Services,Head of Adults,Third Party Payments,472101,Purchase of Care,01/09/2022,4040875-I-22-5490433,"5,220.04",ESSENTIAL CARE & SUPPORT LTD.
Adult and Health Services,Head of Adults,Third Party Payments,478101,Purchase of Care,01/09/2022,4040875-I-22-5490491,"40,928.44",ESSENTIAL CARE & SUPPORT LTD.
Adult and Health Services,Head of Adults,Third Party Payments,478101,Purchase of Care,01/09/2022,4040875-I-22-5490520,"14,798.80",ESSENTIAL CARE & SUPPORT LTD.
Adult and Health Services,Head of Adults,Third Party Payments,478101,Purchase of Care,01/09/2022,4040875-I-22-5490531,"18,439.56",ESSENTIAL CARE & SUPPORT LTD.
Adult and Health Services,Head of Adults,Third Party Payments,472101,Purchase of Care,01/09/2022,4040879-I-22-5490367,"4,501.44",ETHICARE (DURHAM) LTD.
Adult and Health Services,Head of Adults,Third Party Payments,478101,Purchase of Care,01/09/2022,4040879-I-22-5490378,"6,552.64",ETHICARE (DURHAM) LTD.
Adult and Health Services,Head of Adults,Third Party Payments,478101,Purchase of Care,01/09/2022,4040879-I-22-5490406,"9,352.76",ETHICARE (DURHAM) LTD.
Adult and Health Services,Head of Adults,Third Party Payments,478151,Purchase of Care,01/09/2022,4040880-ED00011,952.00,ETHICARE (DURHAM) LTD.
Adult and Health Services,Head of Adults,Third Party Payments,473101,Purchase of Care,01/09/2022,4040880-I-22-5490321,"27,130.91",ETHICARE (DURHAM) LTD.
Adult and Health Services,Head of Adults,Third Party Payments,470101,Purchase of Care,01/09/2022,4040882-I-22-5490721,"2,496.00",EXCLUSIVE CARE GROUP T/A EASTBOURNE CARE HOME.
Adult and Health Services,Head of Adults,Third Party Payments,474101,Purchase of Care,01/09/2022,4040883-I-22-5490714,"30,009.56",EXEMPLAR LTD T/A WYKEWOOD CARE HOME.
Children and Young Peoples Services,Head of Childrens Social Care,Third Party Payments,425021,Rendered by Voluntary Organisations,01/09/2022,4040884-PIG_138889,"17,929.20",FAIRFIELD RESIDENTIAL LTD T/A FAIRFIELD HOUSE & FAIRFIELD SCHOOL.
Children and Young Peoples Services,Head of Childrens Social Care,Third Party Payments,425040,Rendered by Voluntary Organisations,01/09/2022,4040890-PIG_138239,"5,310.48",FIRST FOR FOSTERING LTD.
Adult and Health Services,Head of Adults,Third Party Payments,473101,Purchase of Care,01/09/2022,4040891-I-22-5490506,934.08,FIVE ACRES COMMUNITY GARDEN LTD.
Children and Young Peoples Services,Head of Childrens Social Care,Third Party Payments,425040,Rendered by Voluntary Organisations,01/09/2022,4040892-PIG_138240,"8,215.96",FIVE RIVERS CHILD CARE LTD.
Children and Young Peoples Services,Head of Childrens Social Care,Third Party Payments,425021,Rendered by Voluntary Organisations,01/09/2022,4040893-PIG_138890,"6,884.55",FOOTSTEPS CARE LTD.
Children and Young Peoples Services,Head of Childrens Social Care,Third Party Payments,440038,Other third party payments E440,01/09/2022,4040894-PIG_138241,"90,929.44",FOREVER CARE LTD.
Children and Young Peoples Services,Head of Childrens Social Care,Third Party Payments,425040,Rendered by Voluntary Organisations,01/09/2022,4040895-PIG_138242,"104,792.37",FOSTER CARE ASSOCIATES LTD.
Children and Young Peoples Services,Head of Childrens Social Care,Third Party Payments,425040,Rendered by Voluntary Organisations,01/09/2022,4040896-PIG_138243,"40,830.28",FOSTER CARE SOLUTIONS LTD.
Children and Young Peoples Services,Head of Childrens Social Care,Third Party Payments,425040,Rendered by Voluntary Organisations,01/09/2022,4040897-PIG_138244,"40,947.35",FOSTER CARES LTD.
Children and Young Peoples Services,Head of Childrens Social Care,Third Party Payments,425040,Rendered by Voluntary Organisations,01/09/2022,4040898-PIG_138245,"40,954.42",FOSTERING PEOPLE LTD.
Adult and Health Services,Public Health CC0450,Third Party Payments,442002,Supporting People E442,01/09/2022,4040899-1553995,"22,384.40",FOUNDATION.
Adult and Health Services,Head of Adults,Third Party Payments,470101,Purchase of Care,01/09/2022,4040900-I-22-5490782,"60,613.86",FOUR SEASONS (NO 9) LTD.
Adult and Health Services,Head of Adults,Third Party Payments,470101,Purchase of Care,01/09/2022,4040901-I-22-5490598,"78,334.81",FOUR SEASONS HOMES NO 1 LTD.
Adult and Health Services,Head of Adults,Third Party Payments,470101,Purchase of Care,01/09/2022,4040902-I-22-5490743,"2,667.16",FOUR SEASONS T/A MAPLE LODGE CARE HOME (SUNDERLAND).
Adult and Health Services,Head of Adults,Third Party Payments,474101,Purchase of Care,01/09/2022,4040912-I-22-5490668,"15,841.80",GAINFORD CARE HOMES LTD.
Adult and Health Services,Head of Adults,Third Party Payments,470101,Purchase of Care,01/09/2022,4040913-I-22-5490577,"97,563.92",GAINFORD CARE HOMES LTD.
Adult and Health Services,Head of Adults,Third Party Payments,474101,Purchase of Care,01/09/2022,4040913-I-22-5490851,"55,669.63",GAINFORD CARE HOMES LTD.
Adult and Health Services,Head of Adults,Third Party Payments,470101,Purchase of Care,01/09/2022,4040915-I-22-5490705,"95,693.01",GAINFORD CARE HOMES LTD.
Adult and Health Services,Head of Adults,Third Party Payments,474101,Purchase of Care,01/09/2022,4040916-I-22-5490667,"121,500.88",GAINFORD CARE HOMES LTD.
Adult and Health Services,Head of Adults,Third Party Payments,470101,Purchase of Care,01/09/2022,4040917-I-22-5490738,"76,527.70",GAINFORD CARE HOMES LTD.
Adult and Health Services,Head of Adults,Third Party Payments,470101,Purchase of Care,01/09/2022,4040918-I-22-5490749,"75,923.71",GAINFORD CARE HOMES LTD.
Adult and Health Services,Head of Adults,Third Party Payments,473101,Purchase of Care,01/09/2022,4040919-I-22-5490392,"46,193.48",GAPPS DAY SERVICES LTD.
Children and Young Peoples Services,Head of Childrens Social Care,Third Party Payments,425020,Rendered by Voluntary Organisations,01/09/2022,4040924-PIG_138327,"11,724.00",GATESHEAD COUNCIL.
Adult and Health Services,Head of Adults,Third Party Payments,470101,Purchase of Care,01/09/2022,4040934-I-22-5490822,"2,734.24",GMA HEALTHCARE LTD T/A FOUNTAINS COURT CARE HOME.
Adult and Health Services,Head of Adults,Third Party Payments,470101,Purchase of Care,01/09/2022,4040937-I-22-5490584,"2,444.00",GREATHAM HOSPITAL BROTHER HOUSE.
Adult and Health Services,Head of Adults,Third Party Payments,470101,Purchase of Care,01/09/2022,4040938-I-22-5490823,"2,364.60",GREEN CARE HOMES LTD.
Children and Young Peoples Services,Head of Childrens Social Care,Third Party Payments,425021,Rendered by Voluntary Organisations,01/09/2022,4040939-PIG_138271,"50,400.00",GREENLEAF HOUSE CO LTD.
Adult and Health Services,Head of Adults,Third Party Payments,473101,Purchase of Care,01/09/2022,4040941-I-22-5490233,"6,516.23",GROWING TOGETHER DURHAM LTD.
Adult and Health Services,Head of Adults,Third Party Payments,473101,Purchase of Care,01/09/2022,4040941-I-22-5490331,"2,636.68",GROWING TOGETHER DURHAM LTD.
Adult and Health Services,Commissioning inc Supporting People,Third Party Payments,441001,Supporting People E441,01/09/2022,4040943-2265246,"25,440.16",HARBOUR SUPPORT SERVICES.
Adult and Health Services,Head of Adults,Third Party Payments,473101,Purchase of Care,01/09/2022,4040948-I-22-5490218,"14,184.00",HASWELL & DISTRICT MENCAP SOCIETY.
Adult and Health Services,Head of Adults,Third Party Payments,470101,Purchase of Care,01/09/2022,4040950-I-22-5490588,"90,453.36",HC-ONE BEAMISH LTD.
Adult and Health Services,Head of Adults,Third Party Payments,470101,Purchase of Care,01/09/2022,4040951-I-22-5490678,"107,150.04",HC-ONE BEAMISH LTD.
Adult and Health Services,Head of Adults,Third Party Payments,470101,Purchase of Care,01/09/2022,4040952-I-22-5490579,"88,701.83",HC-ONE BEAMISH LTD.
Adult and Health Services,Head of Adults,Third Party Payments,470101,Purchase of Care,01/09/2022,4040953-I-22-5490813,"64,131.60",HC-ONE BEAMISH LTD.
Adult and Health Services,Head of Adults,Third Party Payments,474101,Purchase of Care,01/09/2022,4040954-I-22-5490731,"99,302.86",HC-ONE BEAMISH LTD.
Adult and Health Services,Head of Adults,Third Party Payments,474101,Purchase of Care,01/09/2022,4040956-I-22-5490746,"62,676.50",HC-ONE LTD.
Adult and Health Services,Head of Adults,Third Party Payments,470101,Purchase of Care,01/09/2022,4040957-I-22-5490723,"2,807.96",HC-ONE LTD.
Adult and Health Services,Head of Adults,Third Party Payments,470101,Purchase of Care,01/09/2022,4040959-I-22-5490728,"49,969.42",HC-ONE LTD.
Adult and Health Services,Head of Adults,Third Party Payments,470101,Purchase of Care,01/09/2022,4040960-I-22-5490654,"71,770.37",HC-ONE LTD.
Adult and Health Services,Head of Adults,Third Party Payments,470101,Purchase of Care,01/09/2022,4040961-I-22-5490848,"86,950.48",HC-ONE LTD.
Adult and Health Services,Head of Adults,Third Party Payments,470101,Purchase of Care,01/09/2022,4040962-I-22-5490760,"60,977.90",HC-ONE LTD.
Adult and Health Services,Head of Adults,Third Party Payments,470101,Purchase of Care,01/09/2022,4040963-I-22-5490740,"38,547.59",HC-ONE LTD.
Adult and Health Services,Head of Adults,Third Party Payments,470101,Purchase of Care,01/09/2022,4040964-I-22-5490709,"81,870.67",HC-ONE LTD.
Adult and Health Services,Head of Adults,Third Party Payments,470101,Purchase of Care,01/09/2022,4040965-I-22-5490804,"55,599.24",HC-ONE LTD.
Adult and Health Services,Head of Adults,Third Party Payments,470101,Purchase of Care,01/09/2022,4040966-I-22-5490564,"2,484.43",HC-ONE LTD.
Adult and Health Services,Head of Adults,Third Party Payments,470101,Purchase of Care,01/09/2022,4040967-I-22-5490576,"5,922.00",HC-ONE LTD..
Adult and Health Services,Head of Adults,Third Party Payments,474101,Purchase of Care,01/09/2022,4040967-I-22-5490600,"5,922.00",HC-ONE LTD..
Adult and Health Services,Head of Adults,Third Party Payments,474101,Purchase of Care,01/09/2022,4040967-I-22-5490717,"17,883.12",HC-ONE LTD..
Adult and Health Services,Head of Adults,Third Party Payments,470101,Purchase of Care,01/09/2022,4040968-I-22-5490794,"2,187.48",HC-ONE OVAL LTD.
Adult and Health Services,Head of Adults,Third Party Payments,470101,Purchase of Care,01/09/2022,4040969-I-22-5490697,"2,356.00",HC-ONE T/A PRIORY GARDENS.
Adult and Health Services,Head of Adults,Third Party Payments,472101,Purchase of Care,01/09/2022,4040973-I-22-5155005,"5,893.87",HELPING HANDS HOME CARE.
Adult and Health Services,Head of Adults,Third Party Payments,474101,Purchase of Care,01/09/2022,4040974-I-22-5490713,"1,234.40",HENDON PIF LTD T/A ASHWOOD COURT CARE HOME.
Children and Young Peoples Services,Head of Childrens Social Care,Third Party Payments,425021,Rendered by Voluntary Organisations,01/09/2022,4040976-PIG_138272,"22,155.20",HENNESSY LIVING GROUP LTD.
Adult and Health Services,Head of Adults,Third Party Payments,470101,Purchase of Care,01/09/2022,4040977-I-22-5490752,"21,711.92",HESLEY CARE GROUP LTD.
Children and Young Peoples Services,Head of Childrens Social Care,Third Party Payments,425021,Rendered by Voluntary Organisations,01/09/2022,4040979-PIG_138892,"50,400.00",HEXAGON CARE SERVICES LTD.
Adult and Health Services,Head of Adults,Third Party Payments,472101,Purchase of Care,01/09/2022,4040980-I-22-5490220,536.96,HIGHLEA CARE LTD.
Adult and Health Services,Head of Adults,Third Party Payments,478101,Purchase of Care,01/09/2022,4040980-I-22-5490221,"1,149.64",HIGHLEA CARE LTD.
Adult and Health Services,Head of Adults,Third Party Payments,478101,Purchase of Care,01/09/2022,4040980-I-22-5490223,"8,054.72",HIGHLEA CARE LTD.
Adult and Health Services,Head of Adults,Third Party Payments,478101,Purchase of Care,01/09/2022,4040980-I-22-5490230,"5,785.20",HIGHLEA CARE LTD.
Adult and Health Services,Head of Adults,Third Party Payments,478101,Purchase of Care,01/09/2022,4040980-I-22-5490269,"8,639.24",HIGHLEA CARE LTD.
Adult and Health Services,Head of Adults,Third Party Payments,478101,Purchase of Care,01/09/2022,4040980-I-22-5490270,"17,778.61",HIGHLEA CARE LTD.
Adult and Health Services,Head of Adults,Third Party Payments,478101,Purchase of Care,01/09/2022,4040980-I-22-5490322,"14,487.00",HIGHLEA CARE LTD.
Adult and Health Services,Head of Adults,Third Party Payments,478101,Purchase of Care,01/09/2022,4040980-I-22-5490395,"58,300.03",HIGHLEA CARE LTD.
Adult and Health Services,Head of Adults,Third Party Payments,478101,Purchase of Care,01/09/2022,4040980-I-22-5490415,"6,813.68",HIGHLEA CARE LTD.
Adult and Health Services,Head of Adults,Third Party Payments,478101,Purchase of Care,01/09/2022,4040980-I-22-5490439,"34,001.11",HIGHLEA CARE LTD.
Adult and Health Services,Head of Adults,Third Party Payments,478101,Purchase of Care,01/09/2022,4040980-I-22-5490440,"20,288.16",HIGHLEA CARE LTD.
Adult and Health Services,Head of Adults,Third Party Payments,478101,Purchase of Care,01/09/2022,4040980-I-22-5490500,"1,285.60",HIGHLEA CARE LTD.
Adult and Health Services,Head of Adults,Third Party Payments,478101,Purchase of Care,01/09/2022,4040980-I-22-5490523,"16,081.16",HIGHLEA CARE LTD.
Adult and Health Services,Head of Adults,Third Party Payments,478101,Purchase of Care,01/09/2022,4040981-I-22-5490215,"9,674.08",HIGHLEA CARE LTD.
Adult and Health Services,Head of Adults,Third Party Payments,470101,Purchase of Care,01/09/2022,4040982-I-22-5490701,"64,774.25",HILL CARE 3 LTD.
Children and Young Peoples Services,Head of Childrens Social Care,Third Party Payments,440038,Other third party payments E440,01/09/2022,4040985-PIG_138246,"11,909.49",HOME GROUP LTD FORMERLY STONHAM HOUSING ASSOCIATION LTD.
Adult and Health Services,Commissioning inc Supporting People,Third Party Payments,441001,Supporting People E441,01/09/2022,4040986-1915244,"355,440.68",HOME GROUP LTD FORMERLY STONHAM HOUSING ASSOCIATION LTD.
Adult and Health Services,Head of Adults,Third Party Payments,470101,Purchase of Care,01/09/2022,4040987-I-22-5490613,"6,803.16",HOMES TOGETHER LTD.
Adult and Health Services,Head of Adults,Third Party Payments,472101,Purchase of Care,01/09/2022,4040988-I-22-5490340,"18,512.02",HOUSING 21.
Adult and Health Services,Commissioning inc Supporting People,Third Party Payments,442002,Supporting People E442,01/09/2022,4040989-2298974,"33,646.32",HUMANKIND CHARITY.
Dedicated Schools Grant BG0015,DSG High Needs Block,Third Party Payments,425005,Rendered by Voluntary Organisations,01/09/2022,4040991-PIG_138308,"92,564.96",HURWORTH HOUSE PRIORY.
Adult and Health Services,Head of Adults,Third Party Payments,470101,Purchase of Care,01/09/2022,4040996-I-22-5490836,"30,770.40",IDEAL CARE (NORTH) LTD.
Adult and Health Services,Head of Adults,Third Party Payments,473101,Purchase of Care,01/09/2022,4040997-I-22-5490376,"8,268.69",INCLUDE `IN` AUTISM.
Adult and Health Services,Head of Adults,Third Party Payments,474101,Purchase of Care,01/09/2022,4040998-I-22-5490566,"6,996.20",INDIGO CARE SERVICES LTD.
Adult and Health Services,Head of Adults,Third Party Payments,472101,Purchase of Care,01/09/2022,4040999-I-22-5490463,"6,101.16",INFINITE HOMECARE LTD.
Children and Young Peoples Services,Head of Childrens Social Care,Third Party Payments,425021,Rendered by Voluntary Organisations,01/09/2022,4041000-PIG_138893,"40,708.94",INSPIRE CARE (UK) LTD T/A FARRINGFORD.
Children and Young Peoples Services,Head of Childrens Social Care,Third Party Payments,486020,Service level agreements E486,01/09/2022,4041002-PIG_138904,"6,824.44",INTEGRATING CHILDREN.
Adult and Health Services,Head of Adults,Third Party Payments,470101,Purchase of Care,01/09/2022,4041003-I-22-5490624,"33,460.00",INTERACT CARE LTD.
Adult and Health Services,Head of Adults,Third Party Payments,470101,Purchase of Care,01/09/2022,4041004-I-22-5490585,"6,125.20",INTERACT CARE LTD.
Children and Young Peoples Services,Head of Childrens Social Care,Third Party Payments,425021,Rendered by Voluntary Organisations,01/09/2022,4041005-PIG_138273,"15,400.00",INTERACTIVE DEVELOPMENT RESIDENTIAL LTD.
Children and Young Peoples Services,Head of Childrens Social Care,Third Party Payments,425021,Rendered by Voluntary Organisations,01/09/2022,4041006-PIG_138894,"12,145.00",INVESTED CHILDCARE LTD.
Children and Young Peoples Services,Head of Childrens Social Care,Third Party Payments,425021,Rendered by Voluntary Organisations,01/09/2022,4041007-PIG_138275,"13,600.00",INVESTING IN CHILDREN CIC.
Children and Young Peoples Services,Head of Childrens Social Care,Third Party Payments,425021,Rendered by Voluntary Organisations,01/09/2022,4041077-PIG_138276,"15,200.00",JOSH`S PLACE.
Adult and Health Services,Head of Adults,Third Party Payments,473101,Purchase of Care,01/09/2022,4041078-I-22-5490259,"15,152.32",JOURNEY ENTERPRISES LTD.
Children and Young Peoples Services,Head of Childrens Social Care,Third Party Payments,425021,Rendered by Voluntary Organisations,01/09/2022,4041100-PIG_138919,"16,372.39",KEDLESTON GROUP LTD.
Children and Young Peoples Services,Head of Childrens Social Care,Third Party Payments,440062,Other third party payments E440,01/09/2022,4041103-PIG_138252,979.44,KELLY PARK LTD..
Adult and Health Services,Head of Adults,Third Party Payments,472101,Purchase of Care,01/09/2022,4041104-I-22-5490423,"280,479.05",KELLY PARK LTD..
Adult and Health Services,Head of Adults,Third Party Payments,474101,Purchase of Care,01/09/2022,4041109-I-22-5490820,"1,642.12",KEY HEALTHCARE (OPERATIONS) LTD.
Children and Young Peoples Services,Head of Childrens Social Care,Third Party Payments,425021,Rendered by Voluntary Organisations,01/09/2022,4041110-PIG_138277,"16,590.00",KEYS GROUP T/A ALLIANCE CARE AND EDUCATION LTD.
Children and Young Peoples Services,Head of Childrens Social Care,Third Party Payments,425021,Rendered by Voluntary Organisations,01/09/2022,4041110-PIG_138278,"16,590.00",KEYS GROUP T/A ALLIANCE CARE AND EDUCATION LTD.
Children and Young Peoples Services,Head of Childrens Social Care,Third Party Payments,425021,Rendered by Voluntary Organisations,01/09/2022,4041110-PIG_138279,"18,200.00",KEYS GROUP T/A ALLIANCE CARE AND EDUCATION LTD.
Children and Young Peoples Services,Head of Childrens Social Care,Third Party Payments,425021,Rendered by Voluntary Organisations,01/09/2022,4041110-PIG_138280,"20,340.00",KEYS GROUP T/A ALLIANCE CARE AND EDUCATION LTD.
Adult and Health Services,Head of Adults,Third Party Payments,474101,Purchase of Care,01/09/2022,4041112-I-22-5490675,"53,281.20",KINGSWAY CARE HOME LTD.
Children and Young Peoples Services,Head of Childrens Social Care,Third Party Payments,425021,Rendered by Voluntary Organisations,01/09/2022,4041114-PIG_138895,"11,958.00",KITES CHILDRENS SERVICES LTD.
Adult and Health Services,Head of Adults,Third Party Payments,470101,Purchase of Care,01/09/2022,4041116-I-22-5490665,"58,710.01",LAMBTON HOUSE LTD.
Adult and Health Services,Head of Adults,Third Party Payments,470101,Purchase of Care,01/09/2022,4041117-I-22-5490592,"54,167.38",LANGLEY HOUSE CARE HOME LTD.
Adult and Health Services,Head of Adults,Third Party Payments,470101,Purchase of Care,01/09/2022,4041123-I-22-5490779,"140,401.50",LEAZES HALL CARE HOME LTD.
Adult and Health Services,Head of Adults,Third Party Payments,470101,Purchase of Care,01/09/2022,4041126-I-22-5490567,"2,558.24",LENORE CARE LTD.
Adult and Health Services,Head of Adults,Third Party Payments,470101,Purchase of Care,01/09/2022,4041127-I-22-5490644,"6,999.80",LEONARD CHESHIRE DISABILITY.
Adult and Health Services,Head of Adults,Third Party Payments,470101,Purchase of Care,01/09/2022,4041128-I-22-5490763,"61,910.29",LEONARD CHESHIRE DISABILITY.
Adult and Health Services,Head of Adults,Third Party Payments,474101,Purchase of Care,01/09/2022,4041133-I-22-5490854,"35,253.21",LIFESTYLE (ABBEY CARE) LTD.
Adult and Health Services,Head of Adults,Third Party Payments,470101,Purchase of Care,01/09/2022,4041134-I-22-5346759,"13,871.40",LIFEWAYS COMMUNITY CARE LTD.
Adult and Health Services,Head of Adults,Third Party Payments,470101,Purchase of Care,01/09/2022,4041134-I-22-5490622,"13,871.40",LIFEWAYS COMMUNITY CARE LTD.
Adult and Health Services,Head of Adults,Third Party Payments,473101,Purchase of Care,01/09/2022,4041140-I-22-5490380,"9,577.72",LION MOUTH COMMUNITY INTEREST COMPANY.
Adult and Health Services,Head of Adults,Third Party Payments,470101,Purchase of Care,01/09/2022,4041146-I-22-5490793,"4,010.52",LIVING AMBITIONS T/A WHITWOOD GRANGE.
Adult and Health Services,Head of Adults,Third Party Payments,470101,Purchase of Care,01/09/2022,4041147-I-22-5490650,"2,480.00",LONGWOOD LODGE CARE LTD.
Adult and Health Services,Head of Adults,Third Party Payments,470101,Purchase of Care,01/09/2022,4041162-I-22-5490612,"21,104.40",MALHOTRA CARE HOMES LTD.
Adult and Health Services,Head of Adults,Third Party Payments,474101,Purchase of Care,01/09/2022,4041163-I-22-5490638,"75,541.75",MALHOTRA CARE HOMES LTD.
Adult and Health Services,Head of Adults,Third Party Payments,474101,Purchase of Care,01/09/2022,4041172-I-22-5490589,"70,755.39",MARIA MALLABAND CARE GROUP LTD.
Adult and Health Services,Head of Adults,Third Party Payments,470101,Purchase of Care,01/09/2022,4041178-I-22-5490751,"56,764.00",MARIPOSA CARE GROUP LTD.
Adult and Health Services,Head of Adults,Third Party Payments,470101,Purchase of Care,01/09/2022,4041179-I-22-5490656,"1,629.16",MARIPOSA CARE GROUP LTD.
Adult and Health Services,Head of Adults,Third Party Payments,470101,Purchase of Care,01/09/2022,4041180-I-22-5490842,"81,952.08",MARIPOSA CARE LTD.
Adult and Health Services,Head of Adults,Third Party Payments,474101,Purchase of Care,01/09/2022,4041191-I-22-5490781,"18,304.44",MARTON CARE HOMES LTD T/A ELIZABETH FLEMING CARE HOME.
Adult and Health Services,Head of Adults,Third Party Payments,470101,Purchase of Care,01/09/2022,4041192-I-22-5490591,"10,208.00",MARTON CARE HOMES LTD T/A GROSVENOR PARK CARE HOME.
Adult and Health Services,Head of Adults,Third Party Payments,470101,Purchase of Care,01/09/2022,4041193-I-22-5490596,"94,384.57",MARTON CARE HOMES LTD T/A LANGLEY PARK CARE HOME.
Adult and Health Services,Head of Adults,Third Party Payments,470101,Purchase of Care,01/09/2022,4041194-I-22-5490578,"5,432.57",MARTON CARE HOMES LTD T/A RIVERSIDE VIEW CARE HOME.
Adult and Health Services,Head of Adults,Third Party Payments,474101,Purchase of Care,01/09/2022,4041195-I-22-5490815,"112,360.68",MARTON CARE HOMES LTD T/A ST HELENS CARE HOME.
Adult and Health Services,Head of Adults,Third Party Payments,478101,Purchase of Care,01/09/2022,4041210-I-22-5490355,"18,792.62",MEARS EXTRA CARE LTD.
Adult and Health Services,Head of Adults,Third Party Payments,474101,Purchase of Care,01/09/2022,4041217-I-22-5557188,"14,672.78",MEMORY LANE CARE HOMES LTD.
Adult and Health Services,Head of Adults,Third Party Payments,478101,Purchase of Care,01/09/2022,4041218-I-22-5490265,"2,249.80",MENCAP.
Adult and Health Services,Head of Adults,Third Party Payments,472101,Purchase of Care,01/09/2022,4041218-I-22-5490348,"7,835.56",MENCAP.
Adult and Health Services,Head of Adults,Third Party Payments,478101,Purchase of Care,01/09/2022,4041218-I-22-5490517,"10,653.36",MENCAP.
Adult and Health Services,Head of Adults,Third Party Payments,470101,Purchase of Care,01/09/2022,4041219-I-22-5490605,"2,364.00",MERIDIAN HEALTHCARE LTD.
Adult and Health Services,Head of Adults,Third Party Payments,474101,Purchase of Care,01/09/2022,4041220-I-22-5490570,"33,288.46",MERRYWELL CARE (BELMONT GRANGE) LTD.
Adult and Health Services,Head of Adults,Third Party Payments,470101,Purchase of Care,01/09/2022,4041221-I-22-5490651,"1,180.00",METHODIST HOMES.
Adult and Health Services,Head of Adults,Third Party Payments,472101,Purchase of Care,01/09/2022,4041231-I-22-5490547,"30,592.41",MIDDLETON CARE LTD.
Adult and Health Services,Head of Adults,Third Party Payments,470101,Purchase of Care,01/09/2022,4041242-I-22-5490480,"31,285.84",MOONRISE 24HR RECRUITMENT LTD.
Adult and Health Services,Head of Adults,Third Party Payments,470101,Purchase of Care,01/09/2022,4041243-I-22-5490785,"25,070.52",MOORLAND HOLDINGS (NE) LTD.
Adult and Health Services,Head of Adults,Third Party Payments,473101,Purchase of Care,01/09/2022,4041244-I-22-5490232,"2,646.80",MOVEABLE FEASTS ARTS.
Children and Young Peoples Services,Head of Childrens Social Care,Third Party Payments,440038,Other third party payments E440,01/09/2022,4041245-PIG_138247,"7,298.84",MOVING ON (DURHAM) LTD.
Adult and Health Services,Commissioning inc Supporting People,Third Party Payments,442002,Supporting People E442,01/09/2022,4041246-2300214,"2,627.68",MOVING ON HOUSING.
Children and Young Peoples Services,Head of Childrens Social Care,Third Party Payments,440038,Other third party payments E440,01/09/2022,4041247-PIG_138328,"43,625.00",MOVING UP CARE LTD.
Adult and Health Services,Head of Adults,Third Party Payments,478101,Purchase of Care,01/09/2022,4041295-I-22-5490280,"2,031.48",MVP SUPPORT.
Adult and Health Services,Head of Adults,Third Party Payments,478101,Purchase of Care,01/09/2022,4041296-I-22-5490328,"59,929.66",MY HOMECARE ASSISTANCE LTD T/A MY HOMECARE.
Adult and Health Services,Head of Adults,Third Party Payments,478101,Purchase of Care,01/09/2022,4041296-I-22-5490508,"23,625.36",MY HOMECARE ASSISTANCE LTD T/A MY HOMECARE.
Children and Young Peoples Services,Head of Childrens Social Care,Third Party Payments,440062,Other third party payments E440,01/09/2022,4041296-PIG_138248,"1,993.86",MY HOMECARE ASSISTANCE LTD T/A MY HOMECARE.
Adult and Health Services,Head of Adults,Third Party Payments,472101,Purchase of Care,01/09/2022,4041297-I-22-5490441,"10,664.41",MYCHOICE HOMECARE LTD.
Adult and Health Services,Head of Adults,Third Party Payments,473101,Purchase of Care,01/09/2022,4041302-I-22-5490240,"1,120.00",NEUROACTIVE UK.
Children and Young Peoples Services,Head of Childrens Social Care,Third Party Payments,425021,Rendered by Voluntary Organisations,01/09/2022,4041303-PIG_138285,"23,008.00",NEW LIFE CARE SERVICES T/A EAST FARM.
Adult and Health Services,Head of Adults,Third Party Payments,473101,Purchase of Care,01/09/2022,4041304-I-22-5490533,"17,906.84",NEW STEPS CARE IN THE COMMUNITY LLP.
Adult and Health Services,Head of Adults,Third Party Payments,472101,Purchase of Care,01/09/2022,4041305-I-22-5490377,"19,963.49",NEW VISION CARE SERVICES LTD.
Adult and Health Services,Head of Adults,Third Party Payments,470101,Purchase of Care,01/09/2022,4041306-I-22-5490597,"18,225.84",NEWLIFE CARE SERVICES LTD.
Adult and Health Services,Head of Adults,Third Party Payments,472101,Purchase of Care,01/09/2022,4041310-I-22-4482858,"1,714.04",NIGHTINGALES COMMUNITY CARE LTD.
Adult and Health Services,Head of Adults,Third Party Payments,472101,Purchase of Care,01/09/2022,4041310-I-22-4832525,"1,818.97",NIGHTINGALES COMMUNITY CARE LTD.
Adult and Health Services,Head of Adults,Third Party Payments,472101,Purchase of Care,01/09/2022,4041310-I-22-5490536,"1,958.88",NIGHTINGALES COMMUNITY CARE LTD.
Adult and Health Services,Head of Adults,Third Party Payments,470101,Purchase of Care,01/09/2022,4041312-I-22-5490660,"5,541.16",NORTH EAST AUTISM SOCIETY.
Adult and Health Services,Head of Adults,Third Party Payments,470101,Purchase of Care,01/09/2022,4041313-I-22-5490574,"16,558.36",NORTH EAST AUTISM SOCIETY.
Adult and Health Services,Head of Adults,Third Party Payments,472101,Purchase of Care,01/09/2022,4041314-I-22-5490247,"7,802.60",NORTH EAST AUTISM SOCIETY.
Adult and Health Services,Head of Adults,Third Party Payments,486020,Service level agreements E486,01/09/2022,4041314-PIG_138249,"15,897.24",NORTH EAST AUTISM SOCIETY.
Children and Young Peoples Services,Head of Childrens Social Care,Third Party Payments,425020,Rendered by Voluntary Organisations,01/09/2022,4041314-PIG_138250,"24,354.00",NORTH EAST AUTISM SOCIETY.
Adult and Health Services,Head of Adults,Third Party Payments,470101,Purchase of Care,01/09/2022,4041315-I-22-5664227,"21,923.79",NORTH EAST AUTISM SOCIETY.
Children and Young Peoples Services,Head of Childrens Social Care,Third Party Payments,425021,Rendered by Voluntary Organisations,01/09/2022,4041315-PIG_138281,"31,253.84",NORTH EAST AUTISM SOCIETY.
Adult and Health Services,Head of Adults,Third Party Payments,470101,Purchase of Care,01/09/2022,4041315-PIG_138282,"7,820.24",NORTH EAST AUTISM SOCIETY.
Dedicated Schools Grant BG0015,DSG High Needs Block,Third Party Payments,425005,Rendered by Voluntary Organisations,01/09/2022,4041315-PIG_138305,"36,305.80",NORTH EAST AUTISM SOCIETY.
Dedicated Schools Grant BG0015,DSG High Needs Block,Third Party Payments,425005,Rendered by Voluntary Organisations,01/09/2022,4041315-PIG_138306,"43,500.92",NORTH EAST AUTISM SOCIETY.
Dedicated Schools Grant BG0015,DSG High Needs Block,Third Party Payments,440080,Other third party payments E440,01/09/2022,4041315-PIG_138307,"5,275.28",NORTH EAST AUTISM SOCIETY.
Adult and Health Services,Head of Adults,Third Party Payments,478101,Purchase of Care,01/09/2022,4041316-I-22-5490225,"30,424.84",NORTH EAST AUTISM SOCIETY.
Adult and Health Services,Head of Adults,Third Party Payments,473101,Purchase of Care,01/09/2022,4041316-I-22-5490271,"26,429.71",NORTH EAST AUTISM SOCIETY.
Adult and Health Services,Head of Adults,Third Party Payments,478101,Purchase of Care,01/09/2022,4041316-I-22-5490320,"12,717.72",NORTH EAST AUTISM SOCIETY.
Adult and Health Services,Head of Adults,Third Party Payments,478101,Purchase of Care,01/09/2022,4041316-I-22-5490437,"14,260.44",NORTH EAST AUTISM SOCIETY.
Adult and Health Services,Head of Adults,Third Party Payments,473101,Purchase of Care,01/09/2022,4041316-I-22-5490450,"1,391.72",NORTH EAST AUTISM SOCIETY.
Adult and Health Services,Head of Adults,Third Party Payments,478101,Purchase of Care,01/09/2022,4041316-I-22-5490525,"8,871.72",NORTH EAST AUTISM SOCIETY.
Adult and Health Services,Head of Adults,Third Party Payments,470101,Purchase of Care,01/09/2022,4041316-I-22-5490722,"6,727.44",NORTH EAST AUTISM SOCIETY.
Adult and Health Services,Head of Adults,Third Party Payments,478101,Purchase of Care,01/09/2022,4041317-I-22-5490317,707.08,NORTH EAST AUTISM SOCIETY.
Adult and Health Services,Head of Adults,Third Party Payments,470101,Purchase of Care,01/09/2022,4041318-I-22-5490657,"53,252.32",NORTH EAST AUTISM SOCIETY.
Adult and Health Services,Head of Adults,Third Party Payments,478101,Purchase of Care,01/09/2022,4041319-I-22-5490297,"3,849.30",NORTH EAST BEFRIENDING SERVICE CIC.
Adult and Health Services,Head of Adults,Third Party Payments,470101,Purchase of Care,01/09/2022,4041320-I-22-5490618,"2,684.36",NORTH EAST CARE HOMES LTD.
Adult and Health Services,Head of Adults,Third Party Payments,478101,Purchase of Care,01/09/2022,4041321-I-22-5490448,"1,672.40",NORTHERN LIFE CARE LTD T/A UBU.
Adult and Health Services,Head of Adults,Third Party Payments,474101,Purchase of Care,01/09/2022,4041322-I-22-5490702,"8,206.12",NORTHLEA COURT.
Adult and Health Services,Head of Adults,Third Party Payments,470101,Purchase of Care,01/09/2022,4041323-I-22-4997804,700.00,NORTHUMBRIA CALVERT TRUST.
Adult and Health Services,Head of Adults,Third Party Payments,470101,Purchase of Care,01/09/2022,4041323-I-22-5490648,700.00,NORTHUMBRIA CALVERT TRUST.
Children and Young Peoples Services,Head of Childrens Social Care,Third Party Payments,425021,Rendered by Voluntary Organisations,01/09/2022,4041324-PIG_138283,"75,040.00",NUEVAVIDA NE LTD.
Adult and Health Services,Head of Adults,Third Party Payments,478101,Purchase of Care,01/09/2022,4041326-I-22-5490216,"2,803.56",OAKLEA TRUST.
Adult and Health Services,Head of Adults,Third Party Payments,478101,Purchase of Care,01/09/2022,4041326-I-22-5490266,"21,228.56",OAKLEA TRUST.
Adult and Health Services,Head of Adults,Third Party Payments,478101,Purchase of Care,01/09/2022,4041326-I-22-5490273,"31,331.92",OAKLEA TRUST.
Adult and Health Services,Head of Adults,Third Party Payments,478101,Purchase of Care,01/09/2022,4041326-I-22-5490275,"9,101.68",OAKLEA TRUST.
Adult and Health Services,Head of Adults,Third Party Payments,478101,Purchase of Care,01/09/2022,4041326-I-22-5490308,"16,771.68",OAKLEA TRUST.
Adult and Health Services,Head of Adults,Third Party Payments,478101,Purchase of Care,01/09/2022,4041326-I-22-5490310,"19,810.68",OAKLEA TRUST.
Adult and Health Services,Head of Adults,Third Party Payments,478101,Purchase of Care,01/09/2022,4041326-I-22-5490311,"14,771.36",OAKLEA TRUST.
Adult and Health Services,Head of Adults,Third Party Payments,478101,Purchase of Care,01/09/2022,4041326-I-22-5490393,"9,379.44",OAKLEA TRUST.
Adult and Health Services,Head of Adults,Third Party Payments,478101,Purchase of Care,01/09/2022,4041326-I-22-5490394,"4,496.88",OAKLEA TRUST.
Adult and Health Services,Head of Adults,Third Party Payments,478101,Purchase of Care,01/09/2022,4041326-I-22-5490435,"26,078.08",OAKLEA TRUST.
Adult and Health Services,Head of Adults,Third Party Payments,478101,Purchase of Care,01/09/2022,4041326-I-22-5490436,"25,262.00",OAKLEA TRUST.
Adult and Health Services,Head of Adults,Third Party Payments,478101,Purchase of Care,01/09/2022,4041326-I-22-5490449,"21,060.88",OAKLEA TRUST.
Adult and Health Services,Head of Adults,Third Party Payments,478101,Purchase of Care,01/09/2022,4041326-I-22-5490469,"18,006.68",OAKLEA TRUST.
Adult and Health Services,Head of Adults,Third Party Payments,478101,Purchase of Care,01/09/2022,4041326-I-22-5490470,"10,022.24",OAKLEA TRUST.
Adult and Health Services,Head of Adults,Third Party Payments,478101,Purchase of Care,01/09/2022,4041326-I-22-5490518,"28,149.20",OAKLEA TRUST.
Adult and Health Services,Head of Adults,Third Party Payments,473101,Purchase of Care,01/09/2022,4041327-I-22-5490298,"4,499.09",OBJECT QUEST LTD.
Adult and Health Services,Head of Adults,Third Party Payments,470101,Purchase of Care,01/09/2022,4041327-I-22-5490608,"64,146.08",OBJECT QUEST LTD.
Adult and Health Services,Head of Adults,Third Party Payments,478101,Purchase of Care,01/09/2022,4041329-I-22-5490309,"11,328.00",OLIVE STONE SUPPORT.
Adult and Health Services,Head of Adults,Third Party Payments,478101,Purchase of Care,01/09/2022,4041329-I-22-5490404,"19,355.38",OLIVE STONE SUPPORT.
Children and Young Peoples Services,Head of Childrens Social Care,Third Party Payments,425021,Rendered by Voluntary Organisations,01/09/2022,4041333-PIG_138284,"18,064.00",ONE STEP CARE LTD.
Children and Young Peoples Services,Head of Childrens Social Care,Third Party Payments,425040,Rendered by Voluntary Organisations,01/09/2022,4041334-PIG_138274,"47,523.00",ORCHARD CARE (NORTH EAST) LTD.
Adult and Health Services,Head of Adults,Third Party Payments,472101,Purchase of Care,01/09/2022,4041335-I-22-5490427,"105,126.72",ORCHARD HOME CARE SERVICES LTD.
Children and Young Peoples Services,Head of Childrens Social Care,Third Party Payments,440062,Other third party payments E440,01/09/2022,4041335-PIG_138254,"2,413.62",ORCHARD HOME CARE SERVICES LTD.
Adult and Health Services,Head of Adults,Third Party Payments,470101,Purchase of Care,01/09/2022,4041336-I-22-5490573,"8,053.20",OSWALD HOUSE CARE HOME LTD.
Adult and Health Services,Head of Adults,Third Party Payments,470101,Purchase of Care,01/09/2022,4041337-I-22-5490388,"1,881.60",OSWALD HOUSE CARE HOME LTD.
Adult and Health Services,Head of Adults,Third Party Payments,470101,Purchase of Care,01/09/2022,4041337-I-22-5490693,"18,709.20",OSWALD HOUSE CARE HOME LTD.
Adult and Health Services,Head of Adults,Third Party Payments,470101,Purchase of Care,01/09/2022,4041338-I-22-5490626,"5,368.80",OSWALD HOUSE CARE HOME LTD.
Adult and Health Services,Head of Adults,Third Party Payments,470101,Purchase of Care,01/09/2022,4041341-I-22-5490816,"40,701.28",PARAMOUNT CARE (GATESHEAD) LTD.
Adult and Health Services,Head of Adults,Third Party Payments,470101,Purchase of Care,01/09/2022,4041342-I-22-5490825,"20,052.49",PATHWAYS CARE GROUP LTD.
Adult and Health Services,Head of Adults,Third Party Payments,470101,Purchase of Care,01/09/2022,4041363-I-22-5490687,"2,720.00",PEARLCARE (KENDAL) LTD T/A GILLING REANE CARE HOME.
Children and Young Peoples Services,Head of Childrens Social Care,Third Party Payments,425021,Rendered by Voluntary Organisations,01/09/2022,4041364-PIG_138287,"29,879.84",PEARTREE PROJECTS LTD.
Children and Young Peoples Services,Head of Childrens Social Care,Third Party Payments,425021,Rendered by Voluntary Organisations,01/09/2022,4041364-PIG_138288,"31,472.88",PEARTREE PROJECTS LTD.
Children and Young Peoples Services,Head of Childrens Social Care,Third Party Payments,425021,Rendered by Voluntary Organisations,01/09/2022,4041364-PIG_138289,"16,523.28",PEARTREE PROJECTS LTD.
Children and Young Peoples Services,Head of Childrens Social Care,Third Party Payments,425021,Rendered by Voluntary Organisations,01/09/2022,4041364-PIG_138884,"16,335.60",PEARTREE PROJECTS LTD.
Children and Young Peoples Services,Head of Childrens Social Care,Third Party Payments,425021,Rendered by Voluntary Organisations,01/09/2022,4041365-PIG_138896,"35,600.00",PEBBLES CARE LTD.
Adult and Health Services,Head of Adults,Third Party Payments,470101,Purchase of Care,01/09/2022,4041366-I-22-5490505,"194,324.26",PERFECT CARE LTD.
Adult and Health Services,Head of Adults,Third Party Payments,473101,Purchase of Care,01/09/2022,4041370-I-22-5490451,"2,620.04",PHOENIX DAY CENTRE CIC.
Adult and Health Services,Head of Adults,Third Party Payments,473101,Purchase of Care,01/09/2022,4041371-I-22-5490514,"7,868.48",PIONEERING CARE PARTNERSHIP.
Adult and Health Services,Head of Adults,Third Party Payments,474101,Purchase of Care,01/09/2022,4041372-I-22-5490581,"5,550.58",POPULAR CARE LTD.
Adult and Health Services,Head of Adults,Third Party Payments,470101,Purchase of Care,01/09/2022,4041373-I-22-5490703,"18,847.12",POPULAR CARE LTD..
Adult and Health Services,Head of Adults,Third Party Payments,474101,Purchase of Care,01/09/2022,4041373-I-22-5490777,"117,868.65",POPULAR CARE LTD..
Adult and Health Services,Head of Adults,Third Party Payments,478101,Purchase of Care,01/09/2022,4041375-I-22-5490278,"14,990.36",POSITIVE INDIVIDUAL PROACTIVE SUPPORT LTD.
Adult and Health Services,Head of Adults,Third Party Payments,478101,Purchase of Care,01/09/2022,4041375-I-22-5490282,"10,458.00",POSITIVE INDIVIDUAL PROACTIVE SUPPORT LTD.
Adult and Health Services,Head of Adults,Third Party Payments,478101,Purchase of Care,01/09/2022,4041375-I-22-5490407,"61,250.93",POSITIVE INDIVIDUAL PROACTIVE SUPPORT LTD.
Adult and Health Services,Head of Adults,Third Party Payments,478101,Purchase of Care,01/09/2022,4041375-I-22-5490497,"13,506.12",POSITIVE INDIVIDUAL PROACTIVE SUPPORT LTD.
Adult and Health Services,Head of Adults,Third Party Payments,472101,Purchase of Care,01/09/2022,4041376-I-22-5490538,"33,633.98",POSSIBILITES NE LTD.
Adult and Health Services,Head of Adults,Third Party Payments,478101,Purchase of Care,01/09/2022,4041377-I-22-5490408,"21,954.46",POTENSIAL LTD T/A POTENS.
Adult and Health Services,Head of Adults,Third Party Payments,478101,Purchase of Care,01/09/2022,4041378-I-22-5490487,"5,692.76",POTENSIAL LTD T/A POTENS.
Adult and Health Services,Head of Adults,Third Party Payments,470101,Purchase of Care,01/09/2022,4041379-I-22-5490686,"18,333.03",POTENSIAL LTD T/A POTENS.
Adult and Health Services,Head of Adults,Third Party Payments,478101,Purchase of Care,01/09/2022,4041380-I-22-5490495,"19,026.88",POTENSIAL LTD T/A POTENS.
Adult and Health Services,Head of Adults,Third Party Payments,470101,Purchase of Care,01/09/2022,4041381-I-22-5490674,"25,914.00",POTENSIAL LTD T/A POTENS.
Adult and Health Services,Head of Adults,Third Party Payments,474101,Purchase of Care,01/09/2022,4041382-I-22-5490748,"99,180.63",PREMIER CARE HOMES LTD.
Adult and Health Services,Head of Adults,Third Party Payments,470101,Purchase of Care,01/09/2022,4041383-I-22-5490840,"45,300.40",PREMIER CARE HOMES LTD.
Adult and Health Services,Head of Adults,Third Party Payments,472101,Purchase of Care,01/09/2022,4041384-I-22-5490302,"125,379.68",PREMIER COMMUNITY CARE LTD.
Adult and Health Services,Head of Adults,Third Party Payments,470101,Purchase of Care,01/09/2022,4041385-I-22-5490801,"2,693.92",PREMIER NURSING HOMES T/A BRIARWOOD CARE HOME.
Adult and Health Services,Head of Adults,Third Party Payments,474101,Purchase of Care,01/09/2022,4041388-I-22-5490757,"2,693.88",PRESTIGE CARE (YEW TREE) LTD.
Adult and Health Services,Head of Adults,Third Party Payments,472101,Purchase of Care,01/09/2022,4041389-I-22-5490279,"11,403.44",PRIORITISING PEOPLE`S LIVES LTD.
Adult and Health Services,Head of Adults,Third Party Payments,474101,Purchase of Care,01/09/2022,4041391-I-22-5490806,"18,665.79",QUALIA CARE LTD T/A WASHINGTON LODGE.
Adult and Health Services,Head of Adults,Third Party Payments,472101,Purchase of Care,01/09/2022,4041392-I-22-5490241,"5,982.47",QUALITY FIRST CARE SERVICES LTD.
Adult and Health Services,Head of Adults,Third Party Payments,470101,Purchase of Care,01/09/2022,4041400-I-22-5490799,"24,864.60",RAYSON HOMES LTD.
Adult and Health Services,Head of Adults,Third Party Payments,474101,Purchase of Care,01/09/2022,4041401-I-22-5490593,"89,601.35",RAYSON HOMES LTD.
Children and Young Peoples Services,Head of Childrens Social Care,Third Party Payments,425040,Rendered by Voluntary Organisations,01/09/2022,4041402-PIG_138905,"87,234.42",REACH OUT CARE LTD.
Adult and Health Services,Head of Adults,Third Party Payments,473101,Purchase of Care,01/09/2022,4041403-I-22-5490315,"15,787.07",REAL CARE LTD.
Children and Young Peoples Services,Head of Childrens Social Care,Third Party Payments,486020,Service level agreements E486,01/09/2022,4041403-PIG_138301,"1,617.28",REAL CARE LTD.
Adult and Health Services,Head of Adults,Third Party Payments,474101,Purchase of Care,01/09/2022,4041407-I-22-5490828,"4,133.44",RENAL HEALTH LTD.
Adult and Health Services,Head of Adults,Third Party Payments,470101,Purchase of Care,01/09/2022,4041408-I-22-5490775,"4,089.56",RESOLVE (CARE NORTHERN) LTD..
Adult and Health Services,Head of Adults,Third Party Payments,470101,Purchase of Care,01/09/2022,4041409-I-22-5490673,"10,990.04",RESOLVE (CARE NORTHERN) LTD..
Adult and Health Services,Head of Adults,Third Party Payments,478101,Purchase of Care,01/09/2022,4041414-I-22-5490381,"4,381.72",RICHMOND FELLOWSHIP.
Adult and Health Services,Head of Adults,Third Party Payments,473101,Purchase of Care,01/09/2022,4041415-I-22-5490489,"1,755.95",RIDING CENTRE FOR SPECIAL PEOPLE LTD..
Children and Young Peoples Services,Head of Childrens Social Care,Third Party Payments,425021,Rendered by Voluntary Organisations,01/09/2022,4041416-PIG_138291,"18,600.00",RIGHT-TRAK LTD.
Adult and Health Services,Head of Adults,Third Party Payments,478101,Purchase of Care,01/09/2022,4041421-I-22-5490426,"2,295.54",ROC FAMILY SUPPORT LTD.
Children and Young Peoples Services,Head of Childrens Social Care,Third Party Payments,486020,Service level agreements E486,01/09/2022,4041421-PIG_138906,"14,595.99",ROC FAMILY SUPPORT LTD.
Children and Young Peoples Services,Head of Childrens Social Care,Third Party Payments,440038,Other third party payments E440,01/09/2022,4041421-PIG_138907,"68,840.86",ROC FAMILY SUPPORT LTD.
Children and Young Peoples Services,Head of Childrens Social Care,Third Party Payments,425021,Rendered by Voluntary Organisations,01/09/2022,4041421-PIG_138916,"22,815.00",ROC FAMILY SUPPORT LTD.
Adult and Health Services,Head of Adults,Third Party Payments,478101,Purchase of Care,01/09/2022,4041422-I-22-5490245,"1,337.00",ROC SOLID LTD.
Adult and Health Services,Head of Adults,Third Party Payments,470101,Purchase of Care,01/09/2022,4041424-I-22-5490689,"87,345.93",ROSEBERRY CARE CENTRES GB LTD.
Adult and Health Services,Head of Adults,Third Party Payments,470101,Purchase of Care,01/09/2022,4041426-I-22-5490700,"20,760.96",ROSEMOUNT TRUST.
Adult and Health Services,Head of Adults,Third Party Payments,470101,Purchase of Care,01/09/2022,4041429-I-22-5490724,"2,634.24",RUNWOOD HOMES LTD.
Dedicated Schools Grant BG0015,DSG High Needs Block,Third Party Payments,425005,Rendered by Voluntary Organisations,01/09/2022,4041430-PIG_138899,"1,843.61",RUSKIN MILL TRUST T/A CLERVAUX GARDEN SCHOOL.
Adult and Health Services,Head of Adults,Third Party Payments,470101,Purchase of Care,01/09/2022,4041435-I-22-5490572,"7,162.98",SAINT JOHN OF GOD HOSPITALLER SERVICES.
Adult and Health Services,Head of Adults,Third Party Payments,478101,Purchase of Care,01/09/2022,4041437-I-22-5490416,"1,144.52",SALVATION ARMY HOUSING ASSOCIATION (SAHA).
Adult and Health Services,Head of Adults,Third Party Payments,474101,Purchase of Care,01/09/2022,4041442-I-22-5490814,"76,791.73",SANCTUARY CARE (ENGLAND) LTD.
Adult and Health Services,Head of Adults,Third Party Payments,470101,Purchase of Care,01/09/2022,4041443-I-22-5490684,"5,368.72",SANCTUARY CARE (ENGLAND) LTD.
Adult and Health Services,Head of Adults,Third Party Payments,474101,Purchase of Care,01/09/2022,4041444-I-22-5490569,"144,636.81",SANCTUARY CARE (ENGLAND) LTD.
Adult and Health Services,Head of Adults,Third Party Payments,470101,Purchase of Care,01/09/2022,4041445-I-22-5490762,"81,068.74",SANCTUARY CARE (ENGLAND) LTD.
Adult and Health Services,Head of Adults,Third Party Payments,474101,Purchase of Care,01/09/2022,4041446-I-22-5490571,"84,614.37",SANCTUARY CARE (ENGLAND) LTD.
Adult and Health Services,Head of Adults,Third Party Payments,474101,Purchase of Care,01/09/2022,4041447-I-22-5490582,"12,852.60",SANCTUARY CARE (ENGLAND) LTD.
Adult and Health Services,Head of Adults,Third Party Payments,478101,Purchase of Care,01/09/2022,4041448-I-22-5490384,"1,928.40",SANCTUARY HOME CARE LTD.
Adult and Health Services,Head of Adults,Third Party Payments,478101,Purchase of Care,01/09/2022,4041449-I-22-5490509,"12,339.60",SANCTUARY HOME CARE LTD.
Adult and Health Services,Head of Adults,Third Party Payments,474101,Purchase of Care,01/09/2022,4041453-I-22-5490677,"66,662.54",SEAHAM CARE LTD.
Adult and Health Services,Head of Adults,Third Party Payments,470101,Purchase of Care,01/09/2022,4041454-I-22-5490847,"92,135.87",SEAHAM CARE LTD.
Adult and Health Services,Head of Adults,Third Party Payments,472101,Purchase of Care,01/09/2022,4041456-I-22-5490387,"28,581.61",SECOND TO NONE CARE LTD.
Adult and Health Services,Head of Adults,Third Party Payments,470101,Purchase of Care,01/09/2022,4041457-I-22-5490805,"21,217.80",SELF (NORTH EAST) LTD.
Adult and Health Services,Head of Adults,Third Party Payments,470101,Purchase of Care,01/09/2022,4041458-I-22-5346745,"6,778.28",SENSE.
Adult and Health Services,Head of Adults,Third Party Payments,470101,Purchase of Care,01/09/2022,4041458-I-22-5490614,"6,778.28",SENSE.
Adult and Health Services,Head of Adults,Third Party Payments,474101,Purchase of Care,01/09/2022,4041459-I-22-5490718,"2,600.00",SEYMOUR HOUSE HARTLEPOOL LTD.
Adult and Health Services,Head of Adults,Third Party Payments,470101,Purchase of Care,01/09/2022,4041460-I-22-5490636,"156,291.72",SHAFTESBURY CARE GROUP LTD.
Adult and Health Services,Head of Adults,Third Party Payments,473101,Purchase of Care,01/09/2022,4041463-I-22-5346642,"10,668.95",SHAW TRUST GARDEN PROJECT.*
Adult and Health Services,Head of Adults,Third Party Payments,473101,Purchase of Care,01/09/2022,4041463-I-22-5490513,"12,400.94",SHAW TRUST GARDEN PROJECT.*
Adult and Health Services,Head of Adults,Third Party Payments,472101,Purchase of Care,01/09/2022,4041464-I-22-5490333,"61,094.27",SHEENA MILES CARE SERVICES LTD.
Children and Young Peoples Services,Head of Childrens Social Care,Third Party Payments,486020,Service level agreements E486,01/09/2022,4041464-PIG_138253,"5,977.54",SHEENA MILES CARE SERVICES LTD.
Adult and Health Services,Head of Adults,Third Party Payments,470101,Purchase of Care,01/09/2022,4041465-I-22-5490798,"54,844.80",SHERBURN HOUSE CHARITY.
Adult and Health Services,Head of Adults,Third Party Payments,470101,Purchase of Care,01/09/2022,4041467-I-22-5490772,"29,611.37",SHOTLEY PARK HOMES FOR THE ELDERLY LTD.
Adult and Health Services,Head of Adults,Third Party Payments,470101,Purchase of Care,01/09/2022,4041469-I-22-5490792,"5,200.00",SIGNATURE AT ASCOT GRANGE CARE HOME.
Adult and Health Services,Head of Adults,Third Party Payments,470101,Purchase of Care,01/09/2022,4041472-I-22-5490807,"2,667.16",SLW LTD.
Adult and Health Services,Head of Adults,Third Party Payments,474101,Purchase of Care,01/09/2022,4041473-I-22-5490639,"3,617.42",SOLEHAWK LTD T/A ASHTON COURT NURSING HOME.
Adult and Health Services,Head of Adults,Third Party Payments,474101,Purchase of Care,01/09/2022,4041474-I-22-5490671,"7,779.62",SOLEHAWK LTD T/A CRAIGIELEA CARE HOME.
Adult and Health Services,Head of Adults,Third Party Payments,478101,Purchase of Care,01/09/2022,4041476-I-22-5490540,"6,366.92",SOVEREIGN CARE (NORTH EAST) LTD.
Adult and Health Services,Head of Adults,Third Party Payments,470101,Purchase of Care,01/09/2022,4041476-I-22-5490833,"27,859.24",SOVEREIGN CARE (NORTH EAST) LTD.
Adult and Health Services,Head of Adults,Third Party Payments,478101,Purchase of Care,01/09/2022,4041477-I-22-5490334,"3,419.08",SOVEREIGN CARE (NORTH EAST) LTD.
Dedicated Schools Grant BG0015,DSG High Needs Block,Third Party Payments,425005,Rendered by Voluntary Organisations,01/09/2022,4041478-PIG_138920,"7,119.90",SPARK OF GENIUS (NORTH EAST LLP).
Adult and Health Services,Head of Adults,Third Party Payments,470101,Purchase of Care,01/09/2022,4041479-I-22-5490741,"10,893.12",SPECIALITY CARE (REHAB) LTD.
Adult and Health Services,Head of Adults,Third Party Payments,472101,Purchase of Care,01/09/2022,4041480-I-22-5490430,"1,570.24",SPECTRUM COMMUNITY HEALTH.
Adult and Health Services,Head of Adults,Third Party Payments,478101,Purchase of Care,01/09/2022,4041481-I-22-5490402,"10,838.88",SPRINGFIELD HOMECARE SERVICES LTD.
Adult and Health Services,Head of Adults,Third Party Payments,474101,Purchase of Care,01/09/2022,4041482-I-22-5490789,"3,328.40",SPYNIE CARE HOME.
Adult and Health Services,Head of Adults,Third Party Payments,470101,Purchase of Care,01/09/2022,4041483-I-22-5490670,"50,870.36",ST ANDREWS MPS LTD.
Adult and Health Services,Head of Adults,Third Party Payments,478101,Purchase of Care,01/09/2022,4041484-I-22-5490229,"12,012.04",ST ANNES COMMUNITY SERVICES.
Adult and Health Services,Head of Adults,Third Party Payments,478101,Purchase of Care,01/09/2022,4041484-I-22-5490352,"10,799.04",ST ANNES COMMUNITY SERVICES.
Adult and Health Services,Head of Adults,Third Party Payments,478101,Purchase of Care,01/09/2022,4041484-I-22-5490358,"10,799.04",ST ANNES COMMUNITY SERVICES.
Adult and Health Services,Head of Adults,Third Party Payments,478101,Purchase of Care,01/09/2022,4041484-I-22-5490359,"5,171.32",ST ANNES COMMUNITY SERVICES.
Adult and Health Services,Head of Adults,Third Party Payments,478101,Purchase of Care,01/09/2022,4041484-I-22-5490397,"16,198.56",ST ANNES COMMUNITY SERVICES.
Adult and Health Services,Head of Adults,Third Party Payments,478101,Purchase of Care,01/09/2022,4041484-I-22-5490419,"8,289.60",ST ANNES COMMUNITY SERVICES.
Adult and Health Services,Head of Adults,Third Party Payments,478101,Purchase of Care,01/09/2022,4041484-I-22-5490444,"5,171.32",ST ANNES COMMUNITY SERVICES.
Adult and Health Services,Head of Adults,Third Party Payments,478101,Purchase of Care,01/09/2022,4041484-I-22-5490472,"10,799.04",ST ANNES COMMUNITY SERVICES.
Adult and Health Services,Head of Adults,Third Party Payments,478101,Purchase of Care,01/09/2022,4041484-I-22-5490474,"10,799.04",ST ANNES COMMUNITY SERVICES.
Adult and Health Services,Head of Adults,Third Party Payments,478101,Purchase of Care,01/09/2022,4041484-I-22-5490498,"13,056.12",ST ANNES COMMUNITY SERVICES.
Adult and Health Services,Head of Adults,Third Party Payments,478101,Purchase of Care,01/09/2022,4041484-I-22-5490526,"14,743.28",ST ANNES COMMUNITY SERVICES.
Adult and Health Services,Head of Adults,Third Party Payments,478101,Purchase of Care,01/09/2022,4041484-I-22-5490543,"8,462.32",ST ANNES COMMUNITY SERVICES.
Adult and Health Services,Head of Adults,Third Party Payments,470101,Purchase of Care,01/09/2022,4041485-I-22-5490642,"4,496.40",ST CUTHBERTS CARE.
Adult and Health Services,Head of Adults,Third Party Payments,470101,Purchase of Care,01/09/2022,4041486-I-22-5490766,"2,724.28",ST CUTHBERTS CARE.
Adult and Health Services,Head of Adults,Third Party Payments,470101,Purchase of Care,01/09/2022,4041487-I-22-5490594,"2,722.00",ST CUTHBERTS CARE.
Children and Young Peoples Services,Head of Childrens Social Care,Third Party Payments,425040,Rendered by Voluntary Organisations,01/09/2022,4041488-PIG_138260,"1,501.08",ST CUTHBERTS CARE.
Adult and Health Services,Head of Adults,Third Party Payments,470101,Purchase of Care,01/09/2022,4041489-I-22-5346763,"13,980.17",ST MARTIN`S CARE LTD.
Adult and Health Services,Head of Adults,Third Party Payments,470101,Purchase of Care,01/09/2022,4041489-I-22-5490620,"2,615.64",ST MARTIN`S CARE LTD.
Adult and Health Services,Head of Adults,Third Party Payments,474101,Purchase of Care,01/09/2022,4041490-I-22-5490755,"2,360.00",ST MARTIN`S CARE LTD.
Adult and Health Services,Head of Adults,Third Party Payments,470101,Purchase of Care,01/09/2022,4041491-I-22-5490771,"2,440.00",ST MARTIN`S CARE LTD.
Children and Young Peoples Services,Head of Childrens Social Care,Third Party Payments,425020,Rendered by Voluntary Organisations,01/09/2022,4041492-PIG_138324,"2,899.20",ST OSWALD`S HOSPICE LTD.
Adult and Health Services,Head of Adults,Third Party Payments,470101,Purchase of Care,01/09/2022,4041493-I-22-5490611,"101,552.65",ST PHILIPS CARE LTD.
Adult and Health Services,Head of Adults,Third Party Payments,470101,Purchase of Care,01/09/2022,4041494-I-22-5490797,"90,337.34",ST PHILIPS CARE LTD.
Adult and Health Services,Head of Adults,Third Party Payments,474101,Purchase of Care,01/09/2022,4041497-I-22-5490599,"3,016.48",STAINTON LODGE CARE CENTRE.
Adult and Health Services,Head of Adults,Third Party Payments,470101,Purchase of Care,01/09/2022,4041506-I-22-5490669,"40,217.09",SUNNY OKUKPOLOR HUMPHREYS.
Adult and Health Services,Head of Adults,Third Party Payments,472101,Purchase of Care,01/09/2022,4041507-I-22-5490425,"120,950.30",SUPPORTIVE SRC LTD.
Adult and Health Services,Head of Adults,Third Party Payments,470101,Purchase of Care,01/09/2022,4041516-I-22-5490838,"24,583.28",SWANTON CARE & COMMUNITY (AUTISM NORTH) LTD.
Adult and Health Services,Head of Adults,Third Party Payments,470101,Purchase of Care,01/09/2022,4041517-I-22-5490810,"6,625.32",SWANTON CARE & COMMUNITY (AUTISM NORTH) LTD.
Adult and Health Services,Head of Adults,Third Party Payments,470101,Purchase of Care,01/09/2022,4041518-I-22-5490653,"5,467.08",SWANTON CARE & COMMUNITY (AUTISM NORTH) LTD.
Adult and Health Services,Head of Adults,Third Party Payments,470101,Purchase of Care,01/09/2022,4041519-I-22-5490664,"7,466.80",SWANTON CARE & COMMUNITY (AUTISM NORTH) LTD.
Adult and Health Services,Head of Adults,Third Party Payments,470101,Purchase of Care,01/09/2022,4041520-I-22-5490621,"40,303.96",SWANTON CARE & COMMUNITY (AUTISM NORTH) LTD.
Adult and Health Services,Head of Adults,Third Party Payments,470101,Purchase of Care,01/09/2022,4041521-I-22-5490710,"8,222.04",SWANTON CARE & COMMUNITY (AUTISM NORTH) LTD.
Children and Young Peoples Services,Head of Childrens Social Care,Third Party Payments,425040,Rendered by Voluntary Organisations,01/09/2022,4041522-PIG_138261,"30,401.12",SWIIS FOSTER CARE LTD.
Adult and Health Services,Head of Adults,Third Party Payments,474101,Purchase of Care,01/09/2022,4041523-I-22-5490753,"4,544.12",TAMARIS HEALTHCARE (ENGLAND) LTD.
Adult and Health Services,Head of Adults,Third Party Payments,470101,Purchase of Care,01/09/2022,4041524-I-22-5490679,"2,580.40",TAMARIS HEALTHCARE (ENGLAND) LTD.
Adult and Health Services,Head of Adults,Third Party Payments,470101,Purchase of Care,01/09/2022,4041525-I-22-5490616,"107,785.43",TAMARIS HEALTHCARE (ENGLAND) LTD.
Adult and Health Services,Head of Adults,Third Party Payments,474101,Purchase of Care,01/09/2022,4041526-I-22-5490630,"26,829.48",TAMARIS HEALTHCARE (ENGLAND) LTD.
Adult and Health Services,Head of Adults,Third Party Payments,470101,Purchase of Care,01/09/2022,4041527-I-22-5490635,"90,617.18",TAMARIS HEALTHCARE (ENGLAND) LTD.
Adult and Health Services,Head of Adults,Third Party Payments,474101,Purchase of Care,01/09/2022,4041528-I-22-5490818,"2,867.80",TAMARIS HEALTHCARE (ENGLAND) LTD.
Adult and Health Services,Head of Adults,Third Party Payments,470101,Purchase of Care,01/09/2022,4041530-I-22-5490824,"109,201.05",TAMARIS HEALTHCARE (ENGLAND) LTD.
Children and Young Peoples Services,Head of Childrens Social Care,Third Party Payments,425040,Rendered by Voluntary Organisations,01/09/2022,4041532-PIG_138286,"120,860.69",TEAM FOSTERING.
Adult and Health Services,Commissioning inc Supporting People,Third Party Payments,441001,Supporting People E441,01/09/2022,4041535-2298508,"19,284.04",THE CYRENIANS LTD T/A CHANGING LIVES.
Children and Young Peoples Services,Head of Childrens Social Care,Third Party Payments,440038,Other third party payments E440,01/09/2022,4041536-PIG_138315,"1,250.12",THE CYRENIANS LTD T/A CHANGING LIVES.
Adult and Health Services,Head of Adults,Third Party Payments,470101,Purchase of Care,01/09/2022,4041537-I-22-5490659,"40,224.36",THE FIELDS CARE HOME.
Children and Young Peoples Services,Head of Childrens Social Care,Third Party Payments,425040,Rendered by Voluntary Organisations,01/09/2022,4041538-PIG_138269,"6,185.44",THE FOSTERING COMPANY NORTH EAST LTD.
Adult and Health Services,Head of Adults,Third Party Payments,470101,Purchase of Care,01/09/2022,4041539-I-22-5490609,"103,099.13",THE HAWTHORNS LODGE LTD.
Adult and Health Services,Head of Adults,Third Party Payments,473101,Purchase of Care,01/09/2022,4041540-I-22-5490361,"2,641.06",THE HOSPITAL OF GOD AT GREATHAM.
Adult and Health Services,Head of Adults,Third Party Payments,472101,Purchase of Care,01/09/2022,4041541-I-22-5346631,"19,456.77",THE HUMAN SUPPORT GROUP LTD.
Adult and Health Services,Head of Adults,Third Party Payments,472111,Purchase of Care,01/09/2022,4041541-I-22-5490336,"37,634.61",THE HUMAN SUPPORT GROUP LTD.
Adult and Health Services,Head of Adults,Third Party Payments,470101,Purchase of Care,01/09/2022,4041542-I-22-5490696,"3,121.56",THE LAURELS CARE SERVICES LTD.
Adult and Health Services,Head of Adults,Third Party Payments,470101,Purchase of Care,01/09/2022,4041543-I-22-5490583,"13,809.75",THE ORDER OF THE GOOD & PERPETUAL SUCCOUR.
Adult and Health Services,Head of Adults,Third Party Payments,473101,Purchase of Care,01/09/2022,4041544-I-22-5490442,"12,515.86",THE PERCY HEDLEY FOUNDATION.
Adult and Health Services,Head of Adults,Third Party Payments,470101,Purchase of Care,01/09/2022,4041544-I-22-5490691,"19,303.64",THE PERCY HEDLEY FOUNDATION.
Adult and Health Services,Head of Adults,Third Party Payments,470101,Purchase of Care,01/09/2022,4041545-I-22-5490791,"2,850.56",THE SALVATION ARMY T/A VILLA ADASTRA CARE HOME.
Adult and Health Services,Head of Adults,Third Party Payments,478101,Purchase of Care,01/09/2022,4041546-I-22-5490354,"29,565.52",THERA NORTH TRADING LTD.
Adult and Health Services,Head of Adults,Third Party Payments,478101,Purchase of Care,01/09/2022,4041546-I-22-5490507,"25,649.20",THERA NORTH TRADING LTD.
Adult and Health Services,Commissioning inc Supporting People,Third Party Payments,441001,Supporting People E441,01/09/2022,4041548-2265293,"28,678.64",THIRTEEN HOUSING GROUP LTD.
Adult and Health Services,Head of Adults,Third Party Payments,473101,Purchase of Care,01/09/2022,4041558-I-22-5490248,"28,526.68",THOMPSON & HOWE LTD.
Adult and Health Services,Head of Adults,Third Party Payments,473101,Purchase of Care,01/09/2022,4041558-I-22-5490272,"15,537.86",THOMPSON & HOWE LTD.
Adult and Health Services,Head of Adults,Third Party Payments,473101,Purchase of Care,01/09/2022,4041558-I-22-5490313,"20,832.85",THOMPSON & HOWE LTD.
Adult and Health Services,Head of Adults,Third Party Payments,473101,Purchase of Care,01/09/2022,4041558-I-22-5490329,"38,801.73",THOMPSON & HOWE LTD.
Adult and Health Services,Head of Adults,Third Party Payments,473101,Purchase of Care,01/09/2022,4041558-I-22-5490468,"27,932.80",THOMPSON & HOWE LTD.
Adult and Health Services,Head of Adults,Third Party Payments,473101,Purchase of Care,01/09/2022,4041558-I-22-5490478,"31,594.88",THOMPSON & HOWE LTD.
Adult and Health Services,Head of Adults,Third Party Payments,473101,Purchase of Care,01/09/2022,4041558-I-22-5490488,"26,233.84",THOMPSON & HOWE LTD.
Adult and Health Services,Head of Adults,Third Party Payments,473101,Purchase of Care,01/09/2022,4041558-I-22-5490519,"38,975.54",THOMPSON & HOWE LTD.
Adult and Health Services,Head of Adults,Third Party Payments,470101,Purchase of Care,01/09/2022,4041560-I-22-5490812,"2,540.00",TL CARE LTD.
Adult and Health Services,Head of Adults,Third Party Payments,472101,Purchase of Care,01/09/2022,4041561-I-22-5490549,"15,038.44",TLC COMMUNITY SERVICES.
Adult and Health Services,Head of Adults,Third Party Payments,470101,Purchase of Care,01/09/2022,4041564-I-22-5490575,"69,413.36",TRIMS GYM LTD.
Adult and Health Services,Head of Adults,Third Party Payments,470101,Purchase of Care,01/09/2022,4041566-I-22-5490808,"7,982.24",TRUST CARE MANAGEMENT LTD.
Children and Young Peoples Services,Head of Childrens Social Care,Third Party Payments,425040,Rendered by Voluntary Organisations,01/09/2022,4041568-PIG_138290,"50,860.28",UK FOSTERING LTD.
Adult and Health Services,Head of Adults,Third Party Payments,474101,Purchase of Care,01/09/2022,4041569-I-22-5490817,"1,561.36",UNDERWOOD HALL LTD.
Adult and Health Services,Head of Adults,Third Party Payments,478101,Purchase of Care,01/09/2022,4041570-I-22-5490228,"12,862.64",UNITED RESPONSE.
Adult and Health Services,Head of Adults,Third Party Payments,478101,Purchase of Care,01/09/2022,4041570-I-22-5490396,"13,461.56",UNITED RESPONSE.
Adult and Health Services,Head of Adults,Third Party Payments,470101,Purchase of Care,01/09/2022,4041571-I-22-5490698,"20,303.68",VALDIGARTH RESIDENTIAL CARE HOME.
Adult and Health Services,Head of Adults,Third Party Payments,472101,Purchase of Care,01/09/2022,4041579-I-22-5490301,"18,186.29",VILLAGE CARE LTD.
Children and Young Peoples Services,Head of Childrens Social Care,Third Party Payments,425021,Rendered by Voluntary Organisations,01/09/2022,4041581-PIG_138885,"77,280.04",VITA NOVA NE LTD.
Adult and Health Services,Head of Adults,Third Party Payments,473101,Purchase of Care,01/09/2022,4041582-I-22-5490214,"10,532.58",VOIDSERVICES LTD.
Adult and Health Services,Head of Adults,Third Party Payments,470101,Purchase of Care,01/09/2022,4041583-I-22-5490819,"9,616.70",VOYAGE 1 LTD.
Adult and Health Services,Head of Adults,Third Party Payments,470101,Purchase of Care,01/09/2022,4041584-I-22-5490765,"16,316.84",VOYAGE 1 LTD.
Adult and Health Services,Head of Adults,Third Party Payments,470101,Purchase of Care,01/09/2022,4041585-I-22-5490627,"5,577.04",VOYAGE 1 LTD.
Adult and Health Services,Head of Adults,Third Party Payments,470101,Purchase of Care,01/09/2022,4041586-I-22-5490832,"17,530.44",VOYAGE 1 LTD.
Adult and Health Services,Head of Adults,Third Party Payments,478101,Purchase of Care,01/09/2022,4041587-I-22-5490362,"12,498.63",VOYAGE 1 LTD.
Adult and Health Services,Head of Adults,Third Party Payments,478101,Purchase of Care,01/09/2022,4041587-I-22-5490401,"10,150.80",VOYAGE 1 LTD.
Adult and Health Services,Head of Adults,Third Party Payments,470101,Purchase of Care,01/09/2022,4041587-I-22-5490774,"10,897.00",VOYAGE 1 LTD.
Adult and Health Services,Head of Adults,Third Party Payments,478101,Purchase of Care,01/09/2022,4041587-I-22-5525491,"4,473.88",VOYAGE 1 LTD.
Children and Young Peoples Services,Head of Childrens Social Care,Third Party Payments,425021,Rendered by Voluntary Organisations,01/09/2022,4041589-PIG_138297,"38,000.00",WE CARE BESPOKE LTD T/A TYNE ROAD CHILDREN`S HOME.
Adult and Health Services,Head of Adults,Third Party Payments,473101,Purchase of Care,01/09/2022,4041590-I-22-5490363,"21,154.69",WEAR 1 CARE LTD.
Adult and Health Services,Head of Adults,Third Party Payments,473101,Purchase of Care,01/09/2022,4041591-I-22-5490318,"2,245.44",WEAR VALLEY ANGLING CIC.
Adult and Health Services,Commissioning inc Supporting People,Third Party Payments,441001,Supporting People E441,01/09/2022,4041592-2611055,"9,568.80",WEAR VALLEY WOMENS AID LTD.
Adult and Health Services,Head of Adults,Third Party Payments,470101,Purchase of Care,01/09/2022,4041593-I-22-5490759,"2,710.60",WELLBURN CARE HOMES LTD.
Adult and Health Services,Head of Adults,Third Party Payments,470101,Purchase of Care,01/09/2022,4041594-I-22-5490685,"2,350.49",WELLBURN CARE HOMES LTD.
Adult and Health Services,Head of Adults,Third Party Payments,474101,Purchase of Care,01/09/2022,4041596-I-22-5490666,"36,728.76",WEST HOUSE CARE HOME LTD.
Adult and Health Services,Head of Adults,Third Party Payments,470101,Purchase of Care,01/09/2022,4041597-I-22-5490655,"115,213.11",WEST LODGE CARE HOMES LTD.
Adult and Health Services,Head of Adults,Third Party Payments,470101,Purchase of Care,01/09/2022,4041604-I-22-5490633,"61,608.51",WILLIAMS & SPENCELEY LTD.
Children and Young Peoples Services,Head of Childrens Social Care,Third Party Payments,425021,Rendered by Voluntary Organisations,01/09/2022,4041605-PIG_138292,"16,502.84",WITHERSLACK GROUP LTD T/A ASHBROOKE SCHOOL.
Dedicated Schools Grant BG0015,DSG High Needs Block,Third Party Payments,425005,Rendered by Voluntary Organisations,01/09/2022,4041605-PIG_138309,"61,176.68",WITHERSLACK GROUP LTD T/A ASHBROOKE SCHOOL.
Dedicated Schools Grant BG0015,DSG High Needs Block,Third Party Payments,425005,Rendered by Voluntary Organisations,01/09/2022,4041606-PIG_138313,"16,070.80",WITHERSLACK GROUP LTD T/A HARTWELL SCHOOL.
Children and Young Peoples Services,Head of Childrens Social Care,Third Party Payments,425021,Rendered by Voluntary Organisations,01/09/2022,4041607-PIG_138293,"15,334.72",WITHERSLACK GROUP LTD.
Children and Young Peoples Services,Head of Childrens Social Care,Third Party Payments,425021,Rendered by Voluntary Organisations,01/09/2022,4041607-PIG_138294,"19,667.60",WITHERSLACK GROUP LTD.
Children and Young Peoples Services,Head of Childrens Social Care,Third Party Payments,425021,Rendered by Voluntary Organisations,01/09/2022,4041607-PIG_138295,"28,712.72",WITHERSLACK GROUP LTD.
Children and Young Peoples Services,Head of Childrens Social Care,Third Party Payments,425021,Rendered by Voluntary Organisations,01/09/2022,4041607-PIG_138296,"17,028.24",WITHERSLACK GROUP LTD.
Children and Young Peoples Services,Head of Childrens Social Care,Third Party Payments,425021,Rendered by Voluntary Organisations,01/09/2022,4041607-PIG_138299,"19,153.40",WITHERSLACK GROUP LTD.
Dedicated Schools Grant BG0015,DSG High Needs Block,Third Party Payments,425005,Rendered by Voluntary Organisations,01/09/2022,4041607-PIG_138310,"6,572.04",WITHERSLACK GROUP LTD.
Dedicated Schools Grant BG0015,DSG High Needs Block,Third Party Payments,425005,Rendered by Voluntary Organisations,01/09/2022,4041607-PIG_138311,"10,361.96",WITHERSLACK GROUP LTD.
Children and Young Peoples Services,Head of Childrens Social Care,Third Party Payments,425023,Rendered by Voluntary Organisations,01/09/2022,4041607-PIG_138312,"13,159.24",WITHERSLACK GROUP LTD.
Children and Young Peoples Services,Head of Childrens Social Care,Third Party Payments,425023,Rendered by Voluntary Organisations,01/09/2022,4041607-PIG_138314,"6,740.08",WITHERSLACK GROUP LTD.
Adult and Health Services,Head of Adults,Third Party Payments,473101,Purchase of Care,01/09/2022,4041608-I-22-5490264,"8,700.32",WOODCRAFT FOR LANDSCAPES CIC.
Adult and Health Services,Head of Adults,Third Party Payments,474101,Purchase of Care,01/09/2022,4041609-I-22-5490855,"3,328.40",WYVIS HOUSE CARE HOME LTD.
Children and Young Peoples Services,Head of Childrens Social Care,Third Party Payments,440038,Other third party payments E440,01/09/2022,4041610-PIG_138318,"38,776.52",YMCA WEARSIDE LTD.
Adult and Health Services,Head of Adults,Third Party Payments,470101,Purchase of Care,01/09/2022,4041611-I-22-5490769,"2,297.12",YORKARE HOMES LTD.
Dedicated Schools Grant BG0015,DSG High Needs Block,Third Party Payments,425005,Rendered by Voluntary Organisations,01/09/2022,4041612-PIG_136468,661.19,YOUNG FOUNDATIONS LTD.
Dedicated Schools Grant BG0015,DSG High Needs Block,Third Party Payments,425005,Rendered by Voluntary Organisations,01/09/2022,4041612-PIG_138921,818.47,YOUNG FOUNDATIONS LTD.
Children and Young Peoples Services,Head of Childrens Social Care,Third Party Payments,425021,Rendered by Voluntary Organisations,01/09/2022,4041613-PIG_138298,"17,000.00",YOUNG FOUNDATIONS LTD.
Adult and Health Services,Head of Adults,Third Party Payments,478101,Purchase of Care,01/09/2022,4041614-I-22-5490236,"8,686.44",YS SERVICES LTD T/A EMBRACING CARE.
Adult and Health Services,Head of Adults,Third Party Payments,478101,Purchase of Care,01/09/2022,4041614-I-22-5490237,"19,324.28",YS SERVICES LTD T/A EMBRACING CARE.
Adult and Health Services,Head of Adults,Third Party Payments,478101,Purchase of Care,01/09/2022,4041614-I-22-5490238,"10,807.04",YS SERVICES LTD T/A EMBRACING CARE.
Adult and Health Services,Head of Adults,Third Party Payments,478101,Purchase of Care,01/09/2022,4041614-I-22-5490239,"11,161.16",YS SERVICES LTD T/A EMBRACING CARE.
Adult and Health Services,Head of Adults,Third Party Payments,478101,Purchase of Care,01/09/2022,4041614-I-22-5490283,"10,326.24",YS SERVICES LTD T/A EMBRACING CARE.
Adult and Health Services,Head of Adults,Third Party Payments,478101,Purchase of Care,01/09/2022,4041614-I-22-5490284,"6,514.32",YS SERVICES LTD T/A EMBRACING CARE.
Adult and Health Services,Head of Adults,Third Party Payments,478101,Purchase of Care,01/09/2022,4041614-I-22-5490285,"10,422.68",YS SERVICES LTD T/A EMBRACING CARE.
Adult and Health Services,Head of Adults,Third Party Payments,478101,Purchase of Care,01/09/2022,4041614-I-22-5490286,"7,054.68",YS SERVICES LTD T/A EMBRACING CARE.
Adult and Health Services,Head of Adults,Third Party Payments,478101,Purchase of Care,01/09/2022,4041614-I-22-5490287,"7,478.52",YS SERVICES LTD T/A EMBRACING CARE.
Adult and Health Services,Head of Adults,Third Party Payments,478101,Purchase of Care,01/09/2022,4041614-I-22-5490288,"10,390.40",YS SERVICES LTD T/A EMBRACING CARE.
Adult and Health Services,Head of Adults,Third Party Payments,478101,Purchase of Care,01/09/2022,4041614-I-22-5490289,"7,349.96",YS SERVICES LTD T/A EMBRACING CARE.
Adult and Health Services,Head of Adults,Third Party Payments,478101,Purchase of Care,01/09/2022,4041614-I-22-5490323,"10,647.68",YS SERVICES LTD T/A EMBRACING CARE.
Adult and Health Services,Head of Adults,Third Party Payments,478101,Purchase of Care,01/09/2022,4041614-I-22-5490368,"14,985.16",YS SERVICES LTD T/A EMBRACING CARE.
Adult and Health Services,Head of Adults,Third Party Payments,478101,Purchase of Care,01/09/2022,4041614-I-22-5490369,"10,703.92",YS SERVICES LTD T/A EMBRACING CARE.
Adult and Health Services,Head of Adults,Third Party Payments,478101,Purchase of Care,01/09/2022,4041614-I-22-5490370,"10,003.52",YS SERVICES LTD T/A EMBRACING CARE.
Adult and Health Services,Head of Adults,Third Party Payments,478101,Purchase of Care,01/09/2022,4041614-I-22-5490371,"8,686.44",YS SERVICES LTD T/A EMBRACING CARE.
Adult and Health Services,Head of Adults,Third Party Payments,478101,Purchase of Care,01/09/2022,4041614-I-22-5490372,"10,976.68",YS SERVICES LTD T/A EMBRACING CARE.
Adult and Health Services,Head of Adults,Third Party Payments,478101,Purchase of Care,01/09/2022,4041614-I-22-5490373,"7,999.88",YS SERVICES LTD T/A EMBRACING CARE.
Adult and Health Services,Head of Adults,Third Party Payments,478101,Purchase of Care,01/09/2022,4041614-I-22-5490409,"10,485.60",YS SERVICES LTD T/A EMBRACING CARE.
Adult and Health Services,Head of Adults,Third Party Payments,478101,Purchase of Care,01/09/2022,4041614-I-22-5490410,"2,780.10",YS SERVICES LTD T/A EMBRACING CARE.
Adult and Health Services,Head of Adults,Third Party Payments,478101,Purchase of Care,01/09/2022,4041614-I-22-5490411,"10,228.48",YS SERVICES LTD T/A EMBRACING CARE.
Adult and Health Services,Head of Adults,Third Party Payments,478101,Purchase of Care,01/09/2022,4041614-I-22-5490412,"10,581.96",YS SERVICES LTD T/A EMBRACING CARE.
Adult and Health Services,Head of Adults,Third Party Payments,478101,Purchase of Care,01/09/2022,4041614-I-22-5490413,"9,760.44",YS SERVICES LTD T/A EMBRACING CARE.
Adult and Health Services,Head of Adults,Third Party Payments,478101,Purchase of Care,01/09/2022,4041614-I-22-5490452,"12,447.36",YS SERVICES LTD T/A EMBRACING CARE.
Adult and Health Services,Head of Adults,Third Party Payments,478101,Purchase of Care,01/09/2022,4041614-I-22-5490453,"24,967.88",YS SERVICES LTD T/A EMBRACING CARE.
Adult and Health Services,Head of Adults,Third Party Payments,478101,Purchase of Care,01/09/2022,4041614-I-22-5490454,"11,578.36",YS SERVICES LTD T/A EMBRACING CARE.
Adult and Health Services,Head of Adults,Third Party Payments,478101,Purchase of Care,01/09/2022,4041614-I-22-5490482,"2,314.12",YS SERVICES LTD T/A EMBRACING CARE.
Adult and Health Services,Head of Adults,Third Party Payments,478101,Purchase of Care,01/09/2022,4041614-I-22-5490483,"9,169.12",YS SERVICES LTD T/A EMBRACING CARE.
Adult and Health Services,Head of Adults,Third Party Payments,478101,Purchase of Care,01/09/2022,4041614-I-22-5490484,"18,922.32",YS SERVICES LTD T/A EMBRACING CARE.
Adult and Health Services,Head of Adults,Third Party Payments,478101,Purchase of Care,01/09/2022,4041614-I-22-5490485,"8,686.44",YS SERVICES LTD T/A EMBRACING CARE.
Adult and Health Services,Head of Adults,Third Party Payments,478101,Purchase of Care,01/09/2022,4041614-I-22-5490486,"6,546.46",YS SERVICES LTD T/A EMBRACING CARE.
Adult and Health Services,Head of Adults,Third Party Payments,478101,Purchase of Care,01/09/2022,4041614-I-22-5490534,"8,397.12",YS SERVICES LTD T/A EMBRACING CARE.
Adult and Health Services,Head of Adults,Third Party Payments,478101,Purchase of Care,01/09/2022,4041614-I-22-5490535,"8,516.04",YS SERVICES LTD T/A EMBRACING CARE.
Children and Young Peoples Services,Head of Childrens Social Care,Third Party Payments,425020,Rendered by Voluntary Organisations,01/09/2022,4041615-PIG_138256,"3,530.00",ZOE PLACE BABY HOSPICE.
Adult and Health Services,Public Health CC0450,Third Party Payments,460803,Contract Payments,01/09/2022,4041618-INV04779,"2,500.00",ADFERIAD RECOVERY LTD.
Regeneration Economy and Growth,Planning & Housing,Supplies and Services,342051,Computers and Communications,01/09/2022,4041626-9957714,"1,147.33",ANCHOR COMPUTER SYSTEMS LTD.
Regeneration Economy and Growth,Corporate Property and Land,Supplies and Services,304221,Equipment and Materials,01/09/2022,4041627-5436,"15,475.00",APEX ROOFING SPECIALISTS LTD.
Regeneration Economy and Growth,Corporate Property and Land,Supplies and Services,304221,Equipment and Materials,01/09/2022,4041631-2178,605.00,AWR ROOFING & ALUMIN RAINWATER SYSTEMS LTD.
Regeneration Economy and Growth,Corporate Property and Land,Third Party Payments,430100,Rendered by Private Contractors,01/09/2022,4041632-33951,"7,455.00",AYCLIFFE FABRICATIONS LTD.
Regeneration Economy and Growth,Corporate Property and Land,Third Party Payments,430100,Rendered by Private Contractors,01/09/2022,4041635-240735,706.80,BELLWOOD REWINDS LTD.
Regeneration Economy and Growth,Corporate Property and Land,Supplies and Services,384199,Miscellaneous Expenses,01/09/2022,4041638-42353,950.00,BGP CONSULTING LTD T/A BILLINGHURST GEORGE & PARTNERS.
Children and Young Peoples Services,Head of Education and Skills,Supplies and Services,338027,Services,01/09/2022,4041639-SJSI633,"3,950.00",BISHOP HOGARTH CATHOLIC EDUCATION TRUST.
Regeneration Economy and Growth,Culture Sport and Tourism,Premises,145023,Cleaning and Domestic Supplies,01/09/2022,4041640-22SI2281597,651.00,BRENNTAG UK LTD.
Regeneration Economy and Growth,Culture Sport and Tourism,Premises,145023,Cleaning and Domestic Supplies,01/09/2022,4041640-22SI2283765,"2,500.00",BRENNTAG UK LTD.
Neighbourhoods and Climate Change,Technical Services CM0300,Supplies and Services,338027,Services,01/09/2022,4041641-51194,"10,444.00",BRIDGEWAY CONSULTING LTD.
Neighbourhoods and Climate Change,Technical Services CM0300,Supplies and Services,338066,Services,01/09/2022,4041641-51196,"13,641.38",BRIDGEWAY CONSULTING LTD.
Children and Young Peoples Services,Head of Education and Skills,Third Party Payments,440999,Other third party payments E440,01/09/2022,4041643-KICK5044718INVOICE000905,"1,085.21",BURNS PETCARE LTD T/A WOOFS N SCRUFFS.
Children and Young Peoples Services,Head of Education and Skills,Third Party Payments,440999,Other third party payments E440,01/09/2022,4041643-KICK5044718INVOICE000907,"1,044.28",BURNS PETCARE LTD T/A WOOFS N SCRUFFS.
Resources BK0010,Digital Services,Supplies and Services,342051,Computers and Communications,01/09/2022,4041644-969696,"21,692.76",BYTES SOFTWARE SERVICES LTD.
Regeneration Economy and Growth,Corporate Property and Land,Supplies and Services,304221,Equipment and Materials,01/09/2022,4041646-140011995,"25,132.12",CARLISLE CONSTRUCTION MATERIALS LTD.
Regeneration Economy and Growth,Corporate Property and Land,Third Party Payments,430100,Rendered by Private Contractors,01/09/2022,4041648-10019,"3,023.01",CATHEDRAL LOCK & SAFE SERVICES LTD.
Regeneration Economy and Growth,Corporate Property and Land,Third Party Payments,430100,Rendered by Private Contractors,01/09/2022,4041650-703,594.42,CEILINGS DIRECT LTD.
Regeneration Economy and Growth,Culture Sport and Tourism,Supplies and Services,338047,Services,01/09/2022,4041655-ZL1052,"1,000.00",CIEKABAILEY ASSOCIATES.
Regeneration Economy and Growth,Culture Sport and Tourism,Supplies and Services,384302,Miscellaneous Expenses,01/09/2022,4041656-210822,"2,775.00",CIRCURAMA.
Regeneration Economy and Growth,Corporate Property and Land,Third Party Payments,430100,Rendered by Private Contractors,01/09/2022,4041663-4473/CCS1933,"134,489.66",COMPLETE CLADDING SYSTEMS LTD.
Adult and Health Services,Public Health CC0450,Supplies and Services,384899,Miscellaneous Expenses,01/09/2022,4041666-3910020430,"60,607.00",COUNTY DURHAM & DARLINGTON NHS FOUNDATION TRUST (CDDFT).
Adult and Health Services,Public Health CC0450,Supplies and Services,384899,Miscellaneous Expenses,01/09/2022,4041666-3910020441,"88,322.00",COUNTY DURHAM & DARLINGTON NHS FOUNDATION TRUST (CDDFT).
Regeneration Economy and Growth,Planning & Housing,Supplies and Services,338094,Services,01/09/2022,4041682-1100,962.50,DURHAM CRICKET EVENTS LTD.
Regeneration Economy and Growth,Corporate Property and Land,Supplies and Services,304221,Equipment and Materials,01/09/2022,4041687-059-302424,645.00,EDMUNDSON ELECTRICAL LTD.
Regeneration Economy and Growth,Corporate Property and Land,Third Party Payments,430100,Rendered by Private Contractors,01/09/2022,4041699-775-FINALCLAIM,"22,660.50",GOTT TECHNICAL SERVICES LTD.
Children and Young Peoples Services,Head of Early Help Inclusion & Vulnerable Children.,Premises,145023,Cleaning and Domestic Supplies,01/09/2022,4041700-06/186325,596.20,GREENHAM TRADING LTD.
Adult and Health Services,Public Health CC0450,Third Party Payments,460803,Contract Payments,01/09/2022,4041703-2510045243,"929,271.75",HARROGATE & DISTRICT NHS FOUNDATION TRUST.
Neighbourhoods and Climate Change,Environmental Services,Supplies and Services,384199,Miscellaneous Expenses,01/09/2022,4041711-981/DUCC3949,"18,250.00",IMAGEMAKERS DESIGN & CONSULTANCY LTD.
Regeneration Economy and Growth,Corporate Property and Land,Third Party Payments,430100,Rendered by Private Contractors,01/09/2022,4041713-13056,"4,417.00",INGLEFORD SCAFFOLDING LTD.
Regeneration Economy and Growth,Corporate Property and Land,Third Party Payments,430100,Rendered by Private Contractors,01/09/2022,4041715-0584-16,"246,999.99",IVEGATE LTD.
Neighbourhoods and Climate Change,Technical Services CM0300,Supplies and Services,304221,Equipment and Materials,01/09/2022,4041721-0107/00690282,"1,320.00",JT DOVE LTD.
Regeneration Economy and Growth,Corporate Property and Land,Supplies and Services,304221,Equipment and Materials,01/09/2022,4041721-0113/00685673,864.74,JT DOVE LTD.
Neighbourhoods and Climate Change,Technical Services CM0300,Supplies and Services,304221,Equipment and Materials,01/09/2022,4041721-0113/00691330,"1,438.69",JT DOVE LTD.
Regeneration Economy and Growth,Corporate Property and Land,Supplies and Services,304221,Equipment and Materials,01/09/2022,4041721-0113/00691331,560.45,JT DOVE LTD.
Regeneration Economy and Growth,Corporate Property and Land,Supplies and Services,304221,Equipment and Materials,01/09/2022,4041721-0113/00718640,"2,948.93",JT DOVE LTD.
Neighbourhoods and Climate Change,Technical Services CM0300,Stock A926,926900,Stock in hand-Inventory system,01/09/2022,4041721-0113/00730551,645.00,JT DOVE LTD.
Neighbourhoods and Climate Change,Technical Services CM0300,Supplies and Services,304221,Equipment and Materials,01/09/2022,4041721-0303/00673110,563.15,JT DOVE LTD.
Regeneration Economy and Growth,Culture Sport and Tourism,Supplies and Services,384302,Miscellaneous Expenses,01/09/2022,4041731-300822,"2,762.50",MAD ALICE THEATRE COMPANY LTD.
Regeneration Economy and Growth,Corporate Property and Land,Third Party Payments,430100,Rendered by Private Contractors,01/09/2022,4041745-814556,"6,060.00",NATIONWIDE CHIMNEY COMPONENTS LTD.
Regeneration Economy and Growth,Culture Sport and Tourism,Supplies and Services,338047,Services,01/09/2022,4041748-SB/3346,"1,000.00",NELSON BROWNE MANAGEMENT LTD.
Children and Young Peoples Services,Head of Childrens Social Care,Supplies and Services,384500,Miscellaneous Expenses,01/09/2022,4041754-3405,720.00,NORTH EAST ADOPTION THERAPY SERVICES LTD (NEATS).
Children and Young Peoples Services,Head of Childrens Social Care,Supplies and Services,384500,Miscellaneous Expenses,01/09/2022,4041754-3452,"1,260.00",NORTH EAST ADOPTION THERAPY SERVICES LTD (NEATS).
Children and Young Peoples Services,Head of Childrens Social Care,Supplies and Services,384500,Miscellaneous Expenses,01/09/2022,4041754-3453,720.00,NORTH EAST ADOPTION THERAPY SERVICES LTD (NEATS).
Children and Young Peoples Services,Head of Childrens Social Care,Supplies and Services,384500,Miscellaneous Expenses,01/09/2022,4041754-3456,660.00,NORTH EAST ADOPTION THERAPY SERVICES LTD (NEATS).
Children and Young Peoples Services,Head of Childrens Social Care,Supplies and Services,384500,Miscellaneous Expenses,01/09/2022,4041754-3457,840.00,NORTH EAST ADOPTION THERAPY SERVICES LTD (NEATS).
Children and Young Peoples Services,Head of Childrens Social Care,Supplies and Services,384500,Miscellaneous Expenses,01/09/2022,4041754-3460,660.00,NORTH EAST ADOPTION THERAPY SERVICES LTD (NEATS).
Children and Young Peoples Services,Head of Childrens Social Care,Supplies and Services,384500,Miscellaneous Expenses,01/09/2022,4041754-3464,540.00,NORTH EAST ADOPTION THERAPY SERVICES LTD (NEATS).
Children and Young Peoples Services,Head of Childrens Social Care,Supplies and Services,384500,Miscellaneous Expenses,01/09/2022,4041754-3467,720.00,NORTH EAST ADOPTION THERAPY SERVICES LTD (NEATS).
Children and Young Peoples Services,Head of Childrens Social Care,Supplies and Services,384500,Miscellaneous Expenses,01/09/2022,4041754-3468,720.00,NORTH EAST ADOPTION THERAPY SERVICES LTD (NEATS).
Children and Young Peoples Services,Head of Childrens Social Care,Supplies and Services,384500,Miscellaneous Expenses,01/09/2022,4041754-3469,720.00,NORTH EAST ADOPTION THERAPY SERVICES LTD (NEATS).
Children and Young Peoples Services,Head of Childrens Social Care,Supplies and Services,384500,Miscellaneous Expenses,01/09/2022,4041754-3471,540.00,NORTH EAST ADOPTION THERAPY SERVICES LTD (NEATS).
Children and Young Peoples Services,Head of Childrens Social Care,Supplies and Services,384500,Miscellaneous Expenses,01/09/2022,4041754-3474,720.00,NORTH EAST ADOPTION THERAPY SERVICES LTD (NEATS).
Children and Young Peoples Services,Head of Childrens Social Care,Supplies and Services,384500,Miscellaneous Expenses,01/09/2022,4041754-3475,600.00,NORTH EAST ADOPTION THERAPY SERVICES LTD (NEATS).
Neighbourhoods and Climate Change,Technical Services CM0300,Supplies and Services,304221,Equipment and Materials,01/09/2022,4041755-226917,615.00,NORTH EAST CONCRETE LTD.
Neighbourhoods and Climate Change,Technical Services CM0300,Supplies and Services,304221,Equipment and Materials,01/09/2022,4041755-227050,"1,230.00",NORTH EAST CONCRETE LTD.
Neighbourhoods and Climate Change,Technical Services CM0300,Supplies and Services,304221,Equipment and Materials,01/09/2022,4041755-227164,660.00,NORTH EAST CONCRETE LTD.
Neighbourhoods and Climate Change,Technical Services CM0300,Supplies and Services,304221,Equipment and Materials,01/09/2022,4041755-227179,660.00,NORTH EAST CONCRETE LTD.
Children and Young Peoples Services,Head of Education and Skills,Third Party Payments,440999,Other third party payments E440,01/09/2022,4041756-4538-22/8/22,"5,070.00",NORTH EAST DANCE CIC.
Regeneration Economy and Growth,Culture Sport and Tourism,Third Party Payments,430131,Rendered by Private Contractors,01/09/2022,4041756-4548,540.00,NORTH EAST DANCE CIC.
Regeneration Economy and Growth,Corporate Property and Land,Third Party Payments,430100,Rendered by Private Contractors,01/09/2022,4041760-5164,"8,376.90",ORA PROPERTY SERVICES LTD.
Neighbourhoods and Climate Change,Environmental Services,Supplies and Services,304259,Equipment and Materials,01/09/2022,4041762-OAS10030133,"2,806.50",ORIGIN AMENITY SOLUTIONS LTD.
Neighbourhoods and Climate Change,Environmental Services,Supplies and Services,304221,Equipment and Materials,01/09/2022,4041762-OASI0030117,"4,920.00",ORIGIN AMENITY SOLUTIONS LTD.
Neighbourhoods and Climate Change,Environmental Services,Supplies and Services,304259,Equipment and Materials,01/09/2022,4041762-OASI0030130,"2,806.50",ORIGIN AMENITY SOLUTIONS LTD.
Neighbourhoods and Climate Change,Environmental Services,Supplies and Services,304221,Equipment and Materials,01/09/2022,4041762-OASI0030141,"4,999.18",ORIGIN AMENITY SOLUTIONS LTD.
Neighbourhoods and Climate Change,Environmental Services,Supplies and Services,338066,Services,01/09/2022,4041763-INV-0082,"1,656.00",PAOLA V ROZO.
Regeneration Economy and Growth,Economic Development Level C,Supplies and Services,384899,Miscellaneous Expenses,01/09/2022,4041766-SD029/4,"2,953.12",PEOPLE INTO ENTERPRISE LTD T/A CREATE NORTH.
Children and Young Peoples Services,Head of Early Help Inclusion & Vulnerable Children.,Supplies and Services,304259,Equipment and Materials,01/09/2022,4041769-2593494616,"1,905.42",PHONAK UK LTD.
Adult and Health Services,Head of Adults,Third Party Payments,479102,Purchase of Care,01/09/2022,4041772-017,"7,990.50",POSITIVE CARE & SUPPORT LTD.
Adult and Health Services,Head of Adults,Third Party Payments,479102,Purchase of Care,01/09/2022,4041772-018,"7,990.50",POSITIVE CARE & SUPPORT LTD.
Resources BK0010,Digital Services,Supplies and Services,332029,Printing Stationery and Gen Off Exps,01/09/2022,4041775-20161,"3,510.00",RADECAL SIGNS GRAPHICS & ADVERTISING.
Regeneration Economy and Growth,Culture Sport and Tourism,Supplies and Services,338047,Services,01/09/2022,4041777-7164,"1,000.00",REGAN MANAGEMENT LTD T/A REGAN TALENT GROUP.
Adult and Health Services,Commissioning inc Supporting People,Third Party Payments,479111,Purchase of Care,01/09/2022,4041779-28020,"34,291.57",RETHINK MENTAL ILLNESS LTD.
Regeneration Economy and Growth,Corporate Property and Land,Third Party Payments,430100,Rendered by Private Contractors,01/09/2022,4041787-3560/004,"22,833.92",SPRINGS ROOFING LTD.
Adult and Health Services,Head of Adults,Third Party Payments,478151,Purchase of Care,01/09/2022,4041788-0000011323,"3,275.08",ST ANNES COMMUNITY SERVICES.
Children and Young Peoples Services,Head of Education and Skills,Supplies and Services,336005,Advertising E336,01/09/2022,4041790-INV-6239,"13,800.00",STEVE DAVIDSON ADVERTISING LTD T/A SD ADVERTISING LTD.
Neighbourhoods and Climate Change,Technical Services CM0300,Supplies and Services,304221,Equipment and Materials,01/09/2022,4041791-30663,519.48,STONEGRAVE AGGREGATES LTD.
Resources BK0010,Legal & Democratic Services,Supplies and Services,338025,Services,01/09/2022,4041792-12860,"2,480.00",STUART WRIGHT FUNERAL SERVICE LTD.
Resources BK0010,Legal & Democratic Services,Supplies and Services,338025,Services,01/09/2022,4041792-12889,"2,020.00",STUART WRIGHT FUNERAL SERVICE LTD.
Regeneration Economy and Growth,Culture Sport and Tourism,Supplies and Services,304337,Equipment and Materials,01/09/2022,4041795-SWINV062901,613.50,SWIM ENGLAND TRADING LTD.*
Regeneration Economy and Growth,Business Durham CL0850,Premises,108125,Service Repairs and Maintenance,01/09/2022,4041796-INV-0410,800.00,SWINBURNE HORTICULTURAL SERVICES LTD.
Neighbourhoods and Climate Change,Environmental Services,Transport,215023,Running Costs of Vehicles,01/09/2022,4041801-4123351,589.00,TENNANTS DISTRIBUTION LTD.
Regeneration Economy and Growth,Corporate Property and Land,Supplies and Services,304221,Equipment and Materials,01/09/2022,4041810-37422,"4,719.00",TOTAL PUMP SOLUTIONS LTD.
Resources BK0010,Legal & Democratic Services,Supplies and Services,338042,Services,01/09/2022,4041815-300889/INVRP224,720.00,TRINITY CHAMBERS.
Neighbourhoods and Climate Change,Technical Services CM0300,Supplies and Services,304221,Equipment and Materials,01/09/2022,4041817-235662,"1,174.68",TYNEDALE ROADSTONE LTD.
Neighbourhoods and Climate Change,Technical Services CM0300,Supplies and Services,304221,Equipment and Materials,01/09/2022,4041817-235663,"1,056.13",TYNEDALE ROADSTONE LTD.
Neighbourhoods and Climate Change,Technical Services CM0300,Supplies and Services,304221,Equipment and Materials,01/09/2022,4041817-235665,861.90,TYNEDALE ROADSTONE LTD.
Neighbourhoods and Climate Change,Technical Services CM0300,Supplies and Services,304221,Equipment and Materials,01/09/2022,4041817-235756,888.50,TYNEDALE ROADSTONE LTD.
Neighbourhoods and Climate Change,Technical Services CM0300,Supplies and Services,304221,Equipment and Materials,01/09/2022,4041817-235757,"1,599.43",TYNEDALE ROADSTONE LTD.
Neighbourhoods and Climate Change,Technical Services CM0300,Supplies and Services,304221,Equipment and Materials,01/09/2022,4041817-235758,735.46,TYNEDALE ROADSTONE LTD.
Neighbourhoods and Climate Change,Technical Services CM0300,Supplies and Services,304221,Equipment and Materials,01/09/2022,4041817-235759,"1,850.60",TYNEDALE ROADSTONE LTD.
Neighbourhoods and Climate Change,Technical Services CM0300,Supplies and Services,304221,Equipment and Materials,01/09/2022,4041817-235762,"1,593.39",TYNEDALE ROADSTONE LTD.
Neighbourhoods and Climate Change,Technical Services CM0300,Supplies and Services,304221,Equipment and Materials,01/09/2022,4041817-235764,596.40,TYNEDALE ROADSTONE LTD.
Neighbourhoods and Climate Change,Technical Services CM0300,Supplies and Services,304221,Equipment and Materials,01/09/2022,4041817-235765,823.03,TYNEDALE ROADSTONE LTD.
Neighbourhoods and Climate Change,Technical Services CM0300,Supplies and Services,304221,Equipment and Materials,01/09/2022,4041817-235895,"1,445.41",TYNEDALE ROADSTONE LTD.
Neighbourhoods and Climate Change,Technical Services CM0300,Supplies and Services,304221,Equipment and Materials,01/09/2022,4041817-235900,"1,599.43",TYNEDALE ROADSTONE LTD.
Neighbourhoods and Climate Change,Technical Services CM0300,Supplies and Services,304221,Equipment and Materials,01/09/2022,4041817-236027,844.93,TYNEDALE ROADSTONE LTD.
Regeneration Economy and Growth,Culture Sport and Tourism,Supplies and Services,372009,Subscriptions E372,01/09/2022,4041819-INV-203623,"1,725.00",UKACTIVE.
Regeneration Economy and Growth,Culture Sport and Tourism,Supplies and Services,342051,Computers and Communications,01/09/2022,4041823-7501471073,"9,432.00",VERIFONE (UK) LTD.
Regeneration Economy and Growth,Corporate Property and Land,Third Party Payments,430100,Rendered by Private Contractors,01/09/2022,4041825-7693,573.49,WARREN (ELECTRICAL) LTD.
Regeneration Economy and Growth,Corporate Property and Land,Third Party Payments,430100,Rendered by Private Contractors,01/09/2022,4041829-712,516.00,WHORLTON LAND SURVEYS LTD.
Resources BK0010,Digital Services,Vehicles Equipment Furniture and Fittings,912701,Computer equipment,01/09/2022,4041833-LC21290,"1,355.51",XMA LTD.
Neighbourhoods and Climate Change,Community Protection,Third Party Payments,430100,Rendered by Private Contractors,01/09/2022,4041835-2003,570.00,YOU`RE SECURE NORTHEAST.
Neighbourhoods and Climate Change,Community Protection,Third Party Payments,430100,Rendered by Private Contractors,01/09/2022,4041835-2004,580.00,YOU`RE SECURE NORTHEAST.
Adult and Health Services,Head of Adults,Third Party Payments,470101,Purchase of Care,01/09/2022,4040955-I-22-5490563,"12,264.11",HC-ONE LTD T/A FALSTONE COURT CARE HOME.
Adult and Health Services,Head of Adults,Third Party Payments,470101,Purchase of Care,01/09/2022,4040984-I-22-5346981,"10,274.93",HOLLY HOUSE LTD.
Adult and Health Services,Head of Adults,Third Party Payments,470101,Purchase of Care,01/09/2022,4040984-I-22-5490835,"2,965.96",HOLLY HOUSE LTD.
Children and Young Peoples Services,Head of Childrens Social Care,Third Party Payments,440038,Other third party payments E440,01/09/2022,4041001-PIG_138323,"6,000.02",INSPIRE HOMES LTD.
Adult and Health Services,Head of Adults,Third Party Payments,470101,Purchase of Care,01/09/2022,4041598-I-22-4997813,"3,044.83",WESTLIVE LTD T/A FARTHINGS NURSING HOME.
Neighbourhoods and Climate Change,Environmental Services,Third Party Payments,430100,Rendered by Private Contractors,01/09/2022,4041616-3261,"2,211.00",AJ GUTHRIE & SON.
Regeneration Economy and Growth,Planning & Housing,Third Party Payments,440999,Other third party payments E440,01/09/2022,4041620-0900000381-042C,881.53,AIRWAVE SOLUTIONS LTD.
Regeneration Economy and Growth,Corporate Property and Land,Supplies and Services,384199,Miscellaneous Expenses,01/09/2022,4041625-0000873215,567.00,AMTECH GROUP LTD.
Regeneration Economy and Growth,Culture Sport and Tourism,Supplies and Services,384302,Miscellaneous Expenses,01/09/2022,4041667-INV446,850.00,COVENT GARDEN ENTERTAINMENT LTD T/A GIANT CHEFS.
Regeneration Economy and Growth,Corporate Property and Land,Third Party Payments,430100,Rendered by Private Contractors,01/09/2022,4041677-189/2022,"6,464.00",DPC SCREEDING LTD.
Neighbourhoods and Climate Change,Environmental Services,Supplies and Services,338027,Services,01/09/2022,4041690-12014,"1,787.00",ENVIRONMENTAL NOISE SOLUTIONS LTD.
Regeneration Economy and Growth,Culture Sport and Tourism,Supplies and Services,384199,Miscellaneous Expenses,01/09/2022,4041697-102,"4,940.00",GAZEBOS FOR HIRE LTD.
Resources BK0010,Digital Services,Supplies and Services,338027,Services,01/09/2022,4041698-20728,825.00,GOSS INTERACTIVE LTD.
Neighbourhoods and Climate Change,Environmental Services,Third Party Payments,430100,Rendered by Private Contractors,01/09/2022,4041716-TW-3140,"4,180.00",IW ADAMSON LTD T/A COMPLETE WEED CONTROL (TYNE & WEAR).
Regeneration Economy and Growth,Transport and Contracted Services,Supplies and Services,328041,Clothing uniforms and laundry E328,01/09/2022,4041723-170418,635.75,KELTIC LTD.
Regeneration Economy and Growth,Corporate Property and Land,Cap Exp on Grants & Other Financial Assistance (REFCUS),918004,Contributions to other bodies 918004,01/09/2022,4041732-RES-08-2022-407,"1,652.00",MANZO STEAKERIA LTD.
Neighbourhoods and Climate Change,Environmental Services,Supplies and Services,384073,Miscellaneous Expenses,01/09/2022,4041733-30082022,740.83,MAVEN CAPITAL SHD (TRADING) LTD T/A HOTEL INDIGO DURHAM.
Neighbourhoods and Climate Change,Environmental Services,Fees,901002,Consultants fees 901002,01/09/2022,4041743-11701,"4,500.00",MYA CONSULTING LTD.
Regeneration Economy and Growth,Corporate Property and Land,Supplies and Services,304221,Equipment and Materials,01/09/2022,4041759-000472,846.45,OMEGA LIFT SERVICES LTD.
Neighbourhoods and Climate Change,Environmental Services,Supplies and Services,304221,Equipment and Materials,01/09/2022,4041765-71210188,647.50,PARK RETAIL LTD T/A LOVE2SHOP.
Regeneration Economy and Growth,Culture Sport and Tourism,Supplies and Services,384199,Miscellaneous Expenses,01/09/2022,4041770-12082022,"1,664.80",POOKIE STYLE LTD.
Non-Service Specific,Insurances,Expenditure 8INSEX,810001,Insurance Expenditure,01/09/2022,4041780-NEW16011,"1,425.00",SANDERSON WEATHERALL LLP.
Non-Service Specific,Insurances,Expenditure 8INSEX,810001,Insurance Expenditure,01/09/2022,4041780-NEW16013,"4,750.00",SANDERSON WEATHERALL LLP.
Neighbourhoods and Climate Change,Partnerships & Community Engagement Div.,Supplies and Services,384086,Miscellaneous Expenses,01/09/2022,4041805-VOUCHERCRUR06-22,500.00,THE HESLEDENS RESIDENTS ASSOCIATION.
Regeneration Economy and Growth,Culture Sport and Tourism,Supplies and Services,384199,Miscellaneous Expenses,01/09/2022,4041821-169,650.00,VELO 29 EVENTS LTD.
Non-Service Specific,Insurances,Expenditure 8INSEX,810001,Insurance Expenditure,01/09/2022,4041836-09U007,"272,028.10",ZURICH INSURANCE PLC.
Adult and Health Services,Head of Adults,Transport,230005,Contract Hire,02/09/2022,4041879-AUG22-EAS199,"1,100.00",REDACTED - PAYMENT TO INDIVIDUAL
Children and Young Peoples Services,Head of Childrens Social Care,Supplies and Services,338044,Services,02/09/2022,4041905-232223,734.05,REDACTED - PAYMENT TO INDIVIDUAL
Adult and Health Services,Head of Adults,Transport,230005,Contract Hire,02/09/2022,4041927-65,840.00,REDACTED - PAYMENT TO INDIVIDUAL
Children and Young Peoples Services,Head of Education and Skills,Transport,230008,Contract Hire,02/09/2022,4041947-N098-JULY22,"1,145.50",REDACTED - PAYMENT TO INDIVIDUAL
Adult and Health Services,Head of Adults,Transport,230005,Contract Hire,02/09/2022,4041961-01082022,688.06,REDACTED - PAYMENT TO INDIVIDUAL
Adult and Health Services,Head of Adults,Transport,230005,Contract Hire,02/09/2022,4041962-AUG22-CLS081,567.50,REDACTED - PAYMENT TO INDIVIDUAL
Adult and Health Services,Head of Adults,Transport,230005,Contract Hire,02/09/2022,4041991-DW144AUG22,560.00,REDACTED - PAYMENT TO INDIVIDUAL
Children and Young Peoples Services,Head of Education and Skills,Transport,230007,Contract Hire,02/09/2022,4041992-INV0117,"1,929.99",REDACTED - PAYMENT TO INDIVIDUAL
Children and Young Peoples Services,Head of Education and Skills,Transport,230008,Contract Hire,02/09/2022,4041992-INV0124,"2,177.36",REDACTED - PAYMENT TO INDIVIDUAL
Regeneration Economy and Growth,Culture Sport and Tourism,Supplies and Services,384302,Miscellaneous Expenses,02/09/2022,4042000-208,"2,000.00",REDACTED - PAYMENT TO INDIVIDUAL
Adult and Health Services,Head of Adults,Transport,230005,Contract Hire,02/09/2022,4041838-0822/SK,"1,785.00",AABAT TAXIS.
Adult and Health Services,Head of Adults,Transport,230005,Contract Hire,02/09/2022,4041838-CLS057-2022,591.92,AABAT TAXIS.
Resources BK0010,Legal & Democratic Services,Supplies and Services,340001,Postages E340,02/09/2022,4041840-PSI0201637,"1,799.98",ADARE SEC LTD.
Resources BK0010,Legal & Democratic Services,Supplies and Services,340001,Postages E340,02/09/2022,4041840-PSI0201638,"2,827.69",ADARE SEC LTD.
Regeneration Economy and Growth,Transport and Contracted Services,Third Party Payments,430100,Rendered by Private Contractors,02/09/2022,4041853-CONCFAREPAY22-P1-P4,"2,639,707.00",ARRIVA DURHAM COUNTY LTD.
Adult and Health Services,Head of Adults,Transport,230005,Contract Hire,02/09/2022,4041855-25822,"1,140.00",AVALON TAXIS.
Children and Young Peoples Services,Head of Childrens Social Care,Supplies and Services,384500,Miscellaneous Expenses,02/09/2022,4041858-142004874,"1,857.16",BARNARDO SERVICES LTD.
Neighbourhoods and Climate Change,Environmental Services,Transport,210057,Repair and Maintenance of Vehicles,02/09/2022,4041860-35229747,"1,217.44",BELL TRUCK SALES LTD T/A BELL TRUCK & VAN.
Regeneration Economy and Growth,Culture Sport and Tourism,Supplies and Services,352001,Conference Expenses,02/09/2022,4041863-SLINV/00000938,"3,750.00",BISHOP AUCKLAND COLLEGE.
Neighbourhoods and Climate Change,Partnerships & Community Engagement Div.,Supplies and Services,338066,Services,02/09/2022,4041866-SIN036098,"55,204.13",BLOOM PROCUREMENT SERVICES LTD (FORMERLY NEPRO LTD).
Neighbourhoods and Climate Change,Technical Services CM0300,Supplies and Services,304221,Equipment and Materials,02/09/2022,4041867-20854537,530.60,BREEDON TRADING LTD.
Regeneration Economy and Growth,Transport and Contracted Services,Construction work A908,908105,Construction work,02/09/2022,4041871-28870,"3,211.84",BUS SHELTERS LTD.
Adult and Health Services,Head of Adults,Supplies and Services,338366,Services,02/09/2022,4041874-85940,"1,953.20",CARE ABILITY HEALTHCARE LTD.
Adult and Health Services,Head of Adults,Supplies and Services,338366,Services,02/09/2022,4041874-85941,675.30,CARE ABILITY HEALTHCARE LTD.
Adult and Health Services,Head of Adults,Supplies and Services,338366,Services,02/09/2022,4041874-85942,"2,082.07",CARE ABILITY HEALTHCARE LTD.
Children and Young Peoples Services,Head of Childrens Social Care,Premises,108099,Service Repairs and Maintenance,02/09/2022,4041876-10002,"1,843.58",CATHEDRAL LOCK & SAFE SERVICES LTD.
Regeneration Economy and Growth,Corporate Property and Land,Third Party Payments,430100,Rendered by Private Contractors,02/09/2022,4041876-10017,"1,724.06",CATHEDRAL LOCK & SAFE SERVICES LTD.
Regeneration Economy and Growth,Business Durham CL0850,Premises,106082,Centrally Controlled Rep and Maint,02/09/2022,4041876-9984,836.66,CATHEDRAL LOCK & SAFE SERVICES LTD.
Neighbourhoods and Climate Change,Environmental Services,Third Party Payments,430100,Rendered by Private Contractors,02/09/2022,4041877-263328,614.49,CHATFIELDS T/A EVANS HALSHAW.
Regeneration Economy and Growth,Culture Sport and Tourism,Premises,145023,Cleaning and Domestic Supplies,02/09/2022,4041882-CN30204397,"1,168.92",CITRON HYGIENE UK LTD.
Regeneration Economy and Growth,Culture Sport and Tourism,Premises,145023,Cleaning and Domestic Supplies,02/09/2022,4041882-CN30204771,"2,266.68",CITRON HYGIENE UK LTD.
Regeneration Economy and Growth,Corporate Property and Land,Supplies and Services,304221,Equipment and Materials,02/09/2022,4041886-58025,"6,909.60",COMPLETE DETECTION SYSTEMS LTD (CDS).
Children and Young Peoples Services,Head of Education and Skills,Transport,230008,Contract Hire,02/09/2022,4041888-114000,"1,078.40",CROFT BUSINESS SERVICES LTD T/A CROFT TRAVEL.
Resources BK0010,Digital Services,Supplies and Services,342033,Computers and Communications,02/09/2022,4041893-7402841842,"245,000.00",DELL COMPUTER CORPORATION LTD.
Resources BK0010,Digital Services,Stock A926,926900,Stock in hand-Inventory system,02/09/2022,4041893-7402843804,"2,676.00",DELL COMPUTER CORPORATION LTD.
Resources BK0010,Digital Services,Vehicles Equipment Furniture and Fittings,912701,Computer equipment,02/09/2022,4041893-7402845210,"16,458.00",DELL COMPUTER CORPORATION LTD.
Neighbourhoods and Climate Change,Environmental Services,Third Party Payments,430100,Rendered by Private Contractors,02/09/2022,4041896-450905,"2,682.93",DENNIS EAGLE LTD.
Neighbourhoods and Climate Change,Environmental Services,Transport,210057,Repair and Maintenance of Vehicles,02/09/2022,4041896-DE11519793,574.74,DENNIS EAGLE LTD.
Regeneration Economy and Growth,Culture Sport and Tourism,Supplies and Services,338047,Services,02/09/2022,4041910-02,"2,500.00",EASINGTON COLLIERY BRASS BAND.
Adult and Health Services,Head of Adults,Transport,230005,Contract Hire,02/09/2022,4041914-1378,"2,464.00",EAST DURHAM TAXIS.
Adult and Health Services,Head of Adults,Transport,230005,Contract Hire,02/09/2022,4041914-1379,"1,486.00",EAST DURHAM TAXIS.
Regeneration Economy and Growth,Corporate Property and Land,Supplies and Services,304221,Equipment and Materials,02/09/2022,4041915-059-305783,677.15,EDMUNDSON ELECTRICAL LTD.
Regeneration Economy and Growth,Corporate Property and Land,Premises,108099,Service Repairs and Maintenance,02/09/2022,4041917-94381,748.00,EIAT UK LTD (ELECTRICAL INSTALLATION & APPLIANCE TESTING UK).
Neighbourhoods and Climate Change,Technical Services CM0300,Supplies and Services,304221,Equipment and Materials,02/09/2022,4041918-2207\223,621.62,EPPLETON QUARRY PRODUCTS LTD.
Neighbourhoods and Climate Change,Technical Services CM0300,Supplies and Services,304221,Equipment and Materials,02/09/2022,4041918-2208\025,"2,226.08",EPPLETON QUARRY PRODUCTS LTD.
Neighbourhoods and Climate Change,Environmental Services,Transport,210057,Repair and Maintenance of Vehicles,02/09/2022,4041921-142933,721.70,FABRIKAT (NOTTINGHAM) LTD.
Neighbourhoods and Climate Change,Technical Services CM0300,Supplies and Services,304221,Equipment and Materials,02/09/2022,4041921-143053,"20,998.50",FABRIKAT (NOTTINGHAM) LTD.
Neighbourhoods and Climate Change,Technical Services CM0300,Supplies and Services,304221,Equipment and Materials,02/09/2022,4041921-143055,"11,663.96",FABRIKAT (NOTTINGHAM) LTD.
Children and Young Peoples Services,Head of Education and Skills,Transport,230007,Contract Hire,02/09/2022,4041923-INV-0032,"2,140.65",FIGGY BUS (TAXI).
Children and Young Peoples Services,Head of Education and Skills,Transport,230007,Contract Hire,02/09/2022,4041923-INV-0034,"1,386.00",FIGGY BUS (TAXI).
Children and Young Peoples Services,Head of Education and Skills,Transport,230007,Contract Hire,02/09/2022,4041923-INV-0035,"1,050.00",FIGGY BUS (TAXI).
Regeneration Economy and Growth,Culture Sport and Tourism,Premises,106082,Centrally Controlled Rep and Maint,02/09/2022,4041925-2783,666.90,FT LEISURE LTD.
Children and Young Peoples Services,Head of Education and Skills,Transport,230008,Contract Hire,02/09/2022,4041926-104000,"1,472.00",G & P JOHNSON LTD T/A NIGHTINGALE COACHES.
Children and Young Peoples Services,Head of Education and Skills,Transport,230008,Contract Hire,02/09/2022,4041926-104001,"2,024.00",G & P JOHNSON LTD T/A NIGHTINGALE COACHES.
Children and Young Peoples Services,Head of Education and Skills,Transport,230008,Contract Hire,02/09/2022,4041926-104002,"1,196.00",G & P JOHNSON LTD T/A NIGHTINGALE COACHES.
Children and Young Peoples Services,Head of Education and Skills,Transport,230008,Contract Hire,02/09/2022,4041926-104003,"1,656.00",G & P JOHNSON LTD T/A NIGHTINGALE COACHES.
Children and Young Peoples Services,Head of Education and Skills,Transport,230008,Contract Hire,02/09/2022,4041926-104004,"1,288.00",G & P JOHNSON LTD T/A NIGHTINGALE COACHES.
Children and Young Peoples Services,Head of Education and Skills,Transport,230008,Contract Hire,02/09/2022,4041926-104005,"2,116.00",G & P JOHNSON LTD T/A NIGHTINGALE COACHES.
Children and Young Peoples Services,Head of Education and Skills,Transport,230008,Contract Hire,02/09/2022,4041926-104006,"1,012.00",G & P JOHNSON LTD T/A NIGHTINGALE COACHES.
Children and Young Peoples Services,Head of Education and Skills,Transport,230008,Contract Hire,02/09/2022,4041926-104007,"1,748.00",G & P JOHNSON LTD T/A NIGHTINGALE COACHES.
Children and Young Peoples Services,Head of Education and Skills,Transport,230008,Contract Hire,02/09/2022,4041926-104008,"1,748.00",G & P JOHNSON LTD T/A NIGHTINGALE COACHES.
Children and Young Peoples Services,Head of Education and Skills,Transport,230008,Contract Hire,02/09/2022,4041926-104009,"1,288.00",G & P JOHNSON LTD T/A NIGHTINGALE COACHES.
Regeneration Economy and Growth,Transport and Contracted Services,Third Party Payments,430100,Rendered by Private Contractors,02/09/2022,4041931-CONCFAREPAY22-P1-P4,"2,364,265.00",GO GATESHEAD LTD.
Regeneration Economy and Growth,Culture Sport and Tourism,Premises,145023,Cleaning and Domestic Supplies,02/09/2022,4041933-06/187395,616.38,GREENHAM TRADING LTD.
Resources BK0010,Digital Services,Supplies and Services,304303,Equipment and Materials,02/09/2022,4041935-INV0189094,"12,603.85",GVAV LTD.
Regeneration Economy and Growth,Corporate Property and Land,Supplies and Services,304221,Equipment and Materials,02/09/2022,4041936-3/22,"88,789.07",H MALONE & SONS LTD.
Children and Young Peoples Services,Head of Early Help Inclusion & Vulnerable Children.,Supplies and Services,384491,Miscellaneous Expenses,02/09/2022,4041939-AUG2022,972.50,HAPPYTIMES DAYCARE LTD.
Children and Young Peoples Services,Head of Childrens Social Care,Supplies and Services,364359,Grants to Voluntary Organisations,02/09/2022,4041939-JULY/AUGUST2022,723.52,HAPPYTIMES DAYCARE LTD.
Adult and Health Services,Public Health CC0450,Third Party Payments,460803,Contract Payments,02/09/2022,4041940-2510045244,"4,798.89",HARROGATE & DISTRICT NHS FOUNDATION TRUST.
Children and Young Peoples Services,Head of Education and Skills,Transport,230007,Contract Hire,02/09/2022,4041943-21319,980.21,HODGSONS COACH OPERATORS LTD.
Children and Young Peoples Services,Head of Early Help Inclusion & Vulnerable Children.,Premises,108099,Service Repairs and Maintenance,02/09/2022,4041944-7080979624,"2,613.79",HONEYWELL NOVAR SYSTEMS LTD.
Regeneration Economy and Growth,Corporate Property and Land,Premises,108099,Service Repairs and Maintenance,02/09/2022,4041944-7080980386,"1,660.87",HONEYWELL NOVAR SYSTEMS LTD.
Neighbourhoods and Climate Change,Technical Services CM0300,Third Party Payments,430100,Rendered by Private Contractors,02/09/2022,4041945-14808,"4,950.00",HOPKINS STEEL LTD.
Regeneration Economy and Growth,Corporate Property and Land,Third Party Payments,430100,Rendered by Private Contractors,02/09/2022,4041950-12689,892.50,INGLEFORD SCAFFOLDING LTD.
Regeneration Economy and Growth,Corporate Property and Land,Third Party Payments,430100,Rendered by Private Contractors,02/09/2022,4041950-12821,767.50,INGLEFORD SCAFFOLDING LTD.
Regeneration Economy and Growth,Corporate Property and Land,Third Party Payments,430100,Rendered by Private Contractors,02/09/2022,4041950-12931,"4,594.20",INGLEFORD SCAFFOLDING LTD.
Children and Young Peoples Services,Head of Education and Skills,Supplies and Services,304259,Equipment and Materials,02/09/2022,4041952-DURHAM-GINC-02,588.20,INSIGHT OPTICAL BFD LTD.
Neighbourhoods and Climate Change,Technical Services CM0300,Stock A926,926900,Stock in hand-Inventory system,02/09/2022,4041953-835100,"2,654.40",INSTARMAC GROUP PLC.
Neighbourhoods and Climate Change,Technical Services CM0300,Stock A926,926900,Stock in hand-Inventory system,02/09/2022,4041953-836952,"2,839.20",INSTARMAC GROUP PLC.
Neighbourhoods and Climate Change,Technical Services CM0300,Stock A926,926900,Stock in hand-Inventory system,02/09/2022,4041953-837984,889.50,INSTARMAC GROUP PLC.
Neighbourhoods and Climate Change,Technical Services CM0300,Stock A926,926900,Stock in hand-Inventory system,02/09/2022,4041953-838795,"2,370.00",INSTARMAC GROUP PLC.
Neighbourhoods and Climate Change,Technical Services CM0300,Stock A926,926900,Stock in hand-Inventory system,02/09/2022,4041953-838955,"2,370.00",INSTARMAC GROUP PLC.
Neighbourhoods and Climate Change,Technical Services CM0300,Stock A926,926900,Stock in hand-Inventory system,02/09/2022,4041953-839346,"2,700.00",INSTARMAC GROUP PLC.
Neighbourhoods and Climate Change,Technical Services CM0300,Stock A926,926900,Stock in hand-Inventory system,02/09/2022,4041953-848749,"3,524.60",INSTARMAC GROUP PLC.
Children and Young Peoples Services,Head of Childrens Social Care,Third Party Payments,425021,Rendered by Voluntary Organisations,02/09/2022,4041954-PIG_138928,"36,435.00",INVESTED CHILDCARE LTD.
Neighbourhoods and Climate Change,Environmental Services,Supplies and Services,324117,Provisions E324,02/09/2022,4041955-20524,559.16,J MORAN LTD T/A CAFFE VINCI.
Adult and Health Services,Head of Adults,Transport,230005,Contract Hire,02/09/2022,4041956-0907,"1,068.00",JACKSON`S TAXI.
Adult and Health Services,Head of Adults,Transport,230005,Contract Hire,02/09/2022,4041956-0908,"2,915.00",JACKSON`S TAXI.
Adult and Health Services,Head of Adults,Transport,230005,Contract Hire,02/09/2022,4041956-0909,"1,170.00",JACKSON`S TAXI.
Regeneration Economy and Growth,Corporate Property and Land,Third Party Payments,430100,Rendered by Private Contractors,02/09/2022,4041957-51240,672.00,JBL SERVICES LTD.
Adult and Health Services,Head of Adults,Transport,230005,Contract Hire,02/09/2022,4041960-55-AUG22,"1,841.40",JOHN CRAKE & SONS MINI BUSES LTD.
Adult and Health Services,Head of Adults,Transport,230005,Contract Hire,02/09/2022,4041960-56-AUG22,700.00,JOHN CRAKE & SONS MINI BUSES LTD.
Regeneration Economy and Growth,Culture Sport and Tourism,Supplies and Services,304259,Equipment and Materials,02/09/2022,4041967-149366,804.55,JP LENNARD LTD.
Regeneration Economy and Growth,Culture Sport and Tourism,Supplies and Services,304259,Equipment and Materials,02/09/2022,4041967-154149,931.18,JP LENNARD LTD.
Neighbourhoods and Climate Change,Technical Services CM0300,Third Party Payments,430127,Rendered by Private Contractors,02/09/2022,4041969-6541,"1,565.50",JR TIPLADY (AGRICULTURAL CONTRACTOR).
Neighbourhoods and Climate Change,Technical Services CM0300,Supplies and Services,304221,Equipment and Materials,02/09/2022,4041971-365257,"1,755.55",KAEFER LTD.
Adult and Health Services,Head of Adults,Transport,230005,Contract Hire,02/09/2022,4041974-5051,"1,651.32",LD TAXIS.
Regeneration Economy and Growth,Corporate Property and Land,Premises,150005,Apportioned Exps of Operational Blds,02/09/2022,4041978-22628,515.27,LOFTHOUSE & PARTNERS LTD.
Regeneration Economy and Growth,Corporate Property and Land,Premises,150005,Apportioned Exps of Operational Blds,02/09/2022,4041978-22629,515.27,LOFTHOUSE & PARTNERS LTD.
Children and Young Peoples Services,Head of Education and Skills,Construction work A908,908105,Construction work,02/09/2022,4041981-163832,"23,260.00",LUCION ENVIRONMENTAL LLP LTD.
Children and Young Peoples Services,Head of Education and Skills,Transport,230008,Contract Hire,02/09/2022,4041985-INV07/2022-34,"3,510.00",MARK & JOHN CHISHOLM T/A (CHEVRON).
Neighbourhoods and Climate Change,Environmental Services,Third Party Payments,430101,Rendered by Private Contractors,02/09/2022,4041986-HOL07480,806.55,MCCONECHYS TYRE SERVICE LTD.
Neighbourhoods and Climate Change,Environmental Services,Third Party Payments,430101,Rendered by Private Contractors,02/09/2022,4041986-HOL07481,"1,710.12",MCCONECHYS TYRE SERVICE LTD.
Neighbourhoods and Climate Change,Environmental Services,Third Party Payments,430101,Rendered by Private Contractors,02/09/2022,4041986-HOL07482,"1,953.32",MCCONECHYS TYRE SERVICE LTD.
Neighbourhoods and Climate Change,Environmental Services,Third Party Payments,430101,Rendered by Private Contractors,02/09/2022,4041986-HOL07483,"1,310.04",MCCONECHYS TYRE SERVICE LTD.
Neighbourhoods and Climate Change,Environmental Services,Third Party Payments,430101,Rendered by Private Contractors,02/09/2022,4041986-HOL07497,"3,127.86",MCCONECHYS TYRE SERVICE LTD.
Neighbourhoods and Climate Change,Environmental Services,Third Party Payments,430101,Rendered by Private Contractors,02/09/2022,4041986-HOL07498,663.00,MCCONECHYS TYRE SERVICE LTD.
Neighbourhoods and Climate Change,Environmental Services,Third Party Payments,430101,Rendered by Private Contractors,02/09/2022,4041986-HOL07499,"1,416.02",MCCONECHYS TYRE SERVICE LTD.
Neighbourhoods and Climate Change,Environmental Services,Third Party Payments,430101,Rendered by Private Contractors,02/09/2022,4041986-HOL07500,907.30,MCCONECHYS TYRE SERVICE LTD.
Neighbourhoods and Climate Change,Environmental Services,Third Party Payments,430101,Rendered by Private Contractors,02/09/2022,4041986-HOL07518,"1,980.58",MCCONECHYS TYRE SERVICE LTD.
Neighbourhoods and Climate Change,Environmental Services,Third Party Payments,430101,Rendered by Private Contractors,02/09/2022,4041986-HOL07519,"2,776.28",MCCONECHYS TYRE SERVICE LTD.
Neighbourhoods and Climate Change,Environmental Services,Third Party Payments,430101,Rendered by Private Contractors,02/09/2022,4041986-HOL07520,"1,920.50",MCCONECHYS TYRE SERVICE LTD.
Neighbourhoods and Climate Change,Environmental Services,Third Party Payments,430101,Rendered by Private Contractors,02/09/2022,4041986-HOL07521,639.10,MCCONECHYS TYRE SERVICE LTD.
Neighbourhoods and Climate Change,Environmental Services,Third Party Payments,430100,Rendered by Private Contractors,02/09/2022,4041994-14586,912.11,N1 JETTING SYSTEMS LTD.
Adult and Health Services,Commissioning inc Supporting People,Third Party Payments,440999,Other third party payments E440,02/09/2022,4041996-56624,"2,439.10",NATIONAL YOUTH ADVOCACY SERVICE.
Resources BK0010,Transactional & Customer Services,Third Party Payments,440999,Other third party payments E440,02/09/2022,4042002-RES-07-2022-298BALANCE,"10,000.00",NORTH DURHAM ACADEMY.
Children and Young Peoples Services,Head of Childrens Social Care,Supplies and Services,384500,Miscellaneous Expenses,02/09/2022,4042003-3451,600.00,NORTH EAST ADOPTION THERAPY SERVICES LTD (NEATS).
Children and Young Peoples Services,Head of Childrens Social Care,Supplies and Services,384500,Miscellaneous Expenses,02/09/2022,4042003-3459A,720.00,NORTH EAST ADOPTION THERAPY SERVICES LTD (NEATS).
Children and Young Peoples Services,Head of Childrens Social Care,Supplies and Services,384500,Miscellaneous Expenses,02/09/2022,4042003-3463,660.00,NORTH EAST ADOPTION THERAPY SERVICES LTD (NEATS).
Children and Young Peoples Services,Head of Childrens Social Care,Supplies and Services,384500,Miscellaneous Expenses,02/09/2022,4042003-3466,720.00,NORTH EAST ADOPTION THERAPY SERVICES LTD (NEATS).
Resources BK0010,HR & Employee Services,Supplies and Services,352001,Conference Expenses,02/09/2022,4042008-18142,"1,600.00",NORTHERN COUNTIES SAFETY GROUP LTD (NCGS).
Regeneration Economy and Growth,Corporate Property and Land,Third Party Payments,430100,Rendered by Private Contractors,02/09/2022,4042014-11547-79,"1,182.82",OPUS BUILDING SERVICES LTD.
Regeneration Economy and Growth,Corporate Property and Land,Third Party Payments,430100,Rendered by Private Contractors,02/09/2022,4042014-11547-81,"1,182.82",OPUS BUILDING SERVICES LTD.
Regeneration Economy and Growth,Corporate Property and Land,Third Party Payments,430100,Rendered by Private Contractors,02/09/2022,4042014-11547-84,936.27,OPUS BUILDING SERVICES LTD.
Regeneration Economy and Growth,Corporate Property and Land,Third Party Payments,430100,Rendered by Private Contractors,02/09/2022,4042016-3085,"171,195.20",PARAMOUNT CEILINGS & PARTITIONS LTD.
Children and Young Peoples Services,Head of Childrens Social Care,Third Party Payments,425021,Rendered by Voluntary Organisations,02/09/2022,4042022-330433,"8,398.12",PEARTREE PROJECTS LTD.
Adult and Health Services,Public Health CC0450,Third Party Payments,460803,Contract Payments,02/09/2022,4042024-17986/18,"5,462.92",PIONEERING CARE PARTNERSHIP.
Neighbourhoods and Climate Change,Environmental Services,Third Party Payments,430100,Rendered by Private Contractors,02/09/2022,4042026-TYN30115,677.24,PIRTEK TYNE & WEAR.
Neighbourhoods and Climate Change,Environmental Services,Third Party Payments,430100,Rendered by Private Contractors,02/09/2022,4042026-TYN30116,687.20,PIRTEK TYNE & WEAR.
Neighbourhoods and Climate Change,Environmental Services,Third Party Payments,430100,Rendered by Private Contractors,02/09/2022,4042026-TYN30117,705.27,PIRTEK TYNE & WEAR.
Neighbourhoods and Climate Change,Technical Services CM0300,Third Party Payments,430100,Rendered by Private Contractors,02/09/2022,4042029-1177,987.15,PRM FABRICATIONS LTD.
Neighbourhoods and Climate Change,Technical Services CM0300,Third Party Payments,430100,Rendered by Private Contractors,02/09/2022,4042030-14363,"2,533.44",QUANTUM POWER CONNECTIONS LTD.
Neighbourhoods and Climate Change,Technical Services CM0300,Third Party Payments,430100,Rendered by Private Contractors,02/09/2022,4042030-14364,"2,533.44",QUANTUM POWER CONNECTIONS LTD.
Neighbourhoods and Climate Change,Technical Services CM0300,Third Party Payments,430100,Rendered by Private Contractors,02/09/2022,4042030-14365,"1,837.44",QUANTUM POWER CONNECTIONS LTD.
Neighbourhoods and Climate Change,Technical Services CM0300,Third Party Payments,430100,Rendered by Private Contractors,02/09/2022,4042030-14369,"4,092.48",QUANTUM POWER CONNECTIONS LTD.
Neighbourhoods and Climate Change,Technical Services CM0300,Third Party Payments,430100,Rendered by Private Contractors,02/09/2022,4042030-14370,"1,633.28",QUANTUM POWER CONNECTIONS LTD.
Adult and Health Services,Head of Adults,Transport,230005,Contract Hire,02/09/2022,4042032-RDS081,"1,088.00",RDS TAXI.
Resources BK0010,Digital Services,Premises,106080,Centrally Controlled Rep and Maint,02/09/2022,4042033-0000256721,"1,725.00",RIELLO UPS LTD.
Adult and Health Services,Head of Adults,Supplies and Services,338365,Services,02/09/2022,4042037-SEN436081,851.70,RNIB ENTERPRISES LTD.
Children and Young Peoples Services,Head of Education and Skills,Fees,901002,Consultants fees 901002,02/09/2022,4042039-TEC605686,"5,674.00",RPS CONSULTING SERVICES LTD.
Regeneration Economy and Growth,Culture Sport and Tourism,Fees,901002,Consultants fees 901002,02/09/2022,4042039-TEC605703,980.00,RPS CONSULTING SERVICES LTD.
Children and Young Peoples Services,Head of Education and Skills,Transport,230007,Contract Hire,02/09/2022,4042042-SKS2223-014,"1,216.60",SAMUEL KINGS SCHOOL.
Neighbourhoods and Climate Change,Technical Services CM0300,Third Party Payments,430100,Rendered by Private Contractors,02/09/2022,4042045-23849,"47,112.19",SEYMOUR (CIVIL ENGINEERING CONTRACTORS) LTD.
Regeneration Economy and Growth,Corporate Property and Land,Third Party Payments,430100,Rendered by Private Contractors,02/09/2022,4042053-20340,525.58,STONE TECHNICAL SERVICES LTD.
Regeneration Economy and Growth,Corporate Property and Land,Third Party Payments,430100,Rendered by Private Contractors,02/09/2022,4042055-180752,"1,134.00",SUPATINT LTD T/A SUPATINT WINDOW FILMS & BLINDS.
Resources BK0010,Digital Services,Supplies and Services,344131,Telephones,02/09/2022,4042057-141760,565.00,SWITCHSHOP LTD.
Neighbourhoods and Climate Change,Environmental Services,Third Party Payments,430100,Rendered by Private Contractors,02/09/2022,4042060-25571559,"2,057.70",TC HARRISON JCB.
Neighbourhoods and Climate Change,Environmental Services,Third Party Payments,430100,Rendered by Private Contractors,02/09/2022,4042060-25571766,"2,057.70",TC HARRISON JCB.
Regeneration Economy and Growth,Corporate Property and Land,Supplies and Services,304221,Equipment and Materials,02/09/2022,4042063-P41411,"1,799.21",TERRY GROUP LTD.
Regeneration Economy and Growth,Corporate Property and Land,Supplies and Services,304221,Equipment and Materials,02/09/2022,4042063-P41454,690.00,TERRY GROUP LTD.
Adult and Health Services,Head of Adults,Transport,230005,Contract Hire,02/09/2022,4042071-2-AUG22,944.40,TONYS TAXIS (J BIRCH).
Adult and Health Services,Head of Adults,Transport,230005,Contract Hire,02/09/2022,4042071-3-AUG22,711.36,TONYS TAXIS (J BIRCH).
Adult and Health Services,Head of Adults,Transport,230005,Contract Hire,02/09/2022,4042071-8-AUG22,960.00,TONYS TAXIS (J BIRCH).
Resources BK0010,Legal & Democratic Services,Supplies and Services,338042,Services,02/09/2022,4042074-299876/INVTS655,965.00,TRINITY CHAMBERS.
Neighbourhoods and Climate Change,Technical Services CM0300,Supplies and Services,304221,Equipment and Materials,02/09/2022,4042078-235902,"1,429.66",TYNEDALE ROADSTONE LTD.
Neighbourhoods and Climate Change,Technical Services CM0300,Supplies and Services,304221,Equipment and Materials,02/09/2022,4042078-235903,919.69,TYNEDALE ROADSTONE LTD.
Neighbourhoods and Climate Change,Technical Services CM0300,Supplies and Services,304221,Equipment and Materials,02/09/2022,4042078-235904,770.17,TYNEDALE ROADSTONE LTD.
Neighbourhoods and Climate Change,Technical Services CM0300,Supplies and Services,304221,Equipment and Materials,02/09/2022,4042078-235907,"1,590.37",TYNEDALE ROADSTONE LTD.
Neighbourhoods and Climate Change,Technical Services CM0300,Supplies and Services,304221,Equipment and Materials,02/09/2022,4042078-236025,639.34,TYNEDALE ROADSTONE LTD.
Neighbourhoods and Climate Change,Technical Services CM0300,Supplies and Services,304221,Equipment and Materials,02/09/2022,4042078-236026,720.78,TYNEDALE ROADSTONE LTD.
Regeneration Economy and Growth,Business Durham CL0850,Third Party Payments,460305,Contract Payments,02/09/2022,4042080-RES-09-2022-008,"84,971.27",UMI COMMERCIAL LTD.
Resources BK0010,Procurement Sales & Business Services,Supplies and Services,384199,Miscellaneous Expenses,02/09/2022,4042081-UKSI17540,"1,572.32",VALTECH LTD.
Regeneration Economy and Growth,Business Durham CL0850,Supplies and Services,336005,Advertising E336,02/09/2022,4042088-27413,"2,000.00",WARD TIMBER LTD.
Regeneration Economy and Growth,Business Durham CL0850,Supplies and Services,336005,Advertising E336,02/09/2022,4042088-27415,"2,000.00",WARD TIMBER LTD.
Neighbourhoods and Climate Change,Technical Services CM0300,Supplies and Services,304221,Equipment and Materials,02/09/2022,4042088-27516,560.50,WARD TIMBER LTD.
Neighbourhoods and Climate Change,Environmental Services,Transport,215005,Running Costs of Vehicles,02/09/2022,4042094-985966,"5,412.98",YOUR NRG LTD.
Regeneration Economy and Growth,Transport and Contracted Services,Third Party Payments,430108,Rendered by Private Contractors,02/09/2022,4041873-102446,"1,375.00",CAMDATA LTD.
Regeneration Economy and Growth,Corporate Property and Land,Cap Exp on Grants & Other Financial Assistance (REFCUS),918004,Contributions to other bodies 918004,02/09/2022,4041929-RES-09-2022-009,"2,250.00",GLOSSOP MOUNT LTD.
Neighbourhoods and Climate Change,Technical Services CM0300,Supplies and Services,304221,Equipment and Materials,02/09/2022,4041932-1024597,760.00,GRAB & DELIVER LTD.
Neighbourhoods and Climate Change,Technical Services CM0300,Supplies and Services,304221,Equipment and Materials,02/09/2022,4041932-1024704,570.00,GRAB & DELIVER LTD.
Neighbourhoods and Climate Change,Technical Services CM0300,Supplies and Services,304221,Equipment and Materials,02/09/2022,4041932-1024946,760.00,GRAB & DELIVER LTD.
Neighbourhoods and Climate Change,Technical Services CM0300,Supplies and Services,304221,Equipment and Materials,02/09/2022,4041932-1025060,570.00,GRAB & DELIVER LTD.
Neighbourhoods and Climate Change,Technical Services CM0300,Supplies and Services,304221,Equipment and Materials,02/09/2022,4041932-1025243,950.00,GRAB & DELIVER LTD.
Neighbourhoods and Climate Change,Technical Services CM0300,Supplies and Services,304221,Equipment and Materials,02/09/2022,4041932-1025294,570.00,GRAB & DELIVER LTD.
Neighbourhoods and Climate Change,Technical Services CM0300,Supplies and Services,304221,Equipment and Materials,02/09/2022,4041932-1025484,570.00,GRAB & DELIVER LTD.
Neighbourhoods and Climate Change,Technical Services CM0300,Supplies and Services,304221,Equipment and Materials,02/09/2022,4041932-1025504,570.00,GRAB & DELIVER LTD.
Neighbourhoods and Climate Change,Environmental Services,Supplies and Services,384700,Miscellaneous Expenses,02/09/2022,4041963-RES-09-2022-004,"3,495.00",JOHN STRUTT CONSERVATION FOUNDATION.
Neighbourhoods and Climate Change,Environmental Services,Third Party Payments,430100,Rendered by Private Contractors,02/09/2022,4041975-151116,522.70,LIFTING & COOLING LTD.
Neighbourhoods and Climate Change,Environmental Services,Transport,210057,Repair and Maintenance of Vehicles,02/09/2022,4041977-550612,515.65,LLOYD LTD.
Neighbourhoods and Climate Change,Environmental Services,Transport,210057,Repair and Maintenance of Vehicles,02/09/2022,4041977-550613,515.65,LLOYD LTD.
Regeneration Economy and Growth,Business Durham CL0850,Supplies and Services,384899,Miscellaneous Expenses,02/09/2022,4042005-INV-0424,"10,000.00",NORTH EAST ENGLAND CHAMBER OF COMMERCE LTD.
Regeneration Economy and Growth,Planning & Housing,Supplies and Services,384999,Miscellaneous Expenses,02/09/2022,4042058-GRAHAMBROWN/1,796.15,SYLVESTER PROPERTIES LTD.
Children and Young Peoples Services,Head of Education and Skills,Supplies and Services,342055,Computers and Communications,02/09/2022,4042073-INV-14218,"5,143.85",TRIANGLE CONSULTING SOCIAL ENTERPRISE LTD.
Neighbourhoods and Climate Change,Environmental Services,Supplies and Services,304221,Equipment and Materials,02/09/2022,4042083-00647/2022,"1,520.00",VIPAUK LTD.
Neighbourhoods and Climate Change,Partnerships & Community Engagement Div.,Supplies and Services,384086,Miscellaneous Expenses,02/09/2022,4042086-VOUCHERMOIB07-22,993.00,WALDRIDGE PARISH COUNCIL.
Regeneration Economy and Growth,Culture Sport and Tourism,Supplies and Services,384302,Miscellaneous Expenses,05/09/2022,4042122-0420,600.00,REDACTED - PAYMENT TO INDIVIDUAL
Adult and Health Services,Head of Adults,Transport,230005,Contract Hire,05/09/2022,4042139-F031,559.98,REDACTED - PAYMENT TO INDIVIDUAL
Children and Young Peoples Services,Head of Education and Skills,Transport,230008,Contract Hire,05/09/2022,4042141-0091,"2,712.00",REDACTED - PAYMENT TO INDIVIDUAL
Regeneration Economy and Growth,Culture Sport and Tourism,Supplies and Services,338047,Services,05/09/2022,4042189-22006GD2,"2,000.00",REDACTED - PAYMENT TO INDIVIDUAL
Adult and Health Services,Head of Adults,Transport,230005,Contract Hire,05/09/2022,4042211-THOR31082022,699.93,REDACTED - PAYMENT TO INDIVIDUAL
Adult and Health Services,Head of Adults,Transport,230005,Contract Hire,05/09/2022,4042213-12-AUG22-DW152,600.00,REDACTED - PAYMENT TO INDIVIDUAL
Adult and Health Services,Public Health CC0450,Third Party Payments,460803,Contract Payments,05/09/2022,4042098-INV-1693,"124,855.00",ABL HEALTH LTD.
Resources BK0010,Procurement Sales & Business Services,Supplies and Services,384199,Miscellaneous Expenses,05/09/2022,4042102-C69165,"3,424.44",ALLIED PUBLICITY SERVICES (MANCHESTER) LTD.
Neighbourhoods and Climate Change,Technical Services CM0300,Supplies and Services,304358,Equipment and Materials,05/09/2022,4042104-0000037258,910.00,AQUAJET DRAIN CLEANING LTD.
Regeneration Economy and Growth,Corporate Property and Land,Supplies and Services,384199,Miscellaneous Expenses,05/09/2022,4042108-22034453,"9,650.00",ATKINS GLOBAL.
Neighbourhoods and Climate Change,Environmental Services,Supplies and Services,304221,Equipment and Materials,05/09/2022,4042111-99147345,"4,876.21",BALL COLEGRAVE LTD.
Neighbourhoods and Climate Change,Partnerships & Community Engagement Div.,Supplies and Services,384086,Miscellaneous Expenses,05/09/2022,4042116-VOUCHER22NB-CHES012,"2,000.00",BOURNMOOR CRICKET CLUB (SENIORS).
Neighbourhoods and Climate Change,Partnerships & Community Engagement Div.,Supplies and Services,384086,Miscellaneous Expenses,05/09/2022,4042120-VOUCHER22NB-EDUR014,"2,640.00",CALM IN EAST DURHAM CIC.
Regeneration Economy and Growth,Culture Sport and Tourism,Supplies and Services,384199,Miscellaneous Expenses,05/09/2022,4042124-2122,"5,090.00",CENTRE STAGE ENGINEERING LTD (CSE).
Regeneration Economy and Growth,Corporate Property and Land,Supplies and Services,304221,Equipment and Materials,05/09/2022,4042131-2852ABP742,741.02,CITY PLUMBING SUPPLIES HOLDINGS LTD.
Regeneration Economy and Growth,Corporate Property and Land,Supplies and Services,304221,Equipment and Materials,05/09/2022,4042131-2852ABP743,613.16,CITY PLUMBING SUPPLIES HOLDINGS LTD.
Neighbourhoods and Climate Change,Technical Services CM0300,Stock A926,926004,Stock,05/09/2022,4042132-400042897,"4,846.26",CLEVELAND POTASH LTD T/A ICL FERTILIZERS.
Neighbourhoods and Climate Change,Technical Services CM0300,Stock A926,926004,Stock,05/09/2022,4042132-400042922,"11,692.00",CLEVELAND POTASH LTD T/A ICL FERTILIZERS.
Neighbourhoods and Climate Change,Technical Services CM0300,Stock A926,926004,Stock,05/09/2022,4042132-400042923,"11,063.00",CLEVELAND POTASH LTD T/A ICL FERTILIZERS.
Neighbourhoods and Climate Change,Technical Services CM0300,Stock A926,926004,Stock,05/09/2022,4042132-400042983,"3,084.32",CLEVELAND POTASH LTD T/A ICL FERTILIZERS.
Neighbourhoods and Climate Change,Technical Services CM0300,Stock A926,926004,Stock,05/09/2022,4042132-400042984,"1,453.36",CLEVELAND POTASH LTD T/A ICL FERTILIZERS.
Neighbourhoods and Climate Change,Technical Services CM0300,Stock A926,926004,Stock,05/09/2022,4042132-400043037,"3,901.28",CLEVELAND POTASH LTD T/A ICL FERTILIZERS.
Neighbourhoods and Climate Change,Technical Services CM0300,Stock A926,926004,Stock,05/09/2022,4042132-400043038,"13,752.90",CLEVELAND POTASH LTD T/A ICL FERTILIZERS.
Neighbourhoods and Climate Change,Technical Services CM0300,Stock A926,926900,Stock in hand-Inventory system,05/09/2022,4042133-1036562,"1,183.10",CMT EQUIPMENT LTD.
Regeneration Economy and Growth,Economic Development Level C,Supplies and Services,384899,Miscellaneous Expenses,05/09/2022,4042136-SD009/22,"3,704.72",CORNFORTH PARTNERSHIP.
Neighbourhoods and Climate Change,Environmental Services,Supplies and Services,384956,Miscellaneous Expenses,05/09/2022,4042159-092451YT,"3,806.00",ENVIRONMENT AGENCY.
Neighbourhoods and Climate Change,Technical Services CM0300,Stock A926,926900,Stock in hand-Inventory system,05/09/2022,4042159-Y00009352T,"4,599.90",ENVIRONMENT AGENCY.
Neighbourhoods and Climate Change,Technical Services CM0300,Supplies and Services,304221,Equipment and Materials,05/09/2022,4042160-2208\186,"1,395.94",EPPLETON QUARRY PRODUCTS LTD.
Neighbourhoods and Climate Change,Technical Services CM0300,Supplies and Services,304221,Equipment and Materials,05/09/2022,4042160-2208\231,846.95,EPPLETON QUARRY PRODUCTS LTD.
Neighbourhoods and Climate Change,Technical Services CM0300,Supplies and Services,304221,Equipment and Materials,05/09/2022,4042160-2208\273,622.87,EPPLETON QUARRY PRODUCTS LTD.
Children and Young Peoples Services,Head of Childrens Social Care,Employees,080025,Agency Staff,05/09/2022,4042169-2462746,"157,667.70",GEOMETRIC RESULTS INTERNATIONAL.
Children and Young Peoples Services,Head of Early Help Inclusion & Vulnerable Children.,Premises,145023,Cleaning and Domestic Supplies,05/09/2022,4042172-06/172806,906.14,GREENHAM TRADING LTD.
Regeneration Economy and Growth,Corporate Property and Land,Supplies and Services,304221,Equipment and Materials,05/09/2022,4042173-7989,526.00,GROVE REED JOINERY LTD.
Regeneration Economy and Growth,Corporate Property and Land,Supplies and Services,304221,Equipment and Materials,05/09/2022,4042173-8040,543.98,GROVE REED JOINERY LTD.
Regeneration Economy and Growth,Corporate Property and Land,Third Party Payments,430100,Rendered by Private Contractors,05/09/2022,4042174-1-3183,"42,321.94",H MALONE & SONS LTD.
Neighbourhoods and Climate Change,Environmental Services,Supplies and Services,304259,Equipment and Materials,05/09/2022,4042175-084196,"3,309.25",HAGS-SMP LTD.
Neighbourhoods and Climate Change,Technical Services CM0300,Supplies and Services,304221,Equipment and Materials,05/09/2022,4042179-IN104995,"2,922.54",HILL & SMITH LTD.
Regeneration Economy and Growth,Culture Sport and Tourism,Premises,120009,Energy Costs,05/09/2022,4042184-16556,"1,884.64",IMPALA ESTATES LTD.
Resources BK0010,HR & Employee Services,Supplies and Services,384199,Miscellaneous Expenses,05/09/2022,4042185-67176512,"2,653.00",INDEED IRELAND OPERATIONS LTD.
Regeneration Economy and Growth,Corporate Property and Land,Third Party Payments,430100,Rendered by Private Contractors,05/09/2022,4042186-1546,"420,207.16",IVEGATE LTD.
Children and Young Peoples Services,Head of Education and Skills,Third Party Payments,440999,Other third party payments E440,05/09/2022,4042187-1382,579.20,J & K TRAINING LTD.
Neighbourhoods and Climate Change,Technical Services CM0300,Supplies and Services,304358,Equipment and Materials,05/09/2022,4042190-31664,"4,794.00",JOHN R BUTTERFIELD LTD.
Neighbourhoods and Climate Change,Technical Services CM0300,Supplies and Services,304358,Equipment and Materials,05/09/2022,4042190-31687,"1,212.00",JOHN R BUTTERFIELD LTD.
Neighbourhoods and Climate Change,Technical Services CM0300,Supplies and Services,304358,Equipment and Materials,05/09/2022,4042190-31688,"1,050.30",JOHN R BUTTERFIELD LTD.
Neighbourhoods and Climate Change,Technical Services CM0300,Supplies and Services,304358,Equipment and Materials,05/09/2022,4042190-31824,663.20,JOHN R BUTTERFIELD LTD.
Neighbourhoods and Climate Change,Technical Services CM0300,Supplies and Services,304358,Equipment and Materials,05/09/2022,4042190-31970,"1,443.00",JOHN R BUTTERFIELD LTD.
Neighbourhoods and Climate Change,Environmental Services,Supplies and Services,304358,Equipment and Materials,05/09/2022,4042190-32039,911.40,JOHN R BUTTERFIELD LTD.
Neighbourhoods and Climate Change,Technical Services CM0300,Supplies and Services,304358,Equipment and Materials,05/09/2022,4042190-32047,"1,025.00",JOHN R BUTTERFIELD LTD.
Neighbourhoods and Climate Change,Technical Services CM0300,Supplies and Services,304358,Equipment and Materials,05/09/2022,4042190-32048,"1,269.50",JOHN R BUTTERFIELD LTD.
Neighbourhoods and Climate Change,Technical Services CM0300,Supplies and Services,304358,Equipment and Materials,05/09/2022,4042190-32052,"1,747.50",JOHN R BUTTERFIELD LTD.
Neighbourhoods and Climate Change,Technical Services CM0300,Supplies and Services,304358,Equipment and Materials,05/09/2022,4042190-32059,"4,861.50",JOHN R BUTTERFIELD LTD.
Neighbourhoods and Climate Change,Technical Services CM0300,Supplies and Services,304358,Equipment and Materials,05/09/2022,4042190-32072,909.50,JOHN R BUTTERFIELD LTD.
Neighbourhoods and Climate Change,Technical Services CM0300,Supplies and Services,304358,Equipment and Materials,05/09/2022,4042190-32074,"4,020.00",JOHN R BUTTERFIELD LTD.
Neighbourhoods and Climate Change,Technical Services CM0300,Supplies and Services,304358,Equipment and Materials,05/09/2022,4042190-32076,"4,020.00",JOHN R BUTTERFIELD LTD.
Neighbourhoods and Climate Change,Technical Services CM0300,Supplies and Services,304358,Equipment and Materials,05/09/2022,4042190-32080,"3,390.00",JOHN R BUTTERFIELD LTD.
Neighbourhoods and Climate Change,Technical Services CM0300,Supplies and Services,304358,Equipment and Materials,05/09/2022,4042190-32083,"1,013.25",JOHN R BUTTERFIELD LTD.
Neighbourhoods and Climate Change,Technical Services CM0300,Supplies and Services,304358,Equipment and Materials,05/09/2022,4042190-32084,"1,199.10",JOHN R BUTTERFIELD LTD.
Neighbourhoods and Climate Change,Technical Services CM0300,Supplies and Services,304358,Equipment and Materials,05/09/2022,4042190-32091,"1,433.60",JOHN R BUTTERFIELD LTD.
Neighbourhoods and Climate Change,Technical Services CM0300,Supplies and Services,304358,Equipment and Materials,05/09/2022,4042190-32096,"1,293.00",JOHN R BUTTERFIELD LTD.
Neighbourhoods and Climate Change,Technical Services CM0300,Supplies and Services,304358,Equipment and Materials,05/09/2022,4042190-32097,"1,481.90",JOHN R BUTTERFIELD LTD.
Neighbourhoods and Climate Change,Technical Services CM0300,Supplies and Services,304358,Equipment and Materials,05/09/2022,4042190-32115,"1,435.00",JOHN R BUTTERFIELD LTD.
Neighbourhoods and Climate Change,Technical Services CM0300,Supplies and Services,304358,Equipment and Materials,05/09/2022,4042190-32116,"1,269.50",JOHN R BUTTERFIELD LTD.
Neighbourhoods and Climate Change,Technical Services CM0300,Supplies and Services,304358,Equipment and Materials,05/09/2022,4042190-32117,"1,306.90",JOHN R BUTTERFIELD LTD.
Neighbourhoods and Climate Change,Technical Services CM0300,Supplies and Services,304358,Equipment and Materials,05/09/2022,4042191-31647,864.00,JOHN R BUTTERFIELD LTD.
Neighbourhoods and Climate Change,Technical Services CM0300,Supplies and Services,304358,Equipment and Materials,05/09/2022,4042191-31653,"1,676.50",JOHN R BUTTERFIELD LTD.
Neighbourhoods and Climate Change,Technical Services CM0300,Supplies and Services,304358,Equipment and Materials,05/09/2022,4042191-31654,"1,227.00",JOHN R BUTTERFIELD LTD.
Neighbourhoods and Climate Change,Technical Services CM0300,Supplies and Services,304358,Equipment and Materials,05/09/2022,4042191-31663,900.80,JOHN R BUTTERFIELD LTD.
Neighbourhoods and Climate Change,Technical Services CM0300,Supplies and Services,304358,Equipment and Materials,05/09/2022,4042191-31665,982.50,JOHN R BUTTERFIELD LTD.
Regeneration Economy and Growth,Culture Sport and Tourism,Supplies and Services,304259,Equipment and Materials,05/09/2022,4042193-151392,"1,806.62",JP LENNARD LTD.
Regeneration Economy and Growth,Corporate Property and Land,Supplies and Services,304221,Equipment and Materials,05/09/2022,4042195-0213/00732833,728.69,JT DOVE LTD.
Children and Young Peoples Services,Head of Education and Skills,Transport,230008,Contract Hire,05/09/2022,4042196-A050-JULY-2,621.20,KENNAS CABS.
Neighbourhoods and Climate Change,Environmental Services,Stock A926,926900,Stock in hand-Inventory system,05/09/2022,4042198-SI02-0368058,579.45,KILLGERM CHEMICALS LTD.
Regeneration Economy and Growth,Culture Sport and Tourism,Supplies and Services,324001,Provisions E324,05/09/2022,4042210-906650750,868.60,MOLSON COORS BREWING COMPANY (UK) LTD.
Regeneration Economy and Growth,Transport and Contracted Services,Third Party Payments,430108,Rendered by Private Contractors,05/09/2022,4042218-1800011426644,"33,479.10",NEWCASTLE UPON TYNE CITY COUNCIL.
Regeneration Economy and Growth,REG - Central Costs,Supplies and Services,336005,Advertising E336,05/09/2022,4042220-40830623,700.00,NEWSQUEST (YORKSHIRE & NORTH EAST) LTD.
Regeneration Economy and Growth,Communications Management,Supplies and Services,336005,Advertising E336,05/09/2022,4042220-40831134,"1,050.00",NEWSQUEST (YORKSHIRE & NORTH EAST) LTD.
Regeneration Economy and Growth,Communications Management,Supplies and Services,336005,Advertising E336,05/09/2022,4042220-40831677,"2,120.00",NEWSQUEST (YORKSHIRE & NORTH EAST) LTD.
Regeneration Economy and Growth,Culture Sport and Tourism,Supplies and Services,384540,Miscellaneous Expenses,05/09/2022,4042220-40834297,532.50,NEWSQUEST (YORKSHIRE & NORTH EAST) LTD.
Adult and Health Services,Public Health CC0450,Supplies and Services,384155,Miscellaneous Expenses,05/09/2022,4042221-1000074302,"68,237.74",NHS BUSINESS SERVICES AUTHORITY (NHSBSA).
Children and Young Peoples Services,Head of Childrens Social Care,Supplies and Services,384500,Miscellaneous Expenses,05/09/2022,4042222-3552,900.00,NORTH EAST ADOPTION THERAPY SERVICES LTD (NEATS).
Children and Young Peoples Services,Head of Childrens Social Care,Supplies and Services,384500,Miscellaneous Expenses,05/09/2022,4042222-3554,660.00,NORTH EAST ADOPTION THERAPY SERVICES LTD (NEATS).
Children and Young Peoples Services,Head of Childrens Social Care,Supplies and Services,384500,Miscellaneous Expenses,05/09/2022,4042222-3559,720.00,NORTH EAST ADOPTION THERAPY SERVICES LTD (NEATS).
Regeneration Economy and Growth,Culture Sport and Tourism,Third Party Payments,430131,Rendered by Private Contractors,05/09/2022,4042223-4550,560.00,NORTH EAST DANCE CIC.
Resources BK0010,Digital Services,Supplies and Services,342051,Computers and Communications,05/09/2022,4042231-OP/I937405,"3,062.80",PHOENIX SOFTWARE LTD.
Regeneration Economy and Growth,Culture Sport and Tourism,Supplies and Services,384199,Miscellaneous Expenses,05/09/2022,4042234-INV10257,833.33,PICTUREHOUSE CINEMAS LTD.
Adult and Health Services,Public Health CC0450,Third Party Payments,460803,Contract Payments,05/09/2022,4042235-17987/18,"7,327.00",PIONEERING CARE PARTNERSHIP.
Neighbourhoods and Climate Change,Environmental Services,Supplies and Services,384199,Miscellaneous Expenses,05/09/2022,4042237-RAD53126,620.00,RA DALTON LTD.
Regeneration Economy and Growth,Communications Management,Supplies and Services,336005,Advertising E336,05/09/2022,4042239-SIA106172,"1,950.00",REACH PUBLISHING SERVICES LTD T/A REACH PLC.
Regeneration Economy and Growth,Corporate Property and Land,Supplies and Services,304221,Equipment and Materials,05/09/2022,4042245-0000066406,"1,988.60",RINNAI UK LTD.
Regeneration Economy and Growth,Culture Sport and Tourism,Supplies and Services,304259,Equipment and Materials,05/09/2022,4042254-0000031651,"1,565.12",SITELINK COMMUNICATIONS LTD.
Resources BK0010,Digital Services,Supplies and Services,342053,Computers and Communications,05/09/2022,4042256-INVUK553500,"5,500.00",SOFTCAT PLC.
Regeneration Economy and Growth,Corporate Property and Land,Third Party Payments,430100,Rendered by Private Contractors,05/09/2022,4042259-8209,"26,394.00",ST ASTIER LTD.
Regeneration Economy and Growth,Corporate Property and Land,Supplies and Services,304221,Equipment and Materials,05/09/2022,4042259-8210,"2,611.40",ST ASTIER LTD.
Regeneration Economy and Growth,Culture Sport and Tourism,Third Party Payments,430106,Rendered by Private Contractors,05/09/2022,4042264-60277,"2,482.00",STANLEY TRAVEL (NORTH EAST) LTD.
Children and Young Peoples Services,Head of Early Help Inclusion & Vulnerable Children.,Supplies and Services,338078,Services,05/09/2022,4042265-18523,"20,545.92",STEADFAST SECURITY SOLUTIONS LTD.
Regeneration Economy and Growth,Planning & Housing,Supplies and Services,338099,Services,05/09/2022,4042267-SN513354,"1,080.34",SUN FM LTD.
Neighbourhoods and Climate Change,Technical Services CM0300,Stock A926,926900,Stock in hand-Inventory system,05/09/2022,4042276-111459,"1,956.00",TOTAL RENTAL SOLUTIONS LTD.
Neighbourhoods and Climate Change,Technical Services CM0300,Stock A926,926900,Stock in hand-Inventory system,05/09/2022,4042276-111590,"1,784.70",TOTAL RENTAL SOLUTIONS LTD.
Neighbourhoods and Climate Change,Technical Services CM0300,Stock A926,926900,Stock in hand-Inventory system,05/09/2022,4042276-111591,"2,105.64",TOTAL RENTAL SOLUTIONS LTD.
Regeneration Economy and Growth,Transport and Contracted Services,Supplies and Services,342051,Computers and Communications,05/09/2022,4042279-INV0090451,"19,731.70",TRAPEZE GROUP (UK) LIMITED.
Regeneration Economy and Growth,Business Durham CL0850,Supplies and Services,338066,Services,05/09/2022,4042282-INV-14415,"2,708.33",UMI COMMERCIAL LTD.
Regeneration Economy and Growth,Economic Development Level C,Supplies and Services,384899,Miscellaneous Expenses,05/09/2022,4042282-SD013/15,"10,499.83",UMI COMMERCIAL LTD.
Regeneration Economy and Growth,Corporate Property and Land,Supplies and Services,304221,Equipment and Materials,05/09/2022,4042284-6890457788,"5,038.08",VIESSMANN LTD.
Resources BK0010,Digital Services,Supplies and Services,342051,Computers and Communications,05/09/2022,4042287-UOTR4956618,"45,789.00",WESTERN UNION BUSINESS SOLUTIONS.
Regeneration Economy and Growth,Corporate Property and Land,Supplies and Services,338045,Services,05/09/2022,4042289-3660952,"2,527.10",WOMBLE BOND DICKINSON (UK) LLP.
Neighbourhoods and Climate Change,Technical Services CM0300,Supplies and Services,338027,Services,05/09/2022,4042291-64578468,"1,925.00",WSP UK LTD.
Neighbourhoods and Climate Change,Technical Services CM0300,Supplies and Services,338027,Services,05/09/2022,4042291-64578473,"3,430.00",WSP UK LTD.
Neighbourhoods and Climate Change,Technical Services CM0300,Stock A926,926900,Stock in hand-Inventory system,05/09/2022,4042293-986053,849.27,YOUR NRG LTD.
Neighbourhoods and Climate Change,Environmental Services,Transport,215005,Running Costs of Vehicles,05/09/2022,4042293-987127,"16,717.20",YOUR NRG LTD.
Neighbourhoods and Climate Change,Environmental Services,Transport,215023,Running Costs of Vehicles,05/09/2022,4042293-987422,777.00,YOUR NRG LTD.
Adult and Health Services,Head of Adults,Third Party Payments,479111,Purchase of Care,05/09/2022,4042114-202005,880.00,BLUE SKY TRUST.
Regeneration Economy and Growth,Transport and Contracted Services,Supplies and Services,336005,Advertising E336,05/09/2022,4042125-INV-1153,"6,500.00",CHALLENGE FOR CHANGE LTD T/A LOVE TO RIDE.
Neighbourhoods and Climate Change,Partnerships & Community Engagement Div.,Supplies and Services,384086,Miscellaneous Expenses,05/09/2022,4042126-VOUCHER22NB-4TOG008,"2,500.00",CHANCE DRAMA.
Neighbourhoods and Climate Change,Partnerships & Community Engagement Div.,Supplies and Services,384086,Miscellaneous Expenses,05/09/2022,4042149-VOUCHER22NB-DCTY018,"1,980.00",DURHAM AREA YOUTH.
Regeneration Economy and Growth,Culture Sport and Tourism,Supplies and Services,304259,Equipment and Materials,05/09/2022,4042158-INC-00020991,"1,197.00",ENTRE-PRISES LTD.
Neighbourhoods and Climate Change,Partnerships & Community Engagement Div.,Cap Exp on Grants & Other Financial Assistance (REFCUS),918004,Contributions to other bodies 918004,05/09/2022,4042209-VOUCHER22NB-TEES007,"4,395.00",MIDDLETON & TEESDALE PRIZE SILVER BAND.
Neighbourhoods and Climate Change,Environmental Services,Supplies and Services,338066,Services,05/09/2022,4042247-14947,678.00,ROYAL SOCIETY OF WILDLIFE TRUSTS.
Resources BK0010,Digital Services,Supplies and Services,304040,Equipment and Materials,05/09/2022,4042252-INV-22080081,"1,268.00",SAPPHIRE TECHNOLOGIES LTD.*
Neighbourhoods and Climate Change,Partnerships & Community Engagement Div.,Cap Exp on Grants & Other Financial Assistance (REFCUS),918004,Contributions to other bodies 918004,05/09/2022,4042258-VOUCHER22NB-SPEN001,"6,000.00",ST ANDREWS CHURCH HALL.
Neighbourhoods and Climate Change,Partnerships & Community Engagement Div.,Cap Exp on Grants & Other Financial Assistance (REFCUS),918004,Contributions to other bodies 918004,05/09/2022,4042261-VOUCHER22AB-DCTY001,"5,000.00",ST MARGARETS CENTRE.
Children and Young Peoples Services,Head of Early Help Inclusion & Vulnerable Children.,Supplies and Services,308011,Furniture,05/09/2022,4042277-24937,"1,124.00",TOUGH FURNITURE LTD.
Neighbourhoods and Climate Change,Partnerships & Community Engagement Div.,Cap Exp on Grants & Other Financial Assistance (REFCUS),918004,Contributions to other bodies 918004,05/09/2022,4042278-VOUCHER22NB-3TWN011,"4,139.00",TOW LAW TOWN AFC.
Children and Young Peoples Services,Head of Education and Skills,Supplies and Services,352001,Conference Expenses,05/09/2022,4042101-DURHAM/08/22,"4,350.00",REDACTED - PAYMENT TO INDIVIDUAL
Regeneration Economy and Growth,Culture Sport and Tourism,Supplies and Services,384302,Miscellaneous Expenses,05/09/2022,4042188-1,"1,100.00",REDACTED - PAYMENT TO INDIVIDUAL
Resources BK0010,Legal & Democratic Services,Supplies and Services,338105,Services,06/09/2022,4042336-FF1359/21-P,"2,798.21",REDACTED - PAYMENT TO INDIVIDUAL
Children and Young Peoples Services,Head of Education and Skills,Supplies and Services,338027,Services,06/09/2022,4042391-14,"3,300.00",REDACTED - PAYMENT TO INDIVIDUAL
Regeneration Economy and Growth,Corporate Property and Land,Supplies and Services,304221,Equipment and Materials,06/09/2022,4042304-292150,940.39,AVIRE LTD.
Regeneration Economy and Growth,Corporate Property and Land,Third Party Payments,430100,Rendered by Private Contractors,06/09/2022,4042305-2187,"18,578.00",AWR ROOFING & ALUMIN RAINWATER SYSTEMS LTD.
Regeneration Economy and Growth,Corporate Property and Land,Third Party Payments,430100,Rendered by Private Contractors,06/09/2022,4042306-33953,"2,991.00",AYCLIFFE FABRICATIONS LTD.
Neighbourhoods and Climate Change,Environmental Services,Transport,210057,Repair and Maintenance of Vehicles,06/09/2022,4042308-037812-WI,"1,314.78",BENELLA AUTO ELECTRICAL SERVICES LTD T/A BENELLA COMMERCIAL.
Adult and Health Services,Public Health CC0450,Premises,145050,Cleaning and Domestic Supplies,06/09/2022,4042310-411528,527.85,BETTAKLEEN LTD.
Regeneration Economy and Growth,Culture Sport and Tourism,Premises,145023,Cleaning and Domestic Supplies,06/09/2022,4042311-22SI2283679,744.00,BRENNTAG UK LTD.
Regeneration Economy and Growth,Culture Sport and Tourism,Premises,145023,Cleaning and Domestic Supplies,06/09/2022,4042311-22SI2283845,"1,116.00",BRENNTAG UK LTD.
Regeneration Economy and Growth,Culture Sport and Tourism,Premises,145023,Cleaning and Domestic Supplies,06/09/2022,4042311-22SI2283846,930.00,BRENNTAG UK LTD.
Regeneration Economy and Growth,Corporate Property and Land,Third Party Payments,430100,Rendered by Private Contractors,06/09/2022,4042317-9997,944.34,CATHEDRAL LOCK & SAFE SERVICES LTD.
Regeneration Economy and Growth,Corporate Property and Land,Third Party Payments,430100,Rendered by Private Contractors,06/09/2022,4042318-699,"3,224.32",CEILINGS DIRECT LTD.
Regeneration Economy and Growth,Corporate Property and Land,Third Party Payments,430100,Rendered by Private Contractors,06/09/2022,4042318-700,"3,607.12",CEILINGS DIRECT LTD.
Regeneration Economy and Growth,Corporate Property and Land,Third Party Payments,430100,Rendered by Private Contractors,06/09/2022,4042318-702,"22,839.35",CEILINGS DIRECT LTD.
Regeneration Economy and Growth,Corporate Property and Land,Third Party Payments,430100,Rendered by Private Contractors,06/09/2022,4042318-704,"30,025.23",CEILINGS DIRECT LTD.
Neighbourhoods and Climate Change,Environmental Services,Third Party Payments,430100,Rendered by Private Contractors,06/09/2022,4042319-102103,"2,792.24",CG ROBINSON LTD.
Regeneration Economy and Growth,Corporate Property and Land,Supplies and Services,304221,Equipment and Materials,06/09/2022,4042325-57955,587.34,COMPLETE DETECTION SYSTEMS LTD (CDS).
Neighbourhoods and Climate Change,Environmental Services,Transport,230005,Contract Hire,06/09/2022,4042327-22151,"1,454.40",CP DAVIDSON & SONS LTD.
Resources BK0010,Legal & Democratic Services,Supplies and Services,338042,Services,06/09/2022,4042333-371064/INVFM600,"1,925.00",DERE STREET BARRISTERS.
Resources BK0010,Legal & Democratic Services,Supplies and Services,338042,Services,06/09/2022,4042333-374575/INVJJS195,"1,612.50",DERE STREET BARRISTERS.
Neighbourhoods and Climate Change,Environmental Services,Supplies and Services,338099,Services,06/09/2022,4042341-0000052631,"1,910.00",EAST DURHAM COLLEGE.
Neighbourhoods and Climate Change,Environmental Services,Supplies and Services,304221,Equipment and Materials,06/09/2022,4042342-0000090181,"4,945.00",EAST RIDING HORTICULTURE LTD.
Regeneration Economy and Growth,Corporate Property and Land,Third Party Payments,430100,Rendered by Private Contractors,06/09/2022,4042343-395,528.00,ECO HVAC SERVICES LIMITED.
Regeneration Economy and Growth,Corporate Property and Land,Third Party Payments,430100,Rendered by Private Contractors,06/09/2022,4042343-396,"3,588.00",ECO HVAC SERVICES LIMITED.
Regeneration Economy and Growth,Business Durham CL0850,Premises,120009,Energy Costs,06/09/2022,4042345-000013039356,"8,192.68",EDF ENERGY CUSTOMERS PLC T/A EDF ENERGY.
Regeneration Economy and Growth,Business Durham CL0850,Premises,120009,Energy Costs,06/09/2022,4042345-000013123572,"4,743.53",EDF ENERGY CUSTOMERS PLC T/A EDF ENERGY.
Regeneration Economy and Growth,Business Durham CL0850,Premises,120009,Energy Costs,06/09/2022,4042346-000013102245,"21,919.57",EDF ENERGY CUSTOMERS PLC T/A EDF ENERGY.
Regeneration Economy and Growth,Business Durham CL0850,Premises,120009,Energy Costs,06/09/2022,4042346-000013114506,"8,284.33",EDF ENERGY CUSTOMERS PLC T/A EDF ENERGY.
Regeneration Economy and Growth,Corporate Property and Land,Supplies and Services,304221,Equipment and Materials,06/09/2022,4042347-059-305516,990.01,EDMUNDSON ELECTRICAL LTD.
Regeneration Economy and Growth,Corporate Property and Land,Supplies and Services,304221,Equipment and Materials,06/09/2022,4042347-059-306087,688.42,EDMUNDSON ELECTRICAL LTD.
Neighbourhoods and Climate Change,Environmental Services,Supplies and Services,304221,Equipment and Materials,06/09/2022,4042352-6919825,"14,529.20",ESE WORLD LTD.
Children and Young Peoples Services,Head of Education and Skills,Construction work A908,908105,Construction work,06/09/2022,4042353-22028592,"88,312.90",FAITHFUL & GOULD LTD.*
Regeneration Economy and Growth,Corporate Property and Land,Premises,145023,Cleaning and Domestic Supplies,06/09/2022,4042361-06/187403,"4,521.76",GREENHAM TRADING LTD.
Neighbourhoods and Climate Change,Technical Services CM0300,Stock A926,926900,Stock in hand-Inventory system,06/09/2022,4042361-06/188759,"2,207.00",GREENHAM TRADING LTD.
Regeneration Economy and Growth,Corporate Property and Land,Supplies and Services,304221,Equipment and Materials,06/09/2022,4042363-8011,543.98,GROVE REED JOINERY LTD.
Neighbourhoods and Climate Change,Technical Services CM0300,Supplies and Services,352001,Conference Expenses,06/09/2022,4042366-EXAA202200134,"3,399.00",HEMMING GROUP LTD.
Regeneration Economy and Growth,Corporate Property and Land,Third Party Payments,430100,Rendered by Private Contractors,06/09/2022,4042371-12943,"5,801.00",INGLEFORD SCAFFOLDING LTD.
Neighbourhoods and Climate Change,Technical Services CM0300,Third Party Payments,460006,Contract Payments,06/09/2022,4042373-INV-201304,"31,775.00",INTEGRATED SKILLS LTD.
Children and Young Peoples Services,Head of Childrens Social Care,Supplies and Services,338045,Services,06/09/2022,4042374-ITL39827,657.42,ITL (NORTH EAST) LTD.
Children and Young Peoples Services,Head of Childrens Social Care,Supplies and Services,338045,Services,06/09/2022,4042374-ITL41576,577.72,ITL (NORTH EAST) LTD.
Regeneration Economy and Growth,Corporate Property and Land,Supplies and Services,304221,Equipment and Materials,06/09/2022,4042378-0113/00682235,"4,308.32",JT DOVE LTD.
Neighbourhoods and Climate Change,Technical Services CM0300,Supplies and Services,304221,Equipment and Materials,06/09/2022,4042378-0113/00721801,708.83,JT DOVE LTD.
Neighbourhoods and Climate Change,Technical Services CM0300,Stock A926,926900,Stock in hand-Inventory system,06/09/2022,4042378-0113/00733888,565.25,JT DOVE LTD.
Regeneration Economy and Growth,Corporate Property and Land,Supplies and Services,304221,Equipment and Materials,06/09/2022,4042378-0120/00728372,858.33,JT DOVE LTD.
Regeneration Economy and Growth,Corporate Property and Land,Supplies and Services,304221,Equipment and Materials,06/09/2022,4042378-0122/00710104,718.08,JT DOVE LTD.
Neighbourhoods and Climate Change,Technical Services CM0300,Supplies and Services,304221,Equipment and Materials,06/09/2022,4042378-0303/00733890,855.00,JT DOVE LTD.
Regeneration Economy and Growth,Culture Sport and Tourism,Construction work A908,908105,Construction work,06/09/2022,4042379-10294374,"1,133,146.70",KIER CONSTRUCTION LTD - SCOTLAND
Children and Young Peoples Services,Head of Childrens Social Care,Third Party Payments,486020,Service level agreements E486,06/09/2022,4042381-886,"6,176.96",LEADER EDUCATION LTD.
Children and Young Peoples Services,Head of Childrens Social Care,Third Party Payments,486020,Service level agreements E486,06/09/2022,4042381-928,"7,351.96",LEADER EDUCATION LTD.
Children and Young Peoples Services,Head of Childrens Social Care,Third Party Payments,486020,Service level agreements E486,06/09/2022,4042381-952,"5,276.54",LEADER EDUCATION LTD.
Neighbourhoods and Climate Change,Technical Services CM0300,Supplies and Services,304221,Equipment and Materials,06/09/2022,4042396-0000113026,799.00,NAL LTD.
Regeneration Economy and Growth,Corporate Property and Land,Third Party Payments,430100,Rendered by Private Contractors,06/09/2022,4042398-817920,"4,995.00",NATIONWIDE CHIMNEY COMPONENTS LTD.
Neighbourhoods and Climate Change,Environmental Services,Supplies and Services,304221,Equipment and Materials,06/09/2022,4042400-065649,671.50,NEW ROW FARM NURSERIES.
Neighbourhoods and Climate Change,Environmental Services,Supplies and Services,304221,Equipment and Materials,06/09/2022,4042400-065650,835.75,NEW ROW FARM NURSERIES.
Children and Young Peoples Services,Head of Childrens Social Care,Supplies and Services,384500,Miscellaneous Expenses,06/09/2022,4042406-3453A,540.00,NORTH EAST ADOPTION THERAPY SERVICES LTD (NEATS).
Children and Young Peoples Services,Head of Childrens Social Care,Supplies and Services,384500,Miscellaneous Expenses,06/09/2022,4042406-3551,"2,500.00",NORTH EAST ADOPTION THERAPY SERVICES LTD (NEATS).
Children and Young Peoples Services,Head of Childrens Social Care,Supplies and Services,384500,Miscellaneous Expenses,06/09/2022,4042406-3556,600.00,NORTH EAST ADOPTION THERAPY SERVICES LTD (NEATS).
Children and Young Peoples Services,Head of Childrens Social Care,Supplies and Services,384500,Miscellaneous Expenses,06/09/2022,4042406-3560,"2,500.00",NORTH EAST ADOPTION THERAPY SERVICES LTD (NEATS).
Children and Young Peoples Services,Head of Childrens Social Care,Supplies and Services,384500,Miscellaneous Expenses,06/09/2022,4042406-3561,540.00,NORTH EAST ADOPTION THERAPY SERVICES LTD (NEATS).
Children and Young Peoples Services,Head of Childrens Social Care,Supplies and Services,384500,Miscellaneous Expenses,06/09/2022,4042406-3562,660.00,NORTH EAST ADOPTION THERAPY SERVICES LTD (NEATS).
Children and Young Peoples Services,Head of Childrens Social Care,Supplies and Services,384500,Miscellaneous Expenses,06/09/2022,4042406-3563,"1,200.00",NORTH EAST ADOPTION THERAPY SERVICES LTD (NEATS).
Children and Young Peoples Services,Head of Childrens Social Care,Supplies and Services,384500,Miscellaneous Expenses,06/09/2022,4042406-3564,660.00,NORTH EAST ADOPTION THERAPY SERVICES LTD (NEATS).
Children and Young Peoples Services,Head of Childrens Social Care,Supplies and Services,384500,Miscellaneous Expenses,06/09/2022,4042406-3566,540.00,NORTH EAST ADOPTION THERAPY SERVICES LTD (NEATS).
Children and Young Peoples Services,Head of Childrens Social Care,Supplies and Services,384500,Miscellaneous Expenses,06/09/2022,4042406-3568,600.00,NORTH EAST ADOPTION THERAPY SERVICES LTD (NEATS).
Neighbourhoods and Climate Change,Technical Services CM0300,Third Party Payments,430100,Rendered by Private Contractors,06/09/2022,4042409-DI20387070,"2,464.08",NORTHERN POWERGRID (NORTHEAST) LTD.
Neighbourhoods and Climate Change,Technical Services CM0300,Third Party Payments,430100,Rendered by Private Contractors,06/09/2022,4042410-20386665,"1,816.07",NORTHERN POWERGRID (NORTHEAST) LTD.
Regeneration Economy and Growth,Planning & Housing,Premises,135005,Water Services,06/09/2022,4042411-513296020023066761,"4,485.92",NORTHUMBRIAN WATER LTD.
Neighbourhoods and Climate Change,Environmental Services,Third Party Payments,430100,Rendered by Private Contractors,06/09/2022,4042412-00021650,691.26,NSL LTD.
Regeneration Economy and Growth,Culture Sport and Tourism,Supplies and Services,384199,Miscellaneous Expenses,06/09/2022,4042412-00021653,"1,787.16",NSL LTD.
Neighbourhoods and Climate Change,Technical Services CM0300,Stock A926,926900,Stock in hand-Inventory system,06/09/2022,4042416-XL290306,722.00,PARK ELECTRICAL DISTRIBUTORS LTD.
Neighbourhoods and Climate Change,Environmental Services,Stock A926,926004,Stock,06/09/2022,4042417-20389658,691.04,PARTSPLUS.
Neighbourhoods and Climate Change,Technical Services CM0300,Third Party Payments,430100,Rendered by Private Contractors,06/09/2022,4042423-6394,"3,362.60",PINKNEY BUILDING CONTRACTORS LTD.
Neighbourhoods and Climate Change,Technical Services CM0300,Third Party Payments,430100,Rendered by Private Contractors,06/09/2022,4042423-6395,"5,043.90",PINKNEY BUILDING CONTRACTORS LTD.
Neighbourhoods and Climate Change,Technical Services CM0300,Third Party Payments,430100,Rendered by Private Contractors,06/09/2022,4042423-6396,"3,362.60",PINKNEY BUILDING CONTRACTORS LTD.
Neighbourhoods and Climate Change,Technical Services CM0300,Third Party Payments,430100,Rendered by Private Contractors,06/09/2022,4042423-6397,"4,704.20",PINKNEY BUILDING CONTRACTORS LTD.
